Workbook

Sheet eplustbl
A1: Program Version: | B1: EnergyPlus | C1: Version 8.9.0-40101eaafd | D1: YMD=2021.05.17 08:59
A2: Tabular Output Report in Format: | B2: Comma
A4: Building: | B4: Building
A5: Environment: | B5: SITE (O1-O1:31-12) ** Gerona - ESP SWEC WMO#=081840
A7: ----------------------------------------------------------------------------------------------------
A8: REPORT: | B8: Annual Building Utility Performance Summary
A9: FOR: | B9: Entire Facility
A10: Values gathered over 8760.00 hours
A12: Site and Source Energy
C14: Total Energy [kWh] | D14: Energy Per Total Building Area [kWh/m2] | E14: Energy Per Conditioned Building Area [kWh/m2]
B15: Total Site Energy | C15: 9700.55 | D15: 59.68 | E15: 59.68
B16: Net Site Energy | C16: 9700.55 | D16: 59.68 | E16: 59.68
B17: Total Source Energy | C17: 28272.8 | D17: 173.93 | E17: 173.93
B18: Net Source Energy | C18: 28272.8 | D18: 173.93 | E18: 173.93
A21: Site to Source Energy Conversion Factors
C23: Site=>Source Conversion Factor
B24: Electricity | C24: 3.167
B25: Natural Gas | C25: 1.084
B26: District Cooling | C26: 1.056
B27: District Heating | C27: 3.613
B28: Steam | C28: 0.25
B29: Gasoline | C29: 1.05
B30: Diesel | C30: 1.05
B31: Coal | C31: 1.05
B32: Fuel Oil #1 | C32: 1.05
B33: Fuel Oil #2 | C33: 1.05
B34: Propane | C34: 1.05
B35: Other Fuel 1 | C35: 1
B36: Other Fuel 2 | C36: 1
A39: Building Area
C41: Area [m2]
B42: Total Building Area | C42: 162.56
B43: Net Conditioned Building Area | C43: 162.56
B44: Unconditioned Building Area | C44: 0
A47: End Uses
C49: Electricity [kWh] | D49: Natural Gas [kWh] | E49: Additional Fuel [kWh] | F49: District Cooling [kWh] | G49: District Heating [kWh] | H49: Water [m3]
B50: Heating | C50: 7.17 | D50: 1175.64 | E50: 0 | F50: 0 | G50: 0 | H50: 0
B51: Cooling | C51: 567.66 | D51: 0 | E51: 0 | F51: 0 | G51: 0 | H51: 7.01
B52: Interior Lighting | C52: 4072.98 | D52: 0 | E52: 0 | F52: 0 | G52: 0 | H52: 0
B53: Exterior Lighting | C53: 0 | D53: 0 | E53: 0 | F53: 0 | G53: 0 | H53: 0
B54: Interior Equipment | C54: 2993.04 | D54: 0 | E54: 0 | F54: 0 | G54: 0 | H54: 0
B55: Exterior Equipment | C55: 0 | D55: 0 | E55: 0 | F55: 0 | G55: 0 | H55: 0
B56: Fans | C56: 881.57 | D56: 0 | E56: 0 | F56: 0 | G56: 0 | H56: 0
B57: Pumps | C57: 2.5 | D57: 0 | E57: 0 | F57: 0 | G57: 0 | H57: 0
B58: Heat Rejection | C58: 0 | D58: 0 | E58: 0 | F58: 0 | G58: 0 | H58: 0
B59: Humidification | C59: 0 | D59: 0 | E59: 0 | F59: 0 | G59: 0 | H59: 0
B60: Heat Recovery | C60: 0 | D60: 0 | E60: 0 | F60: 0 | G60: 0 | H60: 0
B61: Water Systems | C61: 0 | D61: 0 | E61: 0 | F61: 0 | G61: 0 | H61: 0
B62: Refrigeration | C62: 0 | D62: 0 | E62: 0 | F62: 0 | G62: 0 | H62: 0
B63: Generators | C63: 0 | D63: 0 | E63: 0 | F63: 0 | G63: 0 | H63: 0
B65: Total End Uses | C65: 8524.92 | D65: 1175.64 | E65: 0 | F65: 0 | G65: 0 | H65: 7.01
A66: Note: Natural gas appears to be the principal heating source based on energy usage.
A69: End Uses By Subcategory
C71: Subcategory | D71: Electricity [kWh] | E71: Natural Gas [kWh] | F71: Additional Fuel [kWh] | G71: District Cooling [kWh] | H71: District Heating [kWh] | I71: Water [m3]
B72: Heating | C72: Boiler | D72: 0 | E72: 1175.64 | F72: 0 | G72: 0 | H72: 0 | I72: 0
C73: Boiler Parasitic | D73: 7.17 | E73: 0 | F73: 0 | G73: 0 | H73: 0 | I73: 0
B74: Cooling | C74: General | D74: 306.66 | E74: 0 | F74: 0 | G74: 0 | H74: 0 | I74: 0
C75: Other | D75: 261 | E75: 0 | F75: 0 | G75: 0 | H75: 0 | I75: 7.01
B76: Interior Lighting | C76: General | D76: 4072.98 | E76: 0 | F76: 0 | G76: 0 | H76: 0 | I76: 0
B77: Exterior Lighting | C77: General | D77: 0 | E77: 0 | F77: 0 | G77: 0 | H77: 0 | I77: 0
B78: Interior Equipment | C78: ELECTRIC EQUIPMENT#Floor0:Zone1#05 | D78: 1127.43 | E78: 0 | F78: 0 | G78: 0 | H78: 0 | I78: 0
C79: ELECTRIC EQUIPMENT#Floor0:Zone2#05 | D79: 367.57 | E79: 0 | F79: 0 | G79: 0 | H79: 0 | I79: 0
C80: ELECTRIC EQUIPMENT#Floor1:Sanitaires#05 | D80: 63.02 | E80: 0 | F80: 0 | G80: 0 | H80: 0 | I80: 0
C81: ELECTRIC EQUIPMENT#Floor1:Zone1#05 | D81: 1435.02 | E81: 0 | F81: 0 | G81: 0 | H81: 0 | I81: 0
B82: Exterior Equipment | C82: General | D82: 0 | E82: 0 | F82: 0 | G82: 0 | H82: 0 | I82: 0
B83: Fans | C83: General | D83: 881.57 | E83: 0 | F83: 0 | G83: 0 | H83: 0 | I83: 0
B84: Pumps | C84: General | D84: 2.5 | E84: 0 | F84: 0 | G84: 0 | H84: 0 | I84: 0
B85: Heat Rejection | C85: General | D85: 0 | E85: 0 | F85: 0 | G85: 0 | H85: 0 | I85: 0
B86: Humidification | C86: General | D86: 0 | E86: 0 | F86: 0 | G86: 0 | H86: 0 | I86: 0
B87: Heat Recovery | C87: General | D87: 0 | E87: 0 | F87: 0 | G87: 0 | H87: 0 | I87: 0
B88: Water Systems | C88: General | D88: 0 | E88: 0 | F88: 0 | G88: 0 | H88: 0 | I88: 0
B89: Refrigeration | C89: General | D89: 0 | E89: 0 | F89: 0 | G89: 0 | H89: 0 | I89: 0
B90: Generators | C90: General | D90: 0 | E90: 0 | F90: 0 | G90: 0 | H90: 0 | I90: 0
A93: Normalized Metrics
A94: Utility Use Per Conditioned Floor Area
C96: Electricity Intensity [kWh/m2] | D96: Natural Gas Intensity [kWh/m2] | E96: Additional Fuel Intensity [kWh/m2] | F96: District Cooling Intensity [kWh/m2] | G96: District Heating Intensity [kWh/m2] | H96: Water Intensity [m3/m2]
B97: Lighting | C97: 25.06 | D97: 0 | E97: 0 | F97: 0 | G97: 0 | H97: 0
B98: HVAC | C98: 8.97 | D98: 7.23 | E98: 0 | F98: 0 | G98: 0 | H98: 0.04
B99: Other | C99: 18.41 | D99: 0 | E99: 0 | F99: 0 | G99: 0 | H99: 0
B100: Total | C100: 52.44 | D100: 7.23 | E100: 0 | F100: 0 | G100: 0 | H100: 0.04
A103: Utility Use Per Total Floor Area
C105: Electricity Intensity [kWh/m2] | D105: Natural Gas Intensity [kWh/m2] | E105: Additional Fuel Intensity [kWh/m2] | F105: District Cooling Intensity [kWh/m2] | G105: District Heating Intensity [kWh/m2] | H105: Water Intensity [m3/m2]
B106: Lighting | C106: 25.06 | D106: 0 | E106: 0 | F106: 0 | G106: 0 | H106: 0
B107: HVAC | C107: 8.97 | D107: 7.23 | E107: 0 | F107: 0 | G107: 0 | H107: 0.04
B108: Other | C108: 18.41 | D108: 0 | E108: 0 | F108: 0 | G108: 0 | H108: 0
B109: Total | C109: 52.44 | D109: 7.23 | E109: 0 | F109: 0 | G109: 0 | H109: 0.04
A112: Electric Loads Satisfied
C114: Electricity [kWh] | D114: Percent Electricity [%]
B115: Fuel-Fired Power Generation | C115: 0 | D115: 0
B116: High Temperature Geothermal* | C116: 0 | D116: 0
B117: Photovoltaic Power | C117: 0 | D117: 0
B118: Wind Power | C118: 0 | D118: 0
B119: Power Conversion | C119: 0 | D119: 0
B120: Net Decrease in On-Site Storage | C120: 0 | D120: 0
B121: Total On-Site Electric Sources | C121: 0 | D121: 0
B123: Electricity Coming From Utility | C123: 8524.916 | D123: 100
B124: Surplus Electricity Going To Utility | C124: 0 | D124: 0
B125: Net Electricity From Utility | C125: 8524.916 | D125: 100
B127: Total On-Site and Utility Electric Sources | C127: 8524.916 | D127: 100
B128: Total Electricity End Uses | C128: 8524.916 | D128: 100
A131: On-Site Thermal Sources
C133: Heat [kWh] | D133: Percent Heat [%]
B134: Water-Side Heat Recovery | C134: 0 | D134: 0
B135: Air to Air Heat Recovery for Cooling | C135: 434.14 | D135: 32.47
B136: Air to Air Heat Recovery for Heating | C136: 902.98 | D136: 67.53
B137: High-Temperature Geothermal* | C137: 0 | D137: 0
B138: Solar Water Thermal | C138: 0 | D138: 0
B139: Solar Air Thermal | C139: 0 | D139: 0
B140: Total On-Site Thermal Sources | C140: 1337.13 | D140: 100
A143: Water Source Summary
C145: Water [m3] | D145: Percent Water [%]
B146: Rainwater Collection | C146: 0 | D146: 0
B147: Condensate Collection | C147: 0 | D147: 0
B148: Groundwater Well | C148: 0 | D148: 0
B149: Total On Site Water Sources | C149: 0 | D149: 0
B150: - | C150: - | D150: -
B151: Initial Storage | C151: 0 | D151: 0
B152: Final Storage | C152: 0 | D152: 0
B153: Change in Storage | C153: 0 | D153: 0
B154: - | C154: - | D154: -
B155: Water Supplied by Utility | C155: 7.01 | D155: 100
B156: - | C156: - | D156: -
B157: Total On Site | C157: Change in Storage | D157: and Utility Water Sources | E157: 7.01 | F157: 100
B158: Total Water End Uses | C158: 7.01 | D158: 100
A161: Setpoint Not Met Criteria
C163: Degrees [deltaC]
B164: Tolerance for Zone Heating Setpoint Not Met Time | C164: 1.11
B165: Tolerance for Zone Cooling Setpoint Not Met Time | C165: 1.11
A168: Comfort and Setpoint Not Met Summary
C170: Facility [Hours]
B171: Time Setpoint Not Met During Occupied Heating | C171: 675.5
B172: Time Setpoint Not Met During Occupied Cooling | C172: 0
B173: Time Not Comfortable Based on Simple ASHRAE 55-2004 | C173: 2059.5
A176: Note 1: An asterisk (*) indicates that the feature is not yet implemented.
A177: ----------------------------------------------------------------------------------------------------
A178: REPORT: | B178: Component Sizing Summary
A179: FOR: | B179: Entire Facility
A180: AirTerminal:SingleDuct:ConstantVolume:NoReheat
C182: Design Size Maximum Air Flow Rate [m3/s]
B183: FLOOR0:ZONE1 AIR DIRECT | C183: 0.067967
B184: FLOOR0:ZONE2 AIR DIRECT | C184: 0.022159
B185: FLOOR1:ZONE1 AIR DIRECT | C185: 0.086511
A186: User-Specified values were used. Design Size values were used if no User-Specified values were provided.
A189: AirLoopHVAC
C191: Sum of Air Terminal Maximum Heating Flow Rates [m3/s] | D191: Sum of Air Terminal Minimum Heating Flow Rates [m3/s] | E191: Sum of Air Terminal Maximum Flow Rates [m3/s] | F191: Adjusted Heating Design Air Flow Rate [m3/s] | G191: Adjusted Cooling Design Air Flow Rate [m3/s] | H191: Adjusted Main Design Air Flow Rate [m3/s] | I191: User Heating Air Flow Ratio [] | J191: Calculated Heating Air Flow Ratio [] | K191: Design Supply Air Flow Rate [m3/s]
B192: DISTRIBUTION AIR | C192: 0 | D192: 0 | E192: 0.176637 | F192: 0.176637 | G192: 0.176637 | H192: 0.176637 | I192: 1 | J192: 1 | K192: 0.176637
A193: User-Specified values were used. Design Size values were used if no User-Specified values were provided.
A196: Fan:ConstantVolume
C198: Design Size Maximum Flow Rate [m3/s]
B199: DISTRIBUTION AIR CTA VENTILATEUR EXTRACTION | C199: 0.176637
B200: DISTRIBUTION AIR CTA VENTILATEUR SOUFFLAGE | C200: 0.176637
A201: User-Specified values were used. Design Size values were used if no User-Specified values were provided.
A204: EvaporativeCooler:Direct:CelDekPad
C206: Design Size Celdek Pad Area [m2] | D206: User-Specified Celdek Pad Area [m2] | E206: Design Size Celdek Pad Depth [m] | F206: User-Specified Celdek Pad Depth [m]
B207: DISTRIBUTION AIR CTA BATTERIE EVAPORATIVE | C207: 0.058879 | D207: 0.6 | E207: 0.17382 | F207: 0.2
A208: User-Specified values were used. Design Size values were used if no User-Specified values were provided.
A211: Controller:OutdoorAir
C213: Maximum Outdoor Air Flow Rate [m3/s] | D213: Minimum Outdoor Air Flow Rate [m3/s]
B214: DISTRIBUTION AIR CTA CONTRôLEUR AIR EXTéRIEUR | C214: 0.176637 | D214: 0.176637
A215: User-Specified values were used. Design Size values were used if no User-Specified values were provided.
A218: HeatExchanger:AirToAir:SensibleAndLatent
C220: Design Size Nominal Supply Air Flow Rate [m3/s]
B221: DISTRIBUTION AIR CTA RéCUPéRATEUR DE CHALEUR | C221: 0.176637
A222: User-Specified values were used. Design Size values were used if no User-Specified values were provided.
A225: Coil:Cooling:Water
C227: Design Size Design Coil Load [W] | D227: Design Size Design Water Flow Rate [m3/s] | E227: Design Size Design Air Flow Rate [m3/s] | F227: Design Size Design Inlet Air Temperature [C] | G227: Design Size Design Inlet Water Temperature [C] | H227: Design Size Design Outlet Air Temperature [C] | I227: Design Size Design Inlet Air Humidity Ratio | J227: Design Size Design Outlet Air Humidity Ratio
B228: DISTRIBUTION AIR CTA BATTERIE FROIDE | C228: 4897.96 | D228: 0.000318 | E228: 0.176637 | F228: 34.6 | G228: 6 | H228: 18 | I228: 0.010234 | J228: 0.010234
A229: User-Specified values were used. Design Size values were used if no User-Specified values were provided.
A232: Coil:Heating:Water
C234: Design Size Rated Capacity [W] | D234: Design Size Maximum Water Flow Rate [m3/s] | E234: Design Size U-Factor Times Area Value [W/K]
B235: DISTRIBUTION AIR CTA BATTERIE CHAUDE | C235: 3936.54 | D235: 9.4e-05 | E235: 61.4
A236: User-Specified values were used. Design Size values were used if no User-Specified values were provided.
A239: Controller:WaterCoil
C241: Maximum Actuated Flow [m3/s] | D241: Controller Convergence Tolerance
B242: DISTRIBUTION AIR CTA BATTERIE FROIDE CONTROLLER | C242: 0.000318 | D242: 0.001
B243: DISTRIBUTION AIR CTA BATTERIE CHAUDE CONTRôLEUR | C243: 9.4e-05 | D243: 0.001
A244: User-Specified values were used. Design Size values were used if no User-Specified values were provided.
A247: PlantLoop
C249: Maximum Loop Flow Rate [m3/s] | D249: Plant Loop Volume [m3]
B250: BOUCLE EAU CHAUDE | C250: 9.4e-05 | D250: 0.011289
B251: BOUCLE EAU GLACéE | C251: 0.000318 | D251: 0.038188
A252: User-Specified values were used. Design Size values were used if no User-Specified values were provided.
A255: Pump:VariableSpeed
C257: Design Flow Rate [m3/s] | D257: Design Power Consumption [W]
B258: BOUCLE EAU CHAUDE PRODUCTION POMPE | C258: 9.4e-05 | D258: 2.68
B259: BOUCLE EAU GLACéE PRODUCTION POMPE | C259: 0.000318 | D259: 9.07
A260: User-Specified values were used. Design Size values were used if no User-Specified values were provided.
A263: Boiler:HotWater
C265: Design Size Nominal Capacity [W] | D265: Design Size Design Water Flow Rate [m3/s]
B266: CHAUDIèRE | C266: 3950.65 | D266: 9.4e-05
A267: User-Specified values were used. Design Size values were used if no User-Specified values were provided.
A270: Chiller:Electric:EIR
C272: Design Size Reference Chilled Water Flow Rate [m3/s] | D272: Design Size Reference Capacity [W] | E272: Design Size Reference Condenser Fluid Flow Rate [m3/s]
B273: GROUPE FROID | C273: 0.000318 | D273: 4898.13 | E273: 0.558387
A274: User-Specified values were used. Design Size values were used if no User-Specified values were provided.
A277: ----------------------------------------------------------------------------------------------------
A278: REPORT: | B278: Adaptive Comfort Summary
A279: FOR: | B279: Entire Facility
A280: Time Not Meeting the Adaptive Comfort Models during Occupied Hours
C282: ASHRAE55 90% Acceptability Limits [Hours] | D282: ASHRAE55 80% Acceptability Limits [Hours] | E282: CEN15251 Category I Acceptability Limits [Hours] | F282: CEN15251 Category II Acceptability Limits [Hours] | G282: CEN15251 Category III Acceptability Limits [Hours]
... 451 more rows

Sheet Resultats PMV
B1: 1ère colonne | C1: 3 | E1: Il s'agit du numéro de l'entête de colonne du tableau ZONE THERMAL COMFORT FANGER MODEL PMV qui correspond à la valeur minimale de PMV. Par défaut la colonne de PMV min à -1 est "3 [hr]". Le numéro est la valeur n de l'entête de colonne "n [hr]". Saisissez 0 pour partir de la colonne "- [hr]".
B2: Dernière colonne | C2: 10 | E2: Le numéro de la dernière colonne à reporter ci-dessous. Le numéro de l'entête de colonne est le chiffre n dans l'intitulé de ZONE THERMAL COMFORT FANGER MODEL PMV : n [hr]. Saisissez "-" pour la colonne "equal to or more than". Attention les tableaux ci-dessous ne sont pas automatiquement adaptés au nombre de tranches souhaitées, il faut les dimensionner manuellement et modifier la macro !! Conserver 8 tranches uniquement si vous ne voulez pas modifier la macro (dernière colonne - 1ère +1 = 8).
F5: Totaux | P5: Total annuel | W5: Totaux | AG5: Total annuel | AN5: Totaux | AX5: Total annuel
A6: Année | F6: =SUM(F9:F502) -> 1475.5 | G6: =SUM(G9:G502) -> 1098 | H6: 1130.5 | I6: 1040.5 | J6: 937 | K6: 740.5 | L6: 691.5 | M6: 630.5 | N6: 635.5 | O6: 4148.5 | P6: =SUM(F6:O6) -> 12528 | R6: Eté | W6: =SUM(W9:W502) -> 60 | X6: =SUM(X9:X502) -> 45 | Y6: 69 | Z6: 87 | AA6: 154 | AB6: 186 | AC6: 257 | AD6: 331.5 | AE6: 398 | AF6: 3644.5 | AG6: =SUM(W6:AF6) -> 5232 | AI6: Hiver | AN6: =SUM(AN9:AN502) -> 1415.5 | AO6: =SUM(AO9:AO502) -> 1053 | AP6: 1061.5 | AQ6: 953.5 | AR6: 783 | AS6: 554.5 | AT6: 434.5 | AU6: 299 | AV6: 237.5 | AW6: 504 | AX6: =SUM(AN6:AW6) -> 7296
F7: Inférieur à | G7: -1.000<= | H7: -0.750<= | I7: -0.500<= | J7: -0.250<= | K7: 0.0000<= | L7: 0.2500<= | M7: 0.5000<= | N7: 0.7500<= | O7: Supérieur à | W7: Inférieur à | X7: -1.000<= | Y7: -0.750<= | Z7: -0.500<= | AA7: -0.250<= | AB7: 0.0000<= | AC7: 0.2500<= | AD7: 0.5000<= | AE7: 0.7500<= | AF7: Supérieur à | AN7: Inférieur à | AO7: -1.000<= | AP7: -0.750<= | AQ7: -0.500<= | AR7: -0.250<= | AS7: 0.0000<= | AT7: 0.2500<= | AU7: 0.5000<= | AV7: 0.7500<= | AW7: Supérieur à
A8: Nom Zone | B8: Moyenne | C8: Ecart Type | D8: Min | E8: Max | F8: -1.000> | G8: -0.750> | H8: -0.500> | I8: -0.250> | J8: 0.0000> | K8: 0.2500> | L8: 0.5000> | M8: 0.7500> | N8: 1.0000> | O8: 1.0000<= | R8: Nom Zone | S8: Moyenne | T8: Ecart Type | U8: Min | V8: Max | W8: -1.000> | X8: -0.750> | Y8: -0.500> | Z8: -0.250> | AA8: 0.0000> | AB8: 0.2500> | AC8: 0.5000> | AD8: 0.7500> | AE8: 1.0000> | AF8: 1.0000<= | AI8: Nom Zone | AJ8: Moyenne | AK8: Ecart Type | AL8: Min | AM8: Max | AN8: -1.000> | AO8: -0.750> | AP8: -0.500> | AQ8: -0.250> | AR8: 0.0000> | AS8: 0.2500> | AT8: 0.5000> | AU8: 0.7500> | AV8: 1.0000> | AW8: 1.0000<=
A9: FLOOR0:ZONE1 | B9: 0.51 | C9: 1.26 | D9: -2.2 | E9: 4.39 | F9: 318.5 | G9: 202 | H9: 252.5 | I9: 256 | J9: 231.5 | K9: 206.5 | L9: 219 | M9: 197 | N9: 162 | O9: 1087 | P9: =SUM(F9:O9) -> 3132 | R9: FLOOR0:ZONE1 | S9: 0 | T9: 0 | U9: -10 | V9: 1.5 | W9: 15.5 | X9: 10.5 | Y9: 16.5 | Z9: 23.5 | AA9: 38 | AB9: 47 | AC9: 61 | AD9: 83.5 | AE9: 97.5 | AF9: 915 | AG9: =SUM(W9:AF9) -> 1308 | AI9: FLOOR0:ZONE1 | AJ9: 0 | AK9: 0 | AL9: -10 | AM9: 1.5 | AN9: 303 | AO9: 191.5 | AP9: 236 | AQ9: 232.5 | AR9: 193.5 | AS9: 159.5 | AT9: 158 | AU9: 113.5 | AV9: 64.5 | AW9: 172 | AX9: =SUM(AN9:AW9) -> 1824
A10: FLOOR0:ZONE2 | B10: 0.34 | C10: 1.28 | D10: -2.3 | E10: 3.77 | F10: 449 | G10: 285.5 | H10: 269.5 | I10: 260 | J10: 240 | K10: 184.5 | L10: 136 | M10: 147 | N10: 167.5 | O10: 993 | P10: =SUM(F10:O10) -> 3132 | R10: FLOOR0:ZONE2 | S10: 0 | T10: 0 | U10: -10 | V10: 1.5 | W10: 16.5 | X10: 10 | Y10: 16 | Z10: 28.5 | AA10: 37.5 | AB10: 38.5 | AC10: 57 | AD10: 102.5 | AE10: 103.5 | AF10: 898 | AG10: =SUM(W10:AF10) -> 1308 | AI10: FLOOR0:ZONE2 | AJ10: 0 | AK10: 0 | AL10: -10 | AM10: 1.5 | AN10: 432.5 | AO10: 275.5 | AP10: 253.5 | AQ10: 231.5 | AR10: 202.5 | AS10: 146 | AT10: 79 | AU10: 44.5 | AV10: 64 | AW10: 95 | AX10: =SUM(AN10:AW10) -> 1824
A11: FLOOR1:SANITAIRES | B11: 0.43 | C11: 1.23 | D11: -2 | E11: 3.67 | F11: 317.5 | G11: 293.5 | H11: 316 | I11: 267 | J11: 236.5 | K11: 178.5 | L11: 165.5 | M11: 148.5 | N11: 145 | O11: 1064 | P11: 3132 | R11: FLOOR1:SANITAIRES | S11: 0 | T11: 0 | U11: -10 | V11: 1.5 | W11: 11 | X11: 13.5 | Y11: 18.5 | Z11: 14.5 | AA11: 33.5 | AB11: 50 | AC11: 68.5 | AD11: 67.5 | AE11: 90.5 | AF11: 940.5 | AG11: 1308 | AI11: FLOOR1:SANITAIRES | AJ11: 0 | AK11: 0 | AL11: -10 | AM11: 1.5 | AN11: 306.5 | AO11: 280 | AP11: 297.5 | AQ11: 252.5 | AR11: 203 | AS11: 128.5 | AT11: 97 | AU11: 81 | AV11: 54.5 | AW11: 123.5 | AX11: 1824
A12: FLOOR1:ZONE1 | B12: 0.35 | C12: 1.23 | D12: -2.2 | E12: 3.91 | F12: 390.5 | G12: 317 | H12: 292.5 | I12: 257.5 | J12: 229 | K12: 171 | L12: 171 | M12: 138 | N12: 161 | O12: 1004.5 | P12: 3132 | R12: FLOOR1:ZONE1 | S12: 0 | T12: 0 | U12: -10 | V12: 1.5 | W12: 17 | X12: 11 | Y12: 18 | Z12: 20.5 | AA12: 45 | AB12: 50.5 | AC12: 70.5 | AD12: 78 | AE12: 106.5 | AF12: 891 | AG12: 1308 | AI12: FLOOR1:ZONE1 | AJ12: 0 | AK12: 0 | AL12: -10 | AM12: 1.5 | AN12: 373.5 | AO12: 306 | AP12: 274.5 | AQ12: 237 | AR12: 184 | AS12: 120.5 | AT12: 100.5 | AU12: 60 | AV12: 54.5 | AW12: 113.5 | AX12: 1824
P13: 0 | AG13: 0 | AX13: 0
P14: 0 | AG14: 0 | AX14: 0
P15: 0 | AG15: 0 | AX15: 0
P16: 0 | AG16: 0 | AX16: 0
P17: 0 | AG17: 0 | AX17: 0
P18: 0 | AG18: 0 | AX18: 0
P19: 0 | AG19: 0 | AX19: 0
P20: 0 | AG20: 0 | AX20: 0
P21: 0 | AG21: 0 | AX21: 0
P22: 0 | AG22: 0 | AX22: 0
P23: 0 | AG23: 0 | AX23: 0
P24: 0 | AG24: 0 | AX24: 0
P25: 0 | AG25: 0 | AX25: 0
P26: 0 | AG26: 0 | AX26: 0
P27: 0 | AG27: 0 | AX27: 0
P28: 0 | AG28: 0 | AX28: 0
P29: 0 | AG29: 0 | AX29: 0
P30: 0 | AG30: 0 | AX30: 0
P31: 0 | AG31: 0 | AX31: 0
P32: 0 | AG32: 0 | AX32: 0
P33: 0 | AG33: 0 | AX33: 0
P34: 0 | AG34: 0 | AX34: 0
P35: 0 | AG35: 0 | AX35: 0
P36: 0 | AG36: 0 | AX36: 0
P37: 0 | AG37: 0 | AX37: 0
P38: 0 | AG38: 0 | AX38: 0
P39: 0 | AG39: 0 | AX39: 0
P40: 0 | AG40: 0 | AX40: 0
P41: 0 | AG41: 0 | AX41: 0
P42: 0 | AG42: 0 | AX42: 0
P43: 0 | AG43: 0 | AX43: 0
P44: 0 | AG44: 0 | AX44: 0
P45: 0 | AG45: 0 | AX45: 0
P46: 0 | AG46: 0 | AX46: 0
P47: 0 | AG47: 0 | AX47: 0
P48: 0 | AG48: 0 | AX48: 0
P49: 0 | AG49: 0 | AX49: 0
P50: 0 | AG50: 0 | AX50: 0
P51: 0 | AG51: 0 | AX51: 0
P52: 0 | AG52: 0 | AX52: 0
P53: 0 | AG53: 0 | AX53: 0
P54: 0 | AG54: 0 | AX54: 0
P55: 0 | AG55: 0 | AX55: 0
P56: 0 | AG56: 0 | AX56: 0
P57: 0 | AG57: 0 | AX57: 0
P58: 0 | AG58: 0 | AX58: 0
P59: 0 | AG59: 0 | AX59: 0
P60: 0 | AG60: 0 | AX60: 0
P61: 0 | AG61: 0 | AX61: 0
P62: 0 | AG62: 0 | AX62: 0
P63: 0 | AG63: 0 | AX63: 0
P64: 0 | AG64: 0 | AX64: 0
P65: 0 | AG65: 0 | AX65: 0
P66: 0 | AG66: 0 | AX66: 0
P67: 0 | AG67: 0 | AX67: 0
P68: 0 | AG68: 0 | AX68: 0
P69: 0 | AG69: 0 | AX69: 0
P70: 0 | AG70: 0 | AX70: 0
P71: 0 | AG71: 0 | AX71: 0
P72: 0 | AG72: 0 | AX72: 0
P73: 0 | AG73: 0 | AX73: 0
P74: =SUM(F74:O74) -> 0 | AG74: =SUM(W74:AF74) -> 0 | AX74: =SUM(AN74:AW74) -> 0
P75: 0 | AG75: 0 | AX75: 0
P76: 0 | AG76: 0 | AX76: 0
P77: 0 | AG77: 0 | AX77: 0
P78: 0 | AG78: 0 | AX78: 0
P79: 0 | AG79: 0 | AX79: 0
P80: 0 | AG80: 0 | AX80: 0
P81: 0 | AG81: 0 | AX81: 0
P82: 0 | AG82: 0 | AX82: 0
P83: 0 | AG83: 0 | AX83: 0
P84: 0 | AG84: 0 | AX84: 0
P85: 0 | AG85: 0 | AX85: 0
P86: 0 | AG86: 0 | AX86: 0
P87: 0 | AG87: 0 | AX87: 0
P88: 0 | AG88: 0 | AX88: 0
P89: 0 | AG89: 0 | AX89: 0
P90: 0 | AG90: 0 | AX90: 0
P91: 0 | AG91: 0 | AX91: 0
P92: 0 | AG92: 0 | AX92: 0
P93: 0 | AG93: 0 | AX93: 0
P94: 0 | AG94: 0 | AX94: 0
P95: 0 | AG95: 0 | AX95: 0
P96: 0 | AG96: 0 | AX96: 0
P97: 0 | AG97: 0 | AX97: 0
P98: 0 | AG98: 0 | AX98: 0
P99: 0 | AG99: 0 | AX99: 0
P100: 0 | AG100: 0 | AX100: 0
P101: 0 | AG101: 0 | AX101: 0
P102: 0 | AG102: 0 | AX102: 0
P103: 0 | AG103: 0 | AX103: 0
P104: 0 | AG104: 0 | AX104: 0
P105: 0 | AG105: 0 | AX105: 0
P106: 0 | AG106: 0 | AX106: 0
P107: 0 | AG107: 0 | AX107: 0
P108: 0 | AG108: 0 | AX108: 0
P109: 0 | AG109: 0 | AX109: 0
P110: 0 | AG110: 0 | AX110: 0
P111: 0 | AG111: 0 | AX111: 0
P112: 0 | AG112: 0 | AX112: 0
P113: 0 | AG113: 0 | AX113: 0
P114: 0 | AG114: 0 | AX114: 0
P115: 0 | AG115: 0 | AX115: 0
P116: 0 | AG116: 0 | AX116: 0
P117: 0 | AG117: 0 | AX117: 0
P118: 0 | AG118: 0 | AX118: 0
P119: 0 | AG119: 0 | AX119: 0
P120: 0 | AG120: 0 | AX120: 0
P121: 0 | AG121: 0 | AX121: 0
P122: 0 | AG122: 0 | AX122: 0
P123: 0 | AG123: 0 | AX123: 0
P124: 0 | AG124: 0 | AX124: 0
P125: 0 | AG125: 0 | AX125: 0
P126: 0 | AG126: 0 | AX126: 0
P127: 0 | AG127: 0 | AX127: 0
P128: 0 | AG128: 0 | AX128: 0
P129: 0 | AG129: 0 | AX129: 0
P130: 0 | AG130: 0 | AX130: 0
P131: 0 | AG131: 0 | AX131: 0
P132: 0 | AG132: 0 | AX132: 0
P133: 0 | AG133: 0 | AX133: 0
P134: 0 | AG134: 0 | AX134: 0
P135: 0 | AG135: 0 | AX135: 0
P136: 0 | AG136: 0 | AX136: 0
P137: 0 | AG137: 0 | AX137: 0
P138: =SUM(F138:O138) -> 0 | AG138: =SUM(W138:AF138) -> 0 | AX138: =SUM(AN138:AW138) -> 0
P139: 0 | AG139: 0 | AX139: 0
P140: 0 | AG140: 0 | AX140: 0
P141: 0 | AG141: 0 | AX141: 0
P142: 0 | AG142: 0 | AX142: 0
P143: 0 | AG143: 0 | AX143: 0
P144: 0 | AG144: 0 | AX144: 0
P145: 0 | AG145: 0 | AX145: 0
P146: 0 | AG146: 0 | AX146: 0
P147: 0 | AG147: 0 | AX147: 0
P148: 0 | AG148: 0 | AX148: 0
P149: 0 | AG149: 0 | AX149: 0
P150: 0 | AG150: 0 | AX150: 0
P151: 0 | AG151: 0 | AX151: 0
P152: 0 | AG152: 0 | AX152: 0
P153: 0 | AG153: 0 | AX153: 0
P154: 0 | AG154: 0 | AX154: 0
P155: 0 | AG155: 0 | AX155: 0
P156: 0 | AG156: 0 | AX156: 0
P157: 0 | AG157: 0 | AX157: 0
P158: 0 | AG158: 0 | AX158: 0
P159: 0 | AG159: 0 | AX159: 0
P160: 0 | AG160: 0 | AX160: 0
P161: 0 | AG161: 0 | AX161: 0
P162: 0 | AG162: 0 | AX162: 0
P163: 0 | AG163: 0 | AX163: 0
P164: 0 | AG164: 0 | AX164: 0
P165: 0 | AG165: 0 | AX165: 0
P166: 0 | AG166: 0 | AX166: 0
P167: 0 | AG167: 0 | AX167: 0
P168: 0 | AG168: 0 | AX168: 0
P169: 0 | AG169: 0 | AX169: 0
P170: 0 | AG170: 0 | AX170: 0
P171: 0 | AG171: 0 | AX171: 0
P172: 0 | AG172: 0 | AX172: 0
P173: 0 | AG173: 0 | AX173: 0
P174: 0 | AG174: 0 | AX174: 0
P175: 0 | AG175: 0 | AX175: 0
P176: 0 | AG176: 0 | AX176: 0
P177: 0 | AG177: 0 | AX177: 0
P178: 0 | AG178: 0 | AX178: 0
P179: 0 | AG179: 0 | AX179: 0
P180: 0 | AG180: 0 | AX180: 0
P181: 0 | AG181: 0 | AX181: 0
P182: 0 | AG182: 0 | AX182: 0
P183: 0 | AG183: 0 | AX183: 0
P184: 0 | AG184: 0 | AX184: 0
P185: 0 | AG185: 0 | AX185: 0
P186: 0 | AG186: 0 | AX186: 0
P187: 0 | AG187: 0 | AX187: 0
P188: 0 | AG188: 0 | AX188: 0
P189: 0 | AG189: 0 | AX189: 0
P190: 0 | AG190: 0 | AX190: 0
P191: 0 | AG191: 0 | AX191: 0
P192: 0 | AG192: 0 | AX192: 0
P193: 0 | AG193: 0 | AX193: 0
P194: 0 | AG194: 0 | AX194: 0
P195: 0 | AG195: 0 | AX195: 0
P196: 0 | AG196: 0 | AX196: 0
P197: 0 | AG197: 0 | AX197: 0
P198: 0 | AG198: 0 | AX198: 0
P199: 0 | AG199: 0 | AX199: 0
P200: 0 | AG200: 0 | AX200: 0

Sheet Synth & graphe PMV
B1: Cumul des heures par tranches de PMV et par saison
B2: Saison | C2: =LEFT('Resultats PMV'!F8,5)&"<" -> -1.00< | D2: =LEFT('Resultats PMV'!G8,5)&"<" -> -0.75< | E2: =LEFT('Resultats PMV'!H8,5)&"<" -> -0.50< | F2: =LEFT('Resultats PMV'!I8,5)&"<" -> -0.25< | G2: =LEFT('Resultats PMV'!J8,5)&"<" -> 0.000< | H2: =LEFT('Resultats PMV'!K8,5)&"<" -> 0.250< | I2: =LEFT('Resultats PMV'!L8,5)&"<" -> 0.500< | J2: =LEFT('Resultats PMV'!M8,5)&"<" -> 0.750< | K2: =LEFT('Resultats PMV'!N8,5)&"<" -> 1.000< | L2: =">="&LEFT('Resultats PMV'!O8,5) -> >=1.000
B3: Eté | C3: ='Resultats PMV'!W6 -> 60 | D3: ='Resultats PMV'!X6 -> 45 | E3: ='Resultats PMV'!Y6 -> 69 | F3: ='Resultats PMV'!Z6 -> 87 | G3: ='Resultats PMV'!AA6 -> 154 | H3: ='Resultats PMV'!AB6 -> 186 | I3: ='Resultats PMV'!AC6 -> 257 | J3: ='Resultats PMV'!AD6 -> 331.5 | K3: ='Resultats PMV'!AE6 -> 398 | L3: ='Resultats PMV'!AF6 -> 3644.5
B4: Hiver | C4: ='Resultats PMV'!AN6 -> 1415.5 | D4: ='Resultats PMV'!AO6 -> 1053 | E4: ='Resultats PMV'!AP6 -> 1061.5 | F4: ='Resultats PMV'!AQ6 -> 953.5 | G4: ='Resultats PMV'!AR6 -> 783 | H4: ='Resultats PMV'!AS6 -> 554.5 | I4: ='Resultats PMV'!AT6 -> 434.5 | J4: ='Resultats PMV'!AU6 -> 299 | K4: ='Resultats PMV'!AV6 -> 237.5 | L4: ='Resultats PMV'!AW6 -> 504
B5: Année | C5: =SUM(C3:C4) -> 1475.5 | D5: 1098 | E5: 1130.5 | F5: 1040.5 | G5: 937 | H5: 740.5 | I5: 691.5 | J5: 630.5 | K5: 635.5 | L5: 4148.5
B7: Pourcentage du temps par tranches de PMV et par saison
B8: Saison | C8: =C2 -> -1.00< | D8: =D2 -> -0.75< | E8: -0.50< | F8: -0.25< | G8: 0.000< | H8: 0.250< | I8: 0.500< | J8: 0.750< | K8: 1.000< | L8: >=1.000
B9: Eté | C9: =C3/'Resultats PMV'!$AG$6 -> 0.01146788991 | D9: =D3/'Resultats PMV'!$AG$6 -> 0.008600917431 | E9: =E3/'Resultats PMV'!$AG$6 -> 0.01318807339 | F9: =F3/'Resultats PMV'!$AG$6 -> 0.01662844037 | G9: =G3/'Resultats PMV'!$AG$6 -> 0.02943425076 | H9: =H3/'Resultats PMV'!$AG$6 -> 0.03555045872 | I9: =I3/'Resultats PMV'!$AG$6 -> 0.04912079511 | J9: =J3/'Resultats PMV'!$AG$6 -> 0.06336009174 | K9: =K3/'Resultats PMV'!$AG$6 -> 0.07607033639 | L9: =L3/'Resultats PMV'!$AG$6 -> 0.6965787462
B10: Hiver | C10: =C4/'Resultats PMV'!$AX$6 -> 0.1940104167 | D10: =D4/'Resultats PMV'!$AX$6 -> 0.1443256579 | E10: =E4/'Resultats PMV'!$AX$6 -> 0.1454906798 | F10: =F4/'Resultats PMV'!$AX$6 -> 0.1306880482 | G10: =G4/'Resultats PMV'!$AX$6 -> 0.1073190789 | H10: =H4/'Resultats PMV'!$AX$6 -> 0.07600054825 | I10: =I4/'Resultats PMV'!$AX$6 -> 0.05955317982 | J10: =J4/'Resultats PMV'!$AX$6 -> 0.04098135965 | K10: =K4/'Resultats PMV'!$AX$6 -> 0.03255208333 | L10: =L4/'Resultats PMV'!$AX$6 -> 0.06907894737
B11: Année | C11: =C5/'Resultats PMV'!$P$6 -> 0.1177761814 | D11: =D5/'Resultats PMV'!$P$6 -> 0.08764367816 | E11: =E5/'Resultats PMV'!$P$6 -> 0.09023786718 | F11: =F5/'Resultats PMV'!$P$6 -> 0.08305395913 | G11: =G5/'Resultats PMV'!$P$6 -> 0.07479246488 | H11: =H5/'Resultats PMV'!$P$6 -> 0.05910759898 | I11: =I5/'Resultats PMV'!$P$6 -> 0.05519636015 | J11: =J5/'Resultats PMV'!$P$6 -> 0.05032726692 | K11: =K5/'Resultats PMV'!$P$6 -> 0.05072637292 | L11: =L5/'Resultats PMV'!$P$6 -> 0.3311382503
B17: Répartition des PMV par zone sur l'ANNEE | O17: Répartition des PMV par zone sur l'ÉTÉ | AB17: Répartition des PMV par zone sur l'HIVER
B18: Zone | C18: =C2 -> -1.00< | D18: =D2 -> -0.75< | E18: -0.50< | F18: -0.25< | G18: 0.000< | H18: 0.250< | I18: 0.500< | J18: 0.750< | K18: 1.000< | L18: >=1.000 | M18: Temps hors confort | O18: Zone | P18: =C18 -> -1.00< | Q18: =D18 -> -0.75< | R18: -0.50< | S18: -0.25< | T18: 0.000< | U18: 0.250< | V18: 0.500< | W18: 0.750< | X18: 1.000< | Y18: >=1.000 | Z18: Temps hors confort | AB18: Zone | AC18: =P18 -> -1.00< | AD18: =Q18 -> -0.75< | AE18: =R18 -> -0.50< | AF18: =S18 -> -0.25< | AG18: =T18 -> 0.000< | AH18: =U18 -> 0.250< | AI18: =V18 -> 0.500< | AJ18: =W18 -> 0.750< | AK18: =X18 -> 1.000< | AL18: =Y18 -> >=1.000 | AM18: Temps hors confort
B19: ='Resultats PMV'!A9 -> FLOOR0:ZONE1 | C19: ='Resultats PMV'!F9/'Resultats PMV'!$P9 -> 0.1016922095 | D19: ='Resultats PMV'!G9/'Resultats PMV'!$P9 -> 0.06449553001 | E19: ='Resultats PMV'!H9/'Resultats PMV'!$P9 -> 0.08061941252 | F19: ='Resultats PMV'!I9/'Resultats PMV'!$P9 -> 0.08173690932 | G19: ='Resultats PMV'!J9/'Resultats PMV'!$P9 -> 0.07391443167 | H19: ='Resultats PMV'!K9/'Resultats PMV'!$P9 -> 0.06593231162 | I19: ='Resultats PMV'!L9/'Resultats PMV'!$P9 -> 0.06992337165 | J19: ='Resultats PMV'!M9/'Resultats PMV'!$P9 -> 0.062899106 | K19: ='Resultats PMV'!N9/'Resultats PMV'!$P9 -> 0.05172413793 | L19: ='Resultats PMV'!O9/'Resultats PMV'!$P9 -> 0.3470625798 | M19: =1-SUM(F19:I19) -> 0.7084929757 | O19: ='Resultats PMV'!R9 -> FLOOR0:ZONE1 | P19: ='Resultats PMV'!S9/'Resultats PMV'!$P9 -> 0 | Q19: ='Resultats PMV'!T9/'Resultats PMV'!$P9 -> 0 | R19: ='Resultats PMV'!U9/'Resultats PMV'!$P9 -> -0.00319284802 | S19: ='Resultats PMV'!V9/'Resultats PMV'!$P9 -> 0.0004789272031 | T19: ='Resultats PMV'!W9/'Resultats PMV'!$P9 -> 0.004948914432 | U19: ='Resultats PMV'!X9/'Resultats PMV'!$P9 -> 0.003352490421 | V19: ='Resultats PMV'!Y9/'Resultats PMV'!$P9 -> 0.005268199234 | W19: ='Resultats PMV'!Z9/'Resultats PMV'!$P9 -> 0.007503192848 | X19: ='Resultats PMV'!AA9/'Resultats PMV'!$P9 -> 0.01213282248 | Y19: ='Resultats PMV'!AB9/'Resultats PMV'!$P9 -> 0.0150063857 | Z19: =1-SUM(S19:V19) -> 0.9859514687 | AB19: ='Resultats PMV'!AI9 -> FLOOR0:ZONE1 | AC19: ='Resultats PMV'!AN9/'Resultats PMV'!$AX9 -> 0.1661184211 | AD19: ='Resultats PMV'!AO9/'Resultats PMV'!$AX9 -> 0.1049890351 | AE19: ='Resultats PMV'!AP9/'Resultats PMV'!$AX9 -> 0.1293859649 | AF19: ='Resultats PMV'!AQ9/'Resultats PMV'!$AX9 -> 0.1274671053 | AG19: ='Resultats PMV'!AR9/'Resultats PMV'!$AX9 -> 0.1060855263 | AH19: ='Resultats PMV'!AS9/'Resultats PMV'!$AX9 -> 0.08744517544 | AI19: ='Resultats PMV'!AT9/'Resultats PMV'!$AX9 -> 0.08662280702 | AJ19: ='Resultats PMV'!AU9/'Resultats PMV'!$AX9 -> 0.06222587719 | AK19: ='Resultats PMV'!AV9/'Resultats PMV'!$AX9 -> 0.03536184211 | AL19: ='Resultats PMV'!AW9/'Resultats PMV'!$AX9 -> 0.09429824561 | AM19: =1-SUM(AF19:AI19) -> 0.592379386
B20: ='Resultats PMV'!A10 -> FLOOR0:ZONE2 | C20: ='Resultats PMV'!F10/'Resultats PMV'!$P10 -> 0.1433588761 | D20: ='Resultats PMV'!G10/'Resultats PMV'!$P10 -> 0.09115581098 | E20: ='Resultats PMV'!H10/'Resultats PMV'!$P10 -> 0.08604725415 | F20: ='Resultats PMV'!I10/'Resultats PMV'!$P10 -> 0.08301404853 | G20: ='Resultats PMV'!J10/'Resultats PMV'!$P10 -> 0.07662835249 | H20: ='Resultats PMV'!K10/'Resultats PMV'!$P10 -> 0.05890804598 | I20: ='Resultats PMV'!L10/'Resultats PMV'!$P10 -> 0.04342273308 | J20: ='Resultats PMV'!M10/'Resultats PMV'!$P10 -> 0.0469348659 | K20: ='Resultats PMV'!N10/'Resultats PMV'!$P10 -> 0.05348020434 | L20: ='Resultats PMV'!O10/'Resultats PMV'!$P10 -> 0.3170498084 | M20: =1-SUM(F20:I20) -> 0.7380268199 | O20: ='Resultats PMV'!R10 -> FLOOR0:ZONE2 | P20: ='Resultats PMV'!S10/'Resultats PMV'!$P10 -> 0 | Q20: ='Resultats PMV'!T10/'Resultats PMV'!$P10 -> 0 | R20: ='Resultats PMV'!U10/'Resultats PMV'!$P10 -> -0.00319284802 | S20: ='Resultats PMV'!V10/'Resultats PMV'!$P10 -> 0.0004789272031 | T20: ='Resultats PMV'!W10/'Resultats PMV'!$P10 -> 0.005268199234 | U20: ='Resultats PMV'!X10/'Resultats PMV'!$P10 -> 0.00319284802 | V20: ='Resultats PMV'!Y10/'Resultats PMV'!$P10 -> 0.005108556833 | W20: ='Resultats PMV'!Z10/'Resultats PMV'!$P10 -> 0.009099616858 | X20: ='Resultats PMV'!AA10/'Resultats PMV'!$P10 -> 0.01197318008 | Y20: ='Resultats PMV'!AB10/'Resultats PMV'!$P10 -> 0.01229246488 | Z20: =1-SUM(S20:V20) -> 0.9859514687 | AB20: ='Resultats PMV'!AI10 -> FLOOR0:ZONE2 | AC20: ='Resultats PMV'!AN10/'Resultats PMV'!$AX10 -> 0.2371162281 | AD20: ='Resultats PMV'!AO10/'Resultats PMV'!$AX10 -> 0.1510416667 | AE20: ='Resultats PMV'!AP10/'Resultats PMV'!$AX10 -> 0.1389802632 | AF20: ='Resultats PMV'!AQ10/'Resultats PMV'!$AX10 -> 0.1269188596 | AG20: ='Resultats PMV'!AR10/'Resultats PMV'!$AX10 -> 0.1110197368 | AH20: ='Resultats PMV'!AS10/'Resultats PMV'!$AX10 -> 0.08004385965 | AI20: ='Resultats PMV'!AT10/'Resultats PMV'!$AX10 -> 0.04331140351 | AJ20: ='Resultats PMV'!AU10/'Resultats PMV'!$AX10 -> 0.02439692982 | AK20: ='Resultats PMV'!AV10/'Resultats PMV'!$AX10 -> 0.0350877193 | AL20: ='Resultats PMV'!AW10/'Resultats PMV'!$AX10 -> 0.05208333333 | AM20: =1-SUM(AF20:AI20) -> 0.6387061404
B21: ='Resultats PMV'!A11 -> FLOOR1:SANITAIRES | C21: ='Resultats PMV'!F11/'Resultats PMV'!$P11 -> 0.1013729246 | D21: ='Resultats PMV'!G11/'Resultats PMV'!$P11 -> 0.0937100894 | E21: ='Resultats PMV'!H11/'Resultats PMV'!$P11 -> 0.1008939974 | F21: ='Resultats PMV'!I11/'Resultats PMV'!$P11 -> 0.08524904215 | G21: ='Resultats PMV'!J11/'Resultats PMV'!$P11 -> 0.07551085568 | H21: ='Resultats PMV'!K11/'Resultats PMV'!$P11 -> 0.05699233716 | I21: ='Resultats PMV'!L11/'Resultats PMV'!$P11 -> 0.05284163474 | J21: ='Resultats PMV'!M11/'Resultats PMV'!$P11 -> 0.0474137931 | K21: ='Resultats PMV'!N11/'Resultats PMV'!$P11 -> 0.0462962963 | L21: ='Resultats PMV'!O11/'Resultats PMV'!$P11 -> 0.3397190294 | M21: 0.7294061303 | O21: ='Resultats PMV'!R11 -> FLOOR1:SANITAIRES | P21: ='Resultats PMV'!S11/'Resultats PMV'!$P11 -> 0 | Q21: ='Resultats PMV'!T11/'Resultats PMV'!$P11 -> 0 | R21: ='Resultats PMV'!U11/'Resultats PMV'!$P11 -> -0.00319284802 | S21: ='Resultats PMV'!V11/'Resultats PMV'!$P11 -> 0.0004789272031 | T21: ='Resultats PMV'!W11/'Resultats PMV'!$P11 -> 0.003512132822 | U21: ='Resultats PMV'!X11/'Resultats PMV'!$P11 -> 0.004310344828 | V21: ='Resultats PMV'!Y11/'Resultats PMV'!$P11 -> 0.005906768838 | W21: ='Resultats PMV'!Z11/'Resultats PMV'!$P11 -> 0.00462962963 | X21: ='Resultats PMV'!AA11/'Resultats PMV'!$P11 -> 0.01069604087 | Y21: ='Resultats PMV'!AB11/'Resultats PMV'!$P11 -> 0.0159642401 | Z21: 0.9857918263 | AB21: ='Resultats PMV'!AI11 -> FLOOR1:SANITAIRES | AC21: ='Resultats PMV'!AN11/'Resultats PMV'!$AX11 -> 0.1680372807 | AD21: ='Resultats PMV'!AO11/'Resultats PMV'!$AX11 -> 0.1535087719 | AE21: ='Resultats PMV'!AP11/'Resultats PMV'!$AX11 -> 0.1631030702 | AF21: ='Resultats PMV'!AQ11/'Resultats PMV'!$AX11 -> 0.1384320175 | AG21: ='Resultats PMV'!AR11/'Resultats PMV'!$AX11 -> 0.1112938596 | AH21: ='Resultats PMV'!AS11/'Resultats PMV'!$AX11 -> 0.0704495614 | AI21: ='Resultats PMV'!AT11/'Resultats PMV'!$AX11 -> 0.05317982456 | AJ21: ='Resultats PMV'!AU11/'Resultats PMV'!$AX11 -> 0.04440789474 | AK21: ='Resultats PMV'!AV11/'Resultats PMV'!$AX11 -> 0.02987938596 | AL21: ='Resultats PMV'!AW11/'Resultats PMV'!$AX11 -> 0.06770833333 | AM21: 0.6266447368
B22: ='Resultats PMV'!A12 -> FLOOR1:ZONE1 | C22: ='Resultats PMV'!F12/'Resultats PMV'!$P12 -> 0.1246807152 | D22: ='Resultats PMV'!G12/'Resultats PMV'!$P12 -> 0.1012132822 | E22: ='Resultats PMV'!H12/'Resultats PMV'!$P12 -> 0.0933908046 | F22: ='Resultats PMV'!I12/'Resultats PMV'!$P12 -> 0.08221583653 | G22: ='Resultats PMV'!J12/'Resultats PMV'!$P12 -> 0.07311621967 | H22: ='Resultats PMV'!K12/'Resultats PMV'!$P12 -> 0.05459770115 | I22: ='Resultats PMV'!L12/'Resultats PMV'!$P12 -> 0.05459770115 | J22: ='Resultats PMV'!M12/'Resultats PMV'!$P12 -> 0.04406130268 | K22: ='Resultats PMV'!N12/'Resultats PMV'!$P12 -> 0.05140485313 | L22: ='Resultats PMV'!O12/'Resultats PMV'!$P12 -> 0.3207215837 | M22: 0.7354725415 | O22: ='Resultats PMV'!R12 -> FLOOR1:ZONE1 | P22: ='Resultats PMV'!S12/'Resultats PMV'!$P12 -> 0 | Q22: ='Resultats PMV'!T12/'Resultats PMV'!$P12 -> 0 | R22: ='Resultats PMV'!U12/'Resultats PMV'!$P12 -> -0.00319284802 | S22: ='Resultats PMV'!V12/'Resultats PMV'!$P12 -> 0.0004789272031 | T22: ='Resultats PMV'!W12/'Resultats PMV'!$P12 -> 0.005427841635 | U22: ='Resultats PMV'!X12/'Resultats PMV'!$P12 -> 0.003512132822 | V22: ='Resultats PMV'!Y12/'Resultats PMV'!$P12 -> 0.005747126437 | W22: ='Resultats PMV'!Z12/'Resultats PMV'!$P12 -> 0.006545338442 | X22: ='Resultats PMV'!AA12/'Resultats PMV'!$P12 -> 0.01436781609 | Y22: ='Resultats PMV'!AB12/'Resultats PMV'!$P12 -> 0.0161238825 | Z22: 0.9848339719 | AB22: ='Resultats PMV'!AI12 -> FLOOR1:ZONE1 | AC22: ='Resultats PMV'!AN12/'Resultats PMV'!$AX12 -> 0.2047697368 | AD22: ='Resultats PMV'!AO12/'Resultats PMV'!$AX12 -> 0.1677631579 | AE22: ='Resultats PMV'!AP12/'Resultats PMV'!$AX12 -> 0.1504934211 | AF22: ='Resultats PMV'!AQ12/'Resultats PMV'!$AX12 -> 0.1299342105 | AG22: ='Resultats PMV'!AR12/'Resultats PMV'!$AX12 -> 0.100877193 | AH22: ='Resultats PMV'!AS12/'Resultats PMV'!$AX12 -> 0.06606359649 | AI22: ='Resultats PMV'!AT12/'Resultats PMV'!$AX12 -> 0.05509868421 | AJ22: ='Resultats PMV'!AU12/'Resultats PMV'!$AX12 -> 0.03289473684 | AK22: ='Resultats PMV'!AV12/'Resultats PMV'!$AX12 -> 0.02987938596 | AL22: ='Resultats PMV'!AW12/'Resultats PMV'!$AX12 -> 0.06222587719 | AM22: 0.6480263158
B23: ='Resultats PMV'!A13 -> 0 | C23: ='Resultats PMV'!F13/'Resultats PMV'!$P13 ->  | D23: ='Resultats PMV'!G13/'Resultats PMV'!$P13 ->  | E23: ='Resultats PMV'!H13/'Resultats PMV'!$P13 ->  | F23: ='Resultats PMV'!I13/'Resultats PMV'!$P13 ->  | G23: ='Resultats PMV'!J13/'Resultats PMV'!$P13 ->  | H23: ='Resultats PMV'!K13/'Resultats PMV'!$P13 ->  | I23: ='Resultats PMV'!L13/'Resultats PMV'!$P13 ->  | J23: ='Resultats PMV'!M13/'Resultats PMV'!$P13 ->  | K23: ='Resultats PMV'!N13/'Resultats PMV'!$P13 ->  | L23: ='Resultats PMV'!O13/'Resultats PMV'!$P13 ->  | O23: ='Resultats PMV'!R13 -> 0 | P23: ='Resultats PMV'!S13/'Resultats PMV'!$P13 ->  | Q23: ='Resultats PMV'!T13/'Resultats PMV'!$P13 ->  | R23: ='Resultats PMV'!U13/'Resultats PMV'!$P13 ->  | S23: ='Resultats PMV'!V13/'Resultats PMV'!$P13 ->  | T23: ='Resultats PMV'!W13/'Resultats PMV'!$P13 ->  | U23: ='Resultats PMV'!X13/'Resultats PMV'!$P13 ->  | V23: ='Resultats PMV'!Y13/'Resultats PMV'!$P13 ->  | W23: ='Resultats PMV'!Z13/'Resultats PMV'!$P13 ->  | X23: ='Resultats PMV'!AA13/'Resultats PMV'!$P13 ->  | Y23: ='Resultats PMV'!AB13/'Resultats PMV'!$P13 ->  | AB23: ='Resultats PMV'!AI13 -> 0 | AC23: ='Resultats PMV'!AN13/'Resultats PMV'!$AX13 ->  | AD23: ='Resultats PMV'!AO13/'Resultats PMV'!$AX13 ->  | AE23: ='Resultats PMV'!AP13/'Resultats PMV'!$AX13 ->  | AF23: ='Resultats PMV'!AQ13/'Resultats PMV'!$AX13 ->  | AG23: ='Resultats PMV'!AR13/'Resultats PMV'!$AX13 ->  | AH23: ='Resultats PMV'!AS13/'Resultats PMV'!$AX13 ->  | AI23: ='Resultats PMV'!AT13/'Resultats PMV'!$AX13 ->  | AJ23: ='Resultats PMV'!AU13/'Resultats PMV'!$AX13 ->  | AK23: ='Resultats PMV'!AV13/'Resultats PMV'!$AX13 ->  | AL23: ='Resultats PMV'!AW13/'Resultats PMV'!$AX13 -> 
B24: ='Resultats PMV'!A14 -> 0 | C24: ='Resultats PMV'!F14/'Resultats PMV'!$P14 ->  | D24: ='Resultats PMV'!G14/'Resultats PMV'!$P14 ->  | E24: ='Resultats PMV'!H14/'Resultats PMV'!$P14 ->  | F24: ='Resultats PMV'!I14/'Resultats PMV'!$P14 ->  | G24: ='Resultats PMV'!J14/'Resultats PMV'!$P14 ->  | H24: ='Resultats PMV'!K14/'Resultats PMV'!$P14 ->  | I24: ='Resultats PMV'!L14/'Resultats PMV'!$P14 ->  | J24: ='Resultats PMV'!M14/'Resultats PMV'!$P14 ->  | K24: ='Resultats PMV'!N14/'Resultats PMV'!$P14 ->  | L24: ='Resultats PMV'!O14/'Resultats PMV'!$P14 ->  | O24: ='Resultats PMV'!R14 -> 0 | P24: ='Resultats PMV'!S14/'Resultats PMV'!$P14 ->  | Q24: ='Resultats PMV'!T14/'Resultats PMV'!$P14 ->  | R24: ='Resultats PMV'!U14/'Resultats PMV'!$P14 ->  | S24: ='Resultats PMV'!V14/'Resultats PMV'!$P14 ->  | T24: ='Resultats PMV'!W14/'Resultats PMV'!$P14 ->  | U24: ='Resultats PMV'!X14/'Resultats PMV'!$P14 ->  | V24: ='Resultats PMV'!Y14/'Resultats PMV'!$P14 ->  | W24: ='Resultats PMV'!Z14/'Resultats PMV'!$P14 ->  | X24: ='Resultats PMV'!AA14/'Resultats PMV'!$P14 ->  | Y24: ='Resultats PMV'!AB14/'Resultats PMV'!$P14 ->  | AB24: ='Resultats PMV'!AI14 -> 0 | AC24: ='Resultats PMV'!AN14/'Resultats PMV'!$AX14 ->  | AD24: ='Resultats PMV'!AO14/'Resultats PMV'!$AX14 ->  | AE24: ='Resultats PMV'!AP14/'Resultats PMV'!$AX14 ->  | AF24: ='Resultats PMV'!AQ14/'Resultats PMV'!$AX14 ->  | AG24: ='Resultats PMV'!AR14/'Resultats PMV'!$AX14 ->  | AH24: ='Resultats PMV'!AS14/'Resultats PMV'!$AX14 ->  | AI24: ='Resultats PMV'!AT14/'Resultats PMV'!$AX14 ->  | AJ24: ='Resultats PMV'!AU14/'Resultats PMV'!$AX14 ->  | AK24: ='Resultats PMV'!AV14/'Resultats PMV'!$AX14 ->  | AL24: ='Resultats PMV'!AW14/'Resultats PMV'!$AX14 -> 
B25: ='Resultats PMV'!A15 -> 0 | C25: ='Resultats PMV'!F15/'Resultats PMV'!$P15 ->  | D25: ='Resultats PMV'!G15/'Resultats PMV'!$P15 ->  | E25: ='Resultats PMV'!H15/'Resultats PMV'!$P15 ->  | F25: ='Resultats PMV'!I15/'Resultats PMV'!$P15 ->  | G25: ='Resultats PMV'!J15/'Resultats PMV'!$P15 ->  | H25: ='Resultats PMV'!K15/'Resultats PMV'!$P15 ->  | I25: ='Resultats PMV'!L15/'Resultats PMV'!$P15 ->  | J25: ='Resultats PMV'!M15/'Resultats PMV'!$P15 ->  | K25: ='Resultats PMV'!N15/'Resultats PMV'!$P15 ->  | L25: ='Resultats PMV'!O15/'Resultats PMV'!$P15 ->  | O25: ='Resultats PMV'!R15 -> 0 | P25: ='Resultats PMV'!S15/'Resultats PMV'!$P15 ->  | Q25: ='Resultats PMV'!T15/'Resultats PMV'!$P15 ->  | R25: ='Resultats PMV'!U15/'Resultats PMV'!$P15 ->  | S25: ='Resultats PMV'!V15/'Resultats PMV'!$P15 ->  | T25: ='Resultats PMV'!W15/'Resultats PMV'!$P15 ->  | U25: ='Resultats PMV'!X15/'Resultats PMV'!$P15 ->  | V25: ='Resultats PMV'!Y15/'Resultats PMV'!$P15 ->  | W25: ='Resultats PMV'!Z15/'Resultats PMV'!$P15 ->  | X25: ='Resultats PMV'!AA15/'Resultats PMV'!$P15 ->  | Y25: ='Resultats PMV'!AB15/'Resultats PMV'!$P15 ->  | AB25: ='Resultats PMV'!AI15 -> 0 | AC25: ='Resultats PMV'!AN15/'Resultats PMV'!$AX15 ->  | AD25: ='Resultats PMV'!AO15/'Resultats PMV'!$AX15 ->  | AE25: ='Resultats PMV'!AP15/'Resultats PMV'!$AX15 ->  | AF25: ='Resultats PMV'!AQ15/'Resultats PMV'!$AX15 ->  | AG25: ='Resultats PMV'!AR15/'Resultats PMV'!$AX15 ->  | AH25: ='Resultats PMV'!AS15/'Resultats PMV'!$AX15 ->  | AI25: ='Resultats PMV'!AT15/'Resultats PMV'!$AX15 ->  | AJ25: ='Resultats PMV'!AU15/'Resultats PMV'!$AX15 ->  | AK25: ='Resultats PMV'!AV15/'Resultats PMV'!$AX15 ->  | AL25: ='Resultats PMV'!AW15/'Resultats PMV'!$AX15 -> 
B26: ='Resultats PMV'!A16 -> 0 | C26: ='Resultats PMV'!F16/'Resultats PMV'!$P16 ->  | D26: ='Resultats PMV'!G16/'Resultats PMV'!$P16 ->  | E26: ='Resultats PMV'!H16/'Resultats PMV'!$P16 ->  | F26: ='Resultats PMV'!I16/'Resultats PMV'!$P16 ->  | G26: ='Resultats PMV'!J16/'Resultats PMV'!$P16 ->  | H26: ='Resultats PMV'!K16/'Resultats PMV'!$P16 ->  | I26: ='Resultats PMV'!L16/'Resultats PMV'!$P16 ->  | J26: ='Resultats PMV'!M16/'Resultats PMV'!$P16 ->  | K26: ='Resultats PMV'!N16/'Resultats PMV'!$P16 ->  | L26: ='Resultats PMV'!O16/'Resultats PMV'!$P16 ->  | O26: ='Resultats PMV'!R16 -> 0 | P26: ='Resultats PMV'!S16/'Resultats PMV'!$P16 ->  | Q26: ='Resultats PMV'!T16/'Resultats PMV'!$P16 ->  | R26: ='Resultats PMV'!U16/'Resultats PMV'!$P16 ->  | S26: ='Resultats PMV'!V16/'Resultats PMV'!$P16 ->  | T26: ='Resultats PMV'!W16/'Resultats PMV'!$P16 ->  | U26: ='Resultats PMV'!X16/'Resultats PMV'!$P16 ->  | V26: ='Resultats PMV'!Y16/'Resultats PMV'!$P16 ->  | W26: ='Resultats PMV'!Z16/'Resultats PMV'!$P16 ->  | X26: ='Resultats PMV'!AA16/'Resultats PMV'!$P16 ->  | Y26: ='Resultats PMV'!AB16/'Resultats PMV'!$P16 ->  | AB26: ='Resultats PMV'!AI16 -> 0 | AC26: ='Resultats PMV'!AN16/'Resultats PMV'!$AX16 ->  | AD26: ='Resultats PMV'!AO16/'Resultats PMV'!$AX16 ->  | AE26: ='Resultats PMV'!AP16/'Resultats PMV'!$AX16 ->  | AF26: ='Resultats PMV'!AQ16/'Resultats PMV'!$AX16 ->  | AG26: ='Resultats PMV'!AR16/'Resultats PMV'!$AX16 ->  | AH26: ='Resultats PMV'!AS16/'Resultats PMV'!$AX16 ->  | AI26: ='Resultats PMV'!AT16/'Resultats PMV'!$AX16 ->  | AJ26: ='Resultats PMV'!AU16/'Resultats PMV'!$AX16 ->  | AK26: ='Resultats PMV'!AV16/'Resultats PMV'!$AX16 ->  | AL26: ='Resultats PMV'!AW16/'Resultats PMV'!$AX16 -> 
B27: ='Resultats PMV'!A17 -> 0 | C27: ='Resultats PMV'!F17/'Resultats PMV'!$P17 ->  | D27: ='Resultats PMV'!G17/'Resultats PMV'!$P17 ->  | E27: ='Resultats PMV'!H17/'Resultats PMV'!$P17 ->  | F27: ='Resultats PMV'!I17/'Resultats PMV'!$P17 ->  | G27: ='Resultats PMV'!J17/'Resultats PMV'!$P17 ->  | H27: ='Resultats PMV'!K17/'Resultats PMV'!$P17 ->  | I27: ='Resultats PMV'!L17/'Resultats PMV'!$P17 ->  | J27: ='Resultats PMV'!M17/'Resultats PMV'!$P17 ->  | K27: ='Resultats PMV'!N17/'Resultats PMV'!$P17 ->  | L27: ='Resultats PMV'!O17/'Resultats PMV'!$P17 ->  | O27: ='Resultats PMV'!R17 -> 0 | P27: ='Resultats PMV'!S17/'Resultats PMV'!$P17 ->  | Q27: ='Resultats PMV'!T17/'Resultats PMV'!$P17 ->  | R27: ='Resultats PMV'!U17/'Resultats PMV'!$P17 ->  | S27: ='Resultats PMV'!V17/'Resultats PMV'!$P17 ->  | T27: ='Resultats PMV'!W17/'Resultats PMV'!$P17 ->  | U27: ='Resultats PMV'!X17/'Resultats PMV'!$P17 ->  | V27: ='Resultats PMV'!Y17/'Resultats PMV'!$P17 ->  | W27: ='Resultats PMV'!Z17/'Resultats PMV'!$P17 ->  | X27: ='Resultats PMV'!AA17/'Resultats PMV'!$P17 ->  | Y27: ='Resultats PMV'!AB17/'Resultats PMV'!$P17 ->  | AB27: ='Resultats PMV'!AI17 -> 0 | AC27: ='Resultats PMV'!AN17/'Resultats PMV'!$AX17 ->  | AD27: ='Resultats PMV'!AO17/'Resultats PMV'!$AX17 ->  | AE27: ='Resultats PMV'!AP17/'Resultats PMV'!$AX17 ->  | AF27: ='Resultats PMV'!AQ17/'Resultats PMV'!$AX17 ->  | AG27: ='Resultats PMV'!AR17/'Resultats PMV'!$AX17 ->  | AH27: ='Resultats PMV'!AS17/'Resultats PMV'!$AX17 ->  | AI27: ='Resultats PMV'!AT17/'Resultats PMV'!$AX17 ->  | AJ27: ='Resultats PMV'!AU17/'Resultats PMV'!$AX17 ->  | AK27: ='Resultats PMV'!AV17/'Resultats PMV'!$AX17 ->  | AL27: ='Resultats PMV'!AW17/'Resultats PMV'!$AX17 -> 
B28: ='Resultats PMV'!A18 -> 0 | C28: ='Resultats PMV'!F18/'Resultats PMV'!$P18 ->  | D28: ='Resultats PMV'!G18/'Resultats PMV'!$P18 ->  | E28: ='Resultats PMV'!H18/'Resultats PMV'!$P18 ->  | F28: ='Resultats PMV'!I18/'Resultats PMV'!$P18 ->  | G28: ='Resultats PMV'!J18/'Resultats PMV'!$P18 ->  | H28: ='Resultats PMV'!K18/'Resultats PMV'!$P18 ->  | I28: ='Resultats PMV'!L18/'Resultats PMV'!$P18 ->  | J28: ='Resultats PMV'!M18/'Resultats PMV'!$P18 ->  | K28: ='Resultats PMV'!N18/'Resultats PMV'!$P18 ->  | L28: ='Resultats PMV'!O18/'Resultats PMV'!$P18 ->  | O28: ='Resultats PMV'!R18 -> 0 | P28: ='Resultats PMV'!S18/'Resultats PMV'!$P18 ->  | Q28: ='Resultats PMV'!T18/'Resultats PMV'!$P18 ->  | R28: ='Resultats PMV'!U18/'Resultats PMV'!$P18 ->  | S28: ='Resultats PMV'!V18/'Resultats PMV'!$P18 ->  | T28: ='Resultats PMV'!W18/'Resultats PMV'!$P18 ->  | U28: ='Resultats PMV'!X18/'Resultats PMV'!$P18 ->  | V28: ='Resultats PMV'!Y18/'Resultats PMV'!$P18 ->  | W28: ='Resultats PMV'!Z18/'Resultats PMV'!$P18 ->  | X28: ='Resultats PMV'!AA18/'Resultats PMV'!$P18 ->  | Y28: ='Resultats PMV'!AB18/'Resultats PMV'!$P18 ->  | AB28: ='Resultats PMV'!AI18 -> 0 | AC28: ='Resultats PMV'!AN18/'Resultats PMV'!$AX18 ->  | AD28: ='Resultats PMV'!AO18/'Resultats PMV'!$AX18 ->  | AE28: ='Resultats PMV'!AP18/'Resultats PMV'!$AX18 ->  | AF28: ='Resultats PMV'!AQ18/'Resultats PMV'!$AX18 ->  | AG28: ='Resultats PMV'!AR18/'Resultats PMV'!$AX18 ->  | AH28: ='Resultats PMV'!AS18/'Resultats PMV'!$AX18 ->  | AI28: ='Resultats PMV'!AT18/'Resultats PMV'!$AX18 ->  | AJ28: ='Resultats PMV'!AU18/'Resultats PMV'!$AX18 ->  | AK28: ='Resultats PMV'!AV18/'Resultats PMV'!$AX18 ->  | AL28: ='Resultats PMV'!AW18/'Resultats PMV'!$AX18 -> 
B29: ='Resultats PMV'!A19 -> 0 | C29: ='Resultats PMV'!F19/'Resultats PMV'!$P19 ->  | D29: ='Resultats PMV'!G19/'Resultats PMV'!$P19 ->  | E29: ='Resultats PMV'!H19/'Resultats PMV'!$P19 ->  | F29: ='Resultats PMV'!I19/'Resultats PMV'!$P19 ->  | G29: ='Resultats PMV'!J19/'Resultats PMV'!$P19 ->  | H29: ='Resultats PMV'!K19/'Resultats PMV'!$P19 ->  | I29: ='Resultats PMV'!L19/'Resultats PMV'!$P19 ->  | J29: ='Resultats PMV'!M19/'Resultats PMV'!$P19 ->  | K29: ='Resultats PMV'!N19/'Resultats PMV'!$P19 ->  | L29: ='Resultats PMV'!O19/'Resultats PMV'!$P19 ->  | O29: ='Resultats PMV'!R19 -> 0 | P29: ='Resultats PMV'!S19/'Resultats PMV'!$P19 ->  | Q29: ='Resultats PMV'!T19/'Resultats PMV'!$P19 ->  | R29: ='Resultats PMV'!U19/'Resultats PMV'!$P19 ->  | S29: ='Resultats PMV'!V19/'Resultats PMV'!$P19 ->  | T29: ='Resultats PMV'!W19/'Resultats PMV'!$P19 ->  | U29: ='Resultats PMV'!X19/'Resultats PMV'!$P19 ->  | V29: ='Resultats PMV'!Y19/'Resultats PMV'!$P19 ->  | W29: ='Resultats PMV'!Z19/'Resultats PMV'!$P19 ->  | X29: ='Resultats PMV'!AA19/'Resultats PMV'!$P19 ->  | Y29: ='Resultats PMV'!AB19/'Resultats PMV'!$P19 ->  | AB29: ='Resultats PMV'!AI19 -> 0 | AC29: ='Resultats PMV'!AN19/'Resultats PMV'!$AX19 ->  | AD29: ='Resultats PMV'!AO19/'Resultats PMV'!$AX19 ->  | AE29: ='Resultats PMV'!AP19/'Resultats PMV'!$AX19 ->  | AF29: ='Resultats PMV'!AQ19/'Resultats PMV'!$AX19 ->  | AG29: ='Resultats PMV'!AR19/'Resultats PMV'!$AX19 ->  | AH29: ='Resultats PMV'!AS19/'Resultats PMV'!$AX19 ->  | AI29: ='Resultats PMV'!AT19/'Resultats PMV'!$AX19 ->  | AJ29: ='Resultats PMV'!AU19/'Resultats PMV'!$AX19 ->  | AK29: ='Resultats PMV'!AV19/'Resultats PMV'!$AX19 ->  | AL29: ='Resultats PMV'!AW19/'Resultats PMV'!$AX19 -> 
B30: ='Resultats PMV'!A20 -> 0 | C30: ='Resultats PMV'!F20/'Resultats PMV'!$P20 ->  | D30: ='Resultats PMV'!G20/'Resultats PMV'!$P20 ->  | E30: ='Resultats PMV'!H20/'Resultats PMV'!$P20 ->  | F30: ='Resultats PMV'!I20/'Resultats PMV'!$P20 ->  | G30: ='Resultats PMV'!J20/'Resultats PMV'!$P20 ->  | H30: ='Resultats PMV'!K20/'Resultats PMV'!$P20 ->  | I30: ='Resultats PMV'!L20/'Resultats PMV'!$P20 ->  | J30: ='Resultats PMV'!M20/'Resultats PMV'!$P20 ->  | K30: ='Resultats PMV'!N20/'Resultats PMV'!$P20 ->  | L30: ='Resultats PMV'!O20/'Resultats PMV'!$P20 ->  | O30: ='Resultats PMV'!R20 -> 0 | P30: ='Resultats PMV'!S20/'Resultats PMV'!$P20 ->  | Q30: ='Resultats PMV'!T20/'Resultats PMV'!$P20 ->  | R30: ='Resultats PMV'!U20/'Resultats PMV'!$P20 ->  | S30: ='Resultats PMV'!V20/'Resultats PMV'!$P20 ->  | T30: ='Resultats PMV'!W20/'Resultats PMV'!$P20 ->  | U30: ='Resultats PMV'!X20/'Resultats PMV'!$P20 ->  | V30: ='Resultats PMV'!Y20/'Resultats PMV'!$P20 ->  | W30: ='Resultats PMV'!Z20/'Resultats PMV'!$P20 ->  | X30: ='Resultats PMV'!AA20/'Resultats PMV'!$P20 ->  | Y30: ='Resultats PMV'!AB20/'Resultats PMV'!$P20 ->  | AB30: ='Resultats PMV'!AI20 -> 0 | AC30: ='Resultats PMV'!AN20/'Resultats PMV'!$AX20 ->  | AD30: ='Resultats PMV'!AO20/'Resultats PMV'!$AX20 ->  | AE30: ='Resultats PMV'!AP20/'Resultats PMV'!$AX20 ->  | AF30: ='Resultats PMV'!AQ20/'Resultats PMV'!$AX20 ->  | AG30: ='Resultats PMV'!AR20/'Resultats PMV'!$AX20 ->  | AH30: ='Resultats PMV'!AS20/'Resultats PMV'!$AX20 ->  | AI30: ='Resultats PMV'!AT20/'Resultats PMV'!$AX20 ->  | AJ30: ='Resultats PMV'!AU20/'Resultats PMV'!$AX20 ->  | AK30: ='Resultats PMV'!AV20/'Resultats PMV'!$AX20 ->  | AL30: ='Resultats PMV'!AW20/'Resultats PMV'!$AX20 -> 
B31: ='Resultats PMV'!A21 -> 0 | C31: ='Resultats PMV'!F21/'Resultats PMV'!$P21 ->  | D31: ='Resultats PMV'!G21/'Resultats PMV'!$P21 ->  | E31: ='Resultats PMV'!H21/'Resultats PMV'!$P21 ->  | F31: ='Resultats PMV'!I21/'Resultats PMV'!$P21 ->  | G31: ='Resultats PMV'!J21/'Resultats PMV'!$P21 ->  | H31: ='Resultats PMV'!K21/'Resultats PMV'!$P21 ->  | I31: ='Resultats PMV'!L21/'Resultats PMV'!$P21 ->  | J31: ='Resultats PMV'!M21/'Resultats PMV'!$P21 ->  | K31: ='Resultats PMV'!N21/'Resultats PMV'!$P21 ->  | L31: ='Resultats PMV'!O21/'Resultats PMV'!$P21 ->  | O31: ='Resultats PMV'!R21 -> 0 | P31: ='Resultats PMV'!S21/'Resultats PMV'!$P21 ->  | Q31: ='Resultats PMV'!T21/'Resultats PMV'!$P21 ->  | R31: ='Resultats PMV'!U21/'Resultats PMV'!$P21 ->  | S31: ='Resultats PMV'!V21/'Resultats PMV'!$P21 ->  | T31: ='Resultats PMV'!W21/'Resultats PMV'!$P21 ->  | U31: ='Resultats PMV'!X21/'Resultats PMV'!$P21 ->  | V31: ='Resultats PMV'!Y21/'Resultats PMV'!$P21 ->  | W31: ='Resultats PMV'!Z21/'Resultats PMV'!$P21 ->  | X31: ='Resultats PMV'!AA21/'Resultats PMV'!$P21 ->  | Y31: ='Resultats PMV'!AB21/'Resultats PMV'!$P21 ->  | AB31: ='Resultats PMV'!AI21 -> 0 | AC31: ='Resultats PMV'!AN21/'Resultats PMV'!$AX21 ->  | AD31: ='Resultats PMV'!AO21/'Resultats PMV'!$AX21 ->  | AE31: ='Resultats PMV'!AP21/'Resultats PMV'!$AX21 ->  | AF31: ='Resultats PMV'!AQ21/'Resultats PMV'!$AX21 ->  | AG31: ='Resultats PMV'!AR21/'Resultats PMV'!$AX21 ->  | AH31: ='Resultats PMV'!AS21/'Resultats PMV'!$AX21 ->  | AI31: ='Resultats PMV'!AT21/'Resultats PMV'!$AX21 ->  | AJ31: ='Resultats PMV'!AU21/'Resultats PMV'!$AX21 ->  | AK31: ='Resultats PMV'!AV21/'Resultats PMV'!$AX21 ->  | AL31: ='Resultats PMV'!AW21/'Resultats PMV'!$AX21 -> 
B32: ='Resultats PMV'!A22 -> 0 | C32: ='Resultats PMV'!F22/'Resultats PMV'!$P22 ->  | D32: ='Resultats PMV'!G22/'Resultats PMV'!$P22 ->  | E32: ='Resultats PMV'!H22/'Resultats PMV'!$P22 ->  | F32: ='Resultats PMV'!I22/'Resultats PMV'!$P22 ->  | G32: ='Resultats PMV'!J22/'Resultats PMV'!$P22 ->  | H32: ='Resultats PMV'!K22/'Resultats PMV'!$P22 ->  | I32: ='Resultats PMV'!L22/'Resultats PMV'!$P22 ->  | J32: ='Resultats PMV'!M22/'Resultats PMV'!$P22 ->  | K32: ='Resultats PMV'!N22/'Resultats PMV'!$P22 ->  | L32: ='Resultats PMV'!O22/'Resultats PMV'!$P22 ->  | O32: ='Resultats PMV'!R22 -> 0 | P32: ='Resultats PMV'!S22/'Resultats PMV'!$P22 ->  | Q32: ='Resultats PMV'!T22/'Resultats PMV'!$P22 ->  | R32: ='Resultats PMV'!U22/'Resultats PMV'!$P22 ->  | S32: ='Resultats PMV'!V22/'Resultats PMV'!$P22 ->  | T32: ='Resultats PMV'!W22/'Resultats PMV'!$P22 ->  | U32: ='Resultats PMV'!X22/'Resultats PMV'!$P22 ->  | V32: ='Resultats PMV'!Y22/'Resultats PMV'!$P22 ->  | W32: ='Resultats PMV'!Z22/'Resultats PMV'!$P22 ->  | X32: ='Resultats PMV'!AA22/'Resultats PMV'!$P22 ->  | Y32: ='Resultats PMV'!AB22/'Resultats PMV'!$P22 ->  | AB32: ='Resultats PMV'!AI22 -> 0 | AC32: ='Resultats PMV'!AN22/'Resultats PMV'!$AX22 ->  | AD32: ='Resultats PMV'!AO22/'Resultats PMV'!$AX22 ->  | AE32: ='Resultats PMV'!AP22/'Resultats PMV'!$AX22 ->  | AF32: ='Resultats PMV'!AQ22/'Resultats PMV'!$AX22 ->  | AG32: ='Resultats PMV'!AR22/'Resultats PMV'!$AX22 ->  | AH32: ='Resultats PMV'!AS22/'Resultats PMV'!$AX22 ->  | AI32: ='Resultats PMV'!AT22/'Resultats PMV'!$AX22 ->  | AJ32: ='Resultats PMV'!AU22/'Resultats PMV'!$AX22 ->  | AK32: ='Resultats PMV'!AV22/'Resultats PMV'!$AX22 ->  | AL32: ='Resultats PMV'!AW22/'Resultats PMV'!$AX22 -> 
B33: ='Resultats PMV'!A23 -> 0 | C33: ='Resultats PMV'!F23/'Resultats PMV'!$P23 ->  | D33: ='Resultats PMV'!G23/'Resultats PMV'!$P23 ->  | E33: ='Resultats PMV'!H23/'Resultats PMV'!$P23 ->  | F33: ='Resultats PMV'!I23/'Resultats PMV'!$P23 ->  | G33: ='Resultats PMV'!J23/'Resultats PMV'!$P23 ->  | H33: ='Resultats PMV'!K23/'Resultats PMV'!$P23 ->  | I33: ='Resultats PMV'!L23/'Resultats PMV'!$P23 ->  | J33: ='Resultats PMV'!M23/'Resultats PMV'!$P23 ->  | K33: ='Resultats PMV'!N23/'Resultats PMV'!$P23 ->  | L33: ='Resultats PMV'!O23/'Resultats PMV'!$P23 ->  | O33: ='Resultats PMV'!R23 -> 0 | P33: ='Resultats PMV'!S23/'Resultats PMV'!$P23 ->  | Q33: ='Resultats PMV'!T23/'Resultats PMV'!$P23 ->  | R33: ='Resultats PMV'!U23/'Resultats PMV'!$P23 ->  | S33: ='Resultats PMV'!V23/'Resultats PMV'!$P23 ->  | T33: ='Resultats PMV'!W23/'Resultats PMV'!$P23 ->  | U33: ='Resultats PMV'!X23/'Resultats PMV'!$P23 ->  | V33: ='Resultats PMV'!Y23/'Resultats PMV'!$P23 ->  | W33: ='Resultats PMV'!Z23/'Resultats PMV'!$P23 ->  | X33: ='Resultats PMV'!AA23/'Resultats PMV'!$P23 ->  | Y33: ='Resultats PMV'!AB23/'Resultats PMV'!$P23 ->  | AB33: ='Resultats PMV'!AI23 -> 0 | AC33: ='Resultats PMV'!AN23/'Resultats PMV'!$AX23 ->  | AD33: ='Resultats PMV'!AO23/'Resultats PMV'!$AX23 ->  | AE33: ='Resultats PMV'!AP23/'Resultats PMV'!$AX23 ->  | AF33: ='Resultats PMV'!AQ23/'Resultats PMV'!$AX23 ->  | AG33: ='Resultats PMV'!AR23/'Resultats PMV'!$AX23 ->  | AH33: ='Resultats PMV'!AS23/'Resultats PMV'!$AX23 ->  | AI33: ='Resultats PMV'!AT23/'Resultats PMV'!$AX23 ->  | AJ33: ='Resultats PMV'!AU23/'Resultats PMV'!$AX23 ->  | AK33: ='Resultats PMV'!AV23/'Resultats PMV'!$AX23 ->  | AL33: ='Resultats PMV'!AW23/'Resultats PMV'!$AX23 -> 
B34: ='Resultats PMV'!A24 -> 0 | C34: ='Resultats PMV'!F24/'Resultats PMV'!$P24 ->  | D34: ='Resultats PMV'!G24/'Resultats PMV'!$P24 ->  | E34: ='Resultats PMV'!H24/'Resultats PMV'!$P24 ->  | F34: ='Resultats PMV'!I24/'Resultats PMV'!$P24 ->  | G34: ='Resultats PMV'!J24/'Resultats PMV'!$P24 ->  | H34: ='Resultats PMV'!K24/'Resultats PMV'!$P24 ->  | I34: ='Resultats PMV'!L24/'Resultats PMV'!$P24 ->  | J34: ='Resultats PMV'!M24/'Resultats PMV'!$P24 ->  | K34: ='Resultats PMV'!N24/'Resultats PMV'!$P24 ->  | L34: ='Resultats PMV'!O24/'Resultats PMV'!$P24 ->  | O34: ='Resultats PMV'!R24 -> 0 | P34: ='Resultats PMV'!S24/'Resultats PMV'!$P24 ->  | Q34: ='Resultats PMV'!T24/'Resultats PMV'!$P24 ->  | R34: ='Resultats PMV'!U24/'Resultats PMV'!$P24 ->  | S34: ='Resultats PMV'!V24/'Resultats PMV'!$P24 ->  | T34: ='Resultats PMV'!W24/'Resultats PMV'!$P24 ->  | U34: ='Resultats PMV'!X24/'Resultats PMV'!$P24 ->  | V34: ='Resultats PMV'!Y24/'Resultats PMV'!$P24 ->  | W34: ='Resultats PMV'!Z24/'Resultats PMV'!$P24 ->  | X34: ='Resultats PMV'!AA24/'Resultats PMV'!$P24 ->  | Y34: ='Resultats PMV'!AB24/'Resultats PMV'!$P24 ->  | AB34: ='Resultats PMV'!AI24 -> 0 | AC34: ='Resultats PMV'!AN24/'Resultats PMV'!$AX24 ->  | AD34: ='Resultats PMV'!AO24/'Resultats PMV'!$AX24 ->  | AE34: ='Resultats PMV'!AP24/'Resultats PMV'!$AX24 ->  | AF34: ='Resultats PMV'!AQ24/'Resultats PMV'!$AX24 ->  | AG34: ='Resultats PMV'!AR24/'Resultats PMV'!$AX24 ->  | AH34: ='Resultats PMV'!AS24/'Resultats PMV'!$AX24 ->  | AI34: ='Resultats PMV'!AT24/'Resultats PMV'!$AX24 ->  | AJ34: ='Resultats PMV'!AU24/'Resultats PMV'!$AX24 ->  | AK34: ='Resultats PMV'!AV24/'Resultats PMV'!$AX24 ->  | AL34: ='Resultats PMV'!AW24/'Resultats PMV'!$AX24 -> 
B35: ='Resultats PMV'!A25 -> 0 | C35: ='Resultats PMV'!F25/'Resultats PMV'!$P25 ->  | D35: ='Resultats PMV'!G25/'Resultats PMV'!$P25 ->  | E35: ='Resultats PMV'!H25/'Resultats PMV'!$P25 ->  | F35: ='Resultats PMV'!I25/'Resultats PMV'!$P25 ->  | G35: ='Resultats PMV'!J25/'Resultats PMV'!$P25 ->  | H35: ='Resultats PMV'!K25/'Resultats PMV'!$P25 ->  | I35: ='Resultats PMV'!L25/'Resultats PMV'!$P25 ->  | J35: ='Resultats PMV'!M25/'Resultats PMV'!$P25 ->  | K35: ='Resultats PMV'!N25/'Resultats PMV'!$P25 ->  | L35: ='Resultats PMV'!O25/'Resultats PMV'!$P25 ->  | O35: ='Resultats PMV'!R25 -> 0 | P35: ='Resultats PMV'!S25/'Resultats PMV'!$P25 ->  | Q35: ='Resultats PMV'!T25/'Resultats PMV'!$P25 ->  | R35: ='Resultats PMV'!U25/'Resultats PMV'!$P25 ->  | S35: ='Resultats PMV'!V25/'Resultats PMV'!$P25 ->  | T35: ='Resultats PMV'!W25/'Resultats PMV'!$P25 ->  | U35: ='Resultats PMV'!X25/'Resultats PMV'!$P25 ->  | V35: ='Resultats PMV'!Y25/'Resultats PMV'!$P25 ->  | W35: ='Resultats PMV'!Z25/'Resultats PMV'!$P25 ->  | X35: ='Resultats PMV'!AA25/'Resultats PMV'!$P25 ->  | Y35: ='Resultats PMV'!AB25/'Resultats PMV'!$P25 ->  | AB35: ='Resultats PMV'!AI25 -> 0 | AC35: ='Resultats PMV'!AN25/'Resultats PMV'!$AX25 ->  | AD35: ='Resultats PMV'!AO25/'Resultats PMV'!$AX25 ->  | AE35: ='Resultats PMV'!AP25/'Resultats PMV'!$AX25 ->  | AF35: ='Resultats PMV'!AQ25/'Resultats PMV'!$AX25 ->  | AG35: ='Resultats PMV'!AR25/'Resultats PMV'!$AX25 ->  | AH35: ='Resultats PMV'!AS25/'Resultats PMV'!$AX25 ->  | AI35: ='Resultats PMV'!AT25/'Resultats PMV'!$AX25 ->  | AJ35: ='Resultats PMV'!AU25/'Resultats PMV'!$AX25 ->  | AK35: ='Resultats PMV'!AV25/'Resultats PMV'!$AX25 ->  | AL35: ='Resultats PMV'!AW25/'Resultats PMV'!$AX25 -> 
B36: ='Resultats PMV'!A26 -> 0 | C36: ='Resultats PMV'!F26/'Resultats PMV'!$P26 ->  | D36: ='Resultats PMV'!G26/'Resultats PMV'!$P26 ->  | E36: ='Resultats PMV'!H26/'Resultats PMV'!$P26 ->  | F36: ='Resultats PMV'!I26/'Resultats PMV'!$P26 ->  | G36: ='Resultats PMV'!J26/'Resultats PMV'!$P26 ->  | H36: ='Resultats PMV'!K26/'Resultats PMV'!$P26 ->  | I36: ='Resultats PMV'!L26/'Resultats PMV'!$P26 ->  | J36: ='Resultats PMV'!M26/'Resultats PMV'!$P26 ->  | K36: ='Resultats PMV'!N26/'Resultats PMV'!$P26 ->  | L36: ='Resultats PMV'!O26/'Resultats PMV'!$P26 ->  | O36: ='Resultats PMV'!R26 -> 0 | P36: ='Resultats PMV'!S26/'Resultats PMV'!$P26 ->  | Q36: ='Resultats PMV'!T26/'Resultats PMV'!$P26 ->  | R36: ='Resultats PMV'!U26/'Resultats PMV'!$P26 ->  | S36: ='Resultats PMV'!V26/'Resultats PMV'!$P26 ->  | T36: ='Resultats PMV'!W26/'Resultats PMV'!$P26 ->  | U36: ='Resultats PMV'!X26/'Resultats PMV'!$P26 ->  | V36: ='Resultats PMV'!Y26/'Resultats PMV'!$P26 ->  | W36: ='Resultats PMV'!Z26/'Resultats PMV'!$P26 ->  | X36: ='Resultats PMV'!AA26/'Resultats PMV'!$P26 ->  | Y36: ='Resultats PMV'!AB26/'Resultats PMV'!$P26 ->  | AB36: ='Resultats PMV'!AI26 -> 0 | AC36: ='Resultats PMV'!AN26/'Resultats PMV'!$AX26 ->  | AD36: ='Resultats PMV'!AO26/'Resultats PMV'!$AX26 ->  | AE36: ='Resultats PMV'!AP26/'Resultats PMV'!$AX26 ->  | AF36: ='Resultats PMV'!AQ26/'Resultats PMV'!$AX26 ->  | AG36: ='Resultats PMV'!AR26/'Resultats PMV'!$AX26 ->  | AH36: ='Resultats PMV'!AS26/'Resultats PMV'!$AX26 ->  | AI36: ='Resultats PMV'!AT26/'Resultats PMV'!$AX26 ->  | AJ36: ='Resultats PMV'!AU26/'Resultats PMV'!$AX26 ->  | AK36: ='Resultats PMV'!AV26/'Resultats PMV'!$AX26 ->  | AL36: ='Resultats PMV'!AW26/'Resultats PMV'!$AX26 -> 
B37: ='Resultats PMV'!A27 -> 0 | C37: ='Resultats PMV'!F27/'Resultats PMV'!$P27 ->  | D37: ='Resultats PMV'!G27/'Resultats PMV'!$P27 ->  | E37: ='Resultats PMV'!H27/'Resultats PMV'!$P27 ->  | F37: ='Resultats PMV'!I27/'Resultats PMV'!$P27 ->  | G37: ='Resultats PMV'!J27/'Resultats PMV'!$P27 ->  | H37: ='Resultats PMV'!K27/'Resultats PMV'!$P27 ->  | I37: ='Resultats PMV'!L27/'Resultats PMV'!$P27 ->  | J37: ='Resultats PMV'!M27/'Resultats PMV'!$P27 ->  | K37: ='Resultats PMV'!N27/'Resultats PMV'!$P27 ->  | L37: ='Resultats PMV'!O27/'Resultats PMV'!$P27 ->  | O37: ='Resultats PMV'!R27 -> 0 | P37: ='Resultats PMV'!S27/'Resultats PMV'!$P27 ->  | Q37: ='Resultats PMV'!T27/'Resultats PMV'!$P27 ->  | R37: ='Resultats PMV'!U27/'Resultats PMV'!$P27 ->  | S37: ='Resultats PMV'!V27/'Resultats PMV'!$P27 ->  | T37: ='Resultats PMV'!W27/'Resultats PMV'!$P27 ->  | U37: ='Resultats PMV'!X27/'Resultats PMV'!$P27 ->  | V37: ='Resultats PMV'!Y27/'Resultats PMV'!$P27 ->  | W37: ='Resultats PMV'!Z27/'Resultats PMV'!$P27 ->  | X37: ='Resultats PMV'!AA27/'Resultats PMV'!$P27 ->  | Y37: ='Resultats PMV'!AB27/'Resultats PMV'!$P27 ->  | AB37: ='Resultats PMV'!AI27 -> 0 | AC37: ='Resultats PMV'!AN27/'Resultats PMV'!$AX27 ->  | AD37: ='Resultats PMV'!AO27/'Resultats PMV'!$AX27 ->  | AE37: ='Resultats PMV'!AP27/'Resultats PMV'!$AX27 ->  | AF37: ='Resultats PMV'!AQ27/'Resultats PMV'!$AX27 ->  | AG37: ='Resultats PMV'!AR27/'Resultats PMV'!$AX27 ->  | AH37: ='Resultats PMV'!AS27/'Resultats PMV'!$AX27 ->  | AI37: ='Resultats PMV'!AT27/'Resultats PMV'!$AX27 ->  | AJ37: ='Resultats PMV'!AU27/'Resultats PMV'!$AX27 ->  | AK37: ='Resultats PMV'!AV27/'Resultats PMV'!$AX27 ->  | AL37: ='Resultats PMV'!AW27/'Resultats PMV'!$AX27 -> 
B38: ='Resultats PMV'!A28 -> 0 | C38: ='Resultats PMV'!F28/'Resultats PMV'!$P28 ->  | D38: ='Resultats PMV'!G28/'Resultats PMV'!$P28 ->  | E38: ='Resultats PMV'!H28/'Resultats PMV'!$P28 ->  | F38: ='Resultats PMV'!I28/'Resultats PMV'!$P28 ->  | G38: ='Resultats PMV'!J28/'Resultats PMV'!$P28 ->  | H38: ='Resultats PMV'!K28/'Resultats PMV'!$P28 ->  | I38: ='Resultats PMV'!L28/'Resultats PMV'!$P28 ->  | J38: ='Resultats PMV'!M28/'Resultats PMV'!$P28 ->  | K38: ='Resultats PMV'!N28/'Resultats PMV'!$P28 ->  | L38: ='Resultats PMV'!O28/'Resultats PMV'!$P28 ->  | O38: ='Resultats PMV'!R28 -> 0 | P38: ='Resultats PMV'!S28/'Resultats PMV'!$P28 ->  | Q38: ='Resultats PMV'!T28/'Resultats PMV'!$P28 ->  | R38: ='Resultats PMV'!U28/'Resultats PMV'!$P28 ->  | S38: ='Resultats PMV'!V28/'Resultats PMV'!$P28 ->  | T38: ='Resultats PMV'!W28/'Resultats PMV'!$P28 ->  | U38: ='Resultats PMV'!X28/'Resultats PMV'!$P28 ->  | V38: ='Resultats PMV'!Y28/'Resultats PMV'!$P28 ->  | W38: ='Resultats PMV'!Z28/'Resultats PMV'!$P28 ->  | X38: ='Resultats PMV'!AA28/'Resultats PMV'!$P28 ->  | Y38: ='Resultats PMV'!AB28/'Resultats PMV'!$P28 ->  | AB38: ='Resultats PMV'!AI28 -> 0 | AC38: ='Resultats PMV'!AN28/'Resultats PMV'!$AX28 ->  | AD38: ='Resultats PMV'!AO28/'Resultats PMV'!$AX28 ->  | AE38: ='Resultats PMV'!AP28/'Resultats PMV'!$AX28 ->  | AF38: ='Resultats PMV'!AQ28/'Resultats PMV'!$AX28 ->  | AG38: ='Resultats PMV'!AR28/'Resultats PMV'!$AX28 ->  | AH38: ='Resultats PMV'!AS28/'Resultats PMV'!$AX28 ->  | AI38: ='Resultats PMV'!AT28/'Resultats PMV'!$AX28 ->  | AJ38: ='Resultats PMV'!AU28/'Resultats PMV'!$AX28 ->  | AK38: ='Resultats PMV'!AV28/'Resultats PMV'!$AX28 ->  | AL38: ='Resultats PMV'!AW28/'Resultats PMV'!$AX28 -> 
B39: ='Resultats PMV'!A29 -> 0 | C39: ='Resultats PMV'!F29/'Resultats PMV'!$P29 ->  | D39: ='Resultats PMV'!G29/'Resultats PMV'!$P29 ->  | E39: ='Resultats PMV'!H29/'Resultats PMV'!$P29 ->  | F39: ='Resultats PMV'!I29/'Resultats PMV'!$P29 ->  | G39: ='Resultats PMV'!J29/'Resultats PMV'!$P29 ->  | H39: ='Resultats PMV'!K29/'Resultats PMV'!$P29 ->  | I39: ='Resultats PMV'!L29/'Resultats PMV'!$P29 ->  | J39: ='Resultats PMV'!M29/'Resultats PMV'!$P29 ->  | K39: ='Resultats PMV'!N29/'Resultats PMV'!$P29 ->  | L39: ='Resultats PMV'!O29/'Resultats PMV'!$P29 ->  | O39: ='Resultats PMV'!R29 -> 0 | P39: ='Resultats PMV'!S29/'Resultats PMV'!$P29 ->  | Q39: ='Resultats PMV'!T29/'Resultats PMV'!$P29 ->  | R39: ='Resultats PMV'!U29/'Resultats PMV'!$P29 ->  | S39: ='Resultats PMV'!V29/'Resultats PMV'!$P29 ->  | T39: ='Resultats PMV'!W29/'Resultats PMV'!$P29 ->  | U39: ='Resultats PMV'!X29/'Resultats PMV'!$P29 ->  | V39: ='Resultats PMV'!Y29/'Resultats PMV'!$P29 ->  | W39: ='Resultats PMV'!Z29/'Resultats PMV'!$P29 ->  | X39: ='Resultats PMV'!AA29/'Resultats PMV'!$P29 ->  | Y39: ='Resultats PMV'!AB29/'Resultats PMV'!$P29 ->  | AB39: ='Resultats PMV'!AI29 -> 0 | AC39: ='Resultats PMV'!AN29/'Resultats PMV'!$AX29 ->  | AD39: ='Resultats PMV'!AO29/'Resultats PMV'!$AX29 ->  | AE39: ='Resultats PMV'!AP29/'Resultats PMV'!$AX29 ->  | AF39: ='Resultats PMV'!AQ29/'Resultats PMV'!$AX29 ->  | AG39: ='Resultats PMV'!AR29/'Resultats PMV'!$AX29 ->  | AH39: ='Resultats PMV'!AS29/'Resultats PMV'!$AX29 ->  | AI39: ='Resultats PMV'!AT29/'Resultats PMV'!$AX29 ->  | AJ39: ='Resultats PMV'!AU29/'Resultats PMV'!$AX29 ->  | AK39: ='Resultats PMV'!AV29/'Resultats PMV'!$AX29 ->  | AL39: ='Resultats PMV'!AW29/'Resultats PMV'!$AX29 -> 
B40: ='Resultats PMV'!A30 -> 0 | C40: ='Resultats PMV'!F30/'Resultats PMV'!$P30 ->  | D40: ='Resultats PMV'!G30/'Resultats PMV'!$P30 ->  | E40: ='Resultats PMV'!H30/'Resultats PMV'!$P30 ->  | F40: ='Resultats PMV'!I30/'Resultats PMV'!$P30 ->  | G40: ='Resultats PMV'!J30/'Resultats PMV'!$P30 ->  | H40: ='Resultats PMV'!K30/'Resultats PMV'!$P30 ->  | I40: ='Resultats PMV'!L30/'Resultats PMV'!$P30 ->  | J40: ='Resultats PMV'!M30/'Resultats PMV'!$P30 ->  | K40: ='Resultats PMV'!N30/'Resultats PMV'!$P30 ->  | L40: ='Resultats PMV'!O30/'Resultats PMV'!$P30 ->  | O40: ='Resultats PMV'!R30 -> 0 | P40: ='Resultats PMV'!S30/'Resultats PMV'!$P30 ->  | Q40: ='Resultats PMV'!T30/'Resultats PMV'!$P30 ->  | R40: ='Resultats PMV'!U30/'Resultats PMV'!$P30 ->  | S40: ='Resultats PMV'!V30/'Resultats PMV'!$P30 ->  | T40: ='Resultats PMV'!W30/'Resultats PMV'!$P30 ->  | U40: ='Resultats PMV'!X30/'Resultats PMV'!$P30 ->  | V40: ='Resultats PMV'!Y30/'Resultats PMV'!$P30 ->  | W40: ='Resultats PMV'!Z30/'Resultats PMV'!$P30 ->  | X40: ='Resultats PMV'!AA30/'Resultats PMV'!$P30 ->  | Y40: ='Resultats PMV'!AB30/'Resultats PMV'!$P30 ->  | AB40: ='Resultats PMV'!AI30 -> 0 | AC40: ='Resultats PMV'!AN30/'Resultats PMV'!$AX30 ->  | AD40: ='Resultats PMV'!AO30/'Resultats PMV'!$AX30 ->  | AE40: ='Resultats PMV'!AP30/'Resultats PMV'!$AX30 ->  | AF40: ='Resultats PMV'!AQ30/'Resultats PMV'!$AX30 ->  | AG40: ='Resultats PMV'!AR30/'Resultats PMV'!$AX30 ->  | AH40: ='Resultats PMV'!AS30/'Resultats PMV'!$AX30 ->  | AI40: ='Resultats PMV'!AT30/'Resultats PMV'!$AX30 ->  | AJ40: ='Resultats PMV'!AU30/'Resultats PMV'!$AX30 ->  | AK40: ='Resultats PMV'!AV30/'Resultats PMV'!$AX30 ->  | AL40: ='Resultats PMV'!AW30/'Resultats PMV'!$AX30 -> 
B41: ='Resultats PMV'!A31 -> 0 | C41: ='Resultats PMV'!F31/'Resultats PMV'!$P31 ->  | D41: ='Resultats PMV'!G31/'Resultats PMV'!$P31 ->  | E41: ='Resultats PMV'!H31/'Resultats PMV'!$P31 ->  | F41: ='Resultats PMV'!I31/'Resultats PMV'!$P31 ->  | G41: ='Resultats PMV'!J31/'Resultats PMV'!$P31 ->  | H41: ='Resultats PMV'!K31/'Resultats PMV'!$P31 ->  | I41: ='Resultats PMV'!L31/'Resultats PMV'!$P31 ->  | J41: ='Resultats PMV'!M31/'Resultats PMV'!$P31 ->  | K41: ='Resultats PMV'!N31/'Resultats PMV'!$P31 ->  | L41: ='Resultats PMV'!O31/'Resultats PMV'!$P31 ->  | O41: ='Resultats PMV'!R31 -> 0 | P41: ='Resultats PMV'!S31/'Resultats PMV'!$P31 ->  | Q41: ='Resultats PMV'!T31/'Resultats PMV'!$P31 ->  | R41: ='Resultats PMV'!U31/'Resultats PMV'!$P31 ->  | S41: ='Resultats PMV'!V31/'Resultats PMV'!$P31 ->  | T41: ='Resultats PMV'!W31/'Resultats PMV'!$P31 ->  | U41: ='Resultats PMV'!X31/'Resultats PMV'!$P31 ->  | V41: ='Resultats PMV'!Y31/'Resultats PMV'!$P31 ->  | W41: ='Resultats PMV'!Z31/'Resultats PMV'!$P31 ->  | X41: ='Resultats PMV'!AA31/'Resultats PMV'!$P31 ->  | Y41: ='Resultats PMV'!AB31/'Resultats PMV'!$P31 ->  | AB41: ='Resultats PMV'!AI31 -> 0 | AC41: ='Resultats PMV'!AN31/'Resultats PMV'!$AX31 ->  | AD41: ='Resultats PMV'!AO31/'Resultats PMV'!$AX31 ->  | AE41: ='Resultats PMV'!AP31/'Resultats PMV'!$AX31 ->  | AF41: ='Resultats PMV'!AQ31/'Resultats PMV'!$AX31 ->  | AG41: ='Resultats PMV'!AR31/'Resultats PMV'!$AX31 ->  | AH41: ='Resultats PMV'!AS31/'Resultats PMV'!$AX31 ->  | AI41: ='Resultats PMV'!AT31/'Resultats PMV'!$AX31 ->  | AJ41: ='Resultats PMV'!AU31/'Resultats PMV'!$AX31 ->  | AK41: ='Resultats PMV'!AV31/'Resultats PMV'!$AX31 ->  | AL41: ='Resultats PMV'!AW31/'Resultats PMV'!$AX31 -> 
B42: ='Resultats PMV'!A32 -> 0 | C42: ='Resultats PMV'!F32/'Resultats PMV'!$P32 ->  | D42: ='Resultats PMV'!G32/'Resultats PMV'!$P32 ->  | E42: ='Resultats PMV'!H32/'Resultats PMV'!$P32 ->  | F42: ='Resultats PMV'!I32/'Resultats PMV'!$P32 ->  | G42: ='Resultats PMV'!J32/'Resultats PMV'!$P32 ->  | H42: ='Resultats PMV'!K32/'Resultats PMV'!$P32 ->  | I42: ='Resultats PMV'!L32/'Resultats PMV'!$P32 ->  | J42: ='Resultats PMV'!M32/'Resultats PMV'!$P32 ->  | K42: ='Resultats PMV'!N32/'Resultats PMV'!$P32 ->  | L42: ='Resultats PMV'!O32/'Resultats PMV'!$P32 ->  | O42: ='Resultats PMV'!R32 -> 0 | P42: ='Resultats PMV'!S32/'Resultats PMV'!$P32 ->  | Q42: ='Resultats PMV'!T32/'Resultats PMV'!$P32 ->  | R42: ='Resultats PMV'!U32/'Resultats PMV'!$P32 ->  | S42: ='Resultats PMV'!V32/'Resultats PMV'!$P32 ->  | T42: ='Resultats PMV'!W32/'Resultats PMV'!$P32 ->  | U42: ='Resultats PMV'!X32/'Resultats PMV'!$P32 ->  | V42: ='Resultats PMV'!Y32/'Resultats PMV'!$P32 ->  | W42: ='Resultats PMV'!Z32/'Resultats PMV'!$P32 ->  | X42: ='Resultats PMV'!AA32/'Resultats PMV'!$P32 ->  | Y42: ='Resultats PMV'!AB32/'Resultats PMV'!$P32 ->  | AB42: ='Resultats PMV'!AI32 -> 0 | AC42: ='Resultats PMV'!AN32/'Resultats PMV'!$AX32 ->  | AD42: ='Resultats PMV'!AO32/'Resultats PMV'!$AX32 ->  | AE42: ='Resultats PMV'!AP32/'Resultats PMV'!$AX32 ->  | AF42: ='Resultats PMV'!AQ32/'Resultats PMV'!$AX32 ->  | AG42: ='Resultats PMV'!AR32/'Resultats PMV'!$AX32 ->  | AH42: ='Resultats PMV'!AS32/'Resultats PMV'!$AX32 ->  | AI42: ='Resultats PMV'!AT32/'Resultats PMV'!$AX32 ->  | AJ42: ='Resultats PMV'!AU32/'Resultats PMV'!$AX32 ->  | AK42: ='Resultats PMV'!AV32/'Resultats PMV'!$AX32 ->  | AL42: ='Resultats PMV'!AW32/'Resultats PMV'!$AX32 -> 
B43: ='Resultats PMV'!A33 -> 0 | C43: ='Resultats PMV'!F33/'Resultats PMV'!$P33 ->  | D43: ='Resultats PMV'!G33/'Resultats PMV'!$P33 ->  | E43: ='Resultats PMV'!H33/'Resultats PMV'!$P33 ->  | F43: ='Resultats PMV'!I33/'Resultats PMV'!$P33 ->  | G43: ='Resultats PMV'!J33/'Resultats PMV'!$P33 ->  | H43: ='Resultats PMV'!K33/'Resultats PMV'!$P33 ->  | I43: ='Resultats PMV'!L33/'Resultats PMV'!$P33 ->  | J43: ='Resultats PMV'!M33/'Resultats PMV'!$P33 ->  | K43: ='Resultats PMV'!N33/'Resultats PMV'!$P33 ->  | L43: ='Resultats PMV'!O33/'Resultats PMV'!$P33 ->  | O43: ='Resultats PMV'!R33 -> 0 | P43: ='Resultats PMV'!S33/'Resultats PMV'!$P33 ->  | Q43: ='Resultats PMV'!T33/'Resultats PMV'!$P33 ->  | R43: ='Resultats PMV'!U33/'Resultats PMV'!$P33 ->  | S43: ='Resultats PMV'!V33/'Resultats PMV'!$P33 ->  | T43: ='Resultats PMV'!W33/'Resultats PMV'!$P33 ->  | U43: ='Resultats PMV'!X33/'Resultats PMV'!$P33 ->  | V43: ='Resultats PMV'!Y33/'Resultats PMV'!$P33 ->  | W43: ='Resultats PMV'!Z33/'Resultats PMV'!$P33 ->  | X43: ='Resultats PMV'!AA33/'Resultats PMV'!$P33 ->  | Y43: ='Resultats PMV'!AB33/'Resultats PMV'!$P33 ->  | AB43: ='Resultats PMV'!AI33 -> 0 | AC43: ='Resultats PMV'!AN33/'Resultats PMV'!$AX33 ->  | AD43: ='Resultats PMV'!AO33/'Resultats PMV'!$AX33 ->  | AE43: ='Resultats PMV'!AP33/'Resultats PMV'!$AX33 ->  | AF43: ='Resultats PMV'!AQ33/'Resultats PMV'!$AX33 ->  | AG43: ='Resultats PMV'!AR33/'Resultats PMV'!$AX33 ->  | AH43: ='Resultats PMV'!AS33/'Resultats PMV'!$AX33 ->  | AI43: ='Resultats PMV'!AT33/'Resultats PMV'!$AX33 ->  | AJ43: ='Resultats PMV'!AU33/'Resultats PMV'!$AX33 ->  | AK43: ='Resultats PMV'!AV33/'Resultats PMV'!$AX33 ->  | AL43: ='Resultats PMV'!AW33/'Resultats PMV'!$AX33 -> 
B44: ='Resultats PMV'!A34 -> 0 | C44: ='Resultats PMV'!F34/'Resultats PMV'!$P34 ->  | D44: ='Resultats PMV'!G34/'Resultats PMV'!$P34 ->  | E44: ='Resultats PMV'!H34/'Resultats PMV'!$P34 ->  | F44: ='Resultats PMV'!I34/'Resultats PMV'!$P34 ->  | G44: ='Resultats PMV'!J34/'Resultats PMV'!$P34 ->  | H44: ='Resultats PMV'!K34/'Resultats PMV'!$P34 ->  | I44: ='Resultats PMV'!L34/'Resultats PMV'!$P34 ->  | J44: ='Resultats PMV'!M34/'Resultats PMV'!$P34 ->  | K44: ='Resultats PMV'!N34/'Resultats PMV'!$P34 ->  | L44: ='Resultats PMV'!O34/'Resultats PMV'!$P34 ->  | O44: ='Resultats PMV'!R34 -> 0 | P44: ='Resultats PMV'!S34/'Resultats PMV'!$P34 ->  | Q44: ='Resultats PMV'!T34/'Resultats PMV'!$P34 ->  | R44: ='Resultats PMV'!U34/'Resultats PMV'!$P34 ->  | S44: ='Resultats PMV'!V34/'Resultats PMV'!$P34 ->  | T44: ='Resultats PMV'!W34/'Resultats PMV'!$P34 ->  | U44: ='Resultats PMV'!X34/'Resultats PMV'!$P34 ->  | V44: ='Resultats PMV'!Y34/'Resultats PMV'!$P34 ->  | W44: ='Resultats PMV'!Z34/'Resultats PMV'!$P34 ->  | X44: ='Resultats PMV'!AA34/'Resultats PMV'!$P34 ->  | Y44: ='Resultats PMV'!AB34/'Resultats PMV'!$P34 ->  | AB44: ='Resultats PMV'!AI34 -> 0 | AC44: ='Resultats PMV'!AN34/'Resultats PMV'!$AX34 ->  | AD44: ='Resultats PMV'!AO34/'Resultats PMV'!$AX34 ->  | AE44: ='Resultats PMV'!AP34/'Resultats PMV'!$AX34 ->  | AF44: ='Resultats PMV'!AQ34/'Resultats PMV'!$AX34 ->  | AG44: ='Resultats PMV'!AR34/'Resultats PMV'!$AX34 ->  | AH44: ='Resultats PMV'!AS34/'Resultats PMV'!$AX34 ->  | AI44: ='Resultats PMV'!AT34/'Resultats PMV'!$AX34 ->  | AJ44: ='Resultats PMV'!AU34/'Resultats PMV'!$AX34 ->  | AK44: ='Resultats PMV'!AV34/'Resultats PMV'!$AX34 ->  | AL44: ='Resultats PMV'!AW34/'Resultats PMV'!$AX34 -> 
B45: ='Resultats PMV'!A35 -> 0 | C45: ='Resultats PMV'!F35/'Resultats PMV'!$P35 ->  | D45: ='Resultats PMV'!G35/'Resultats PMV'!$P35 ->  | E45: ='Resultats PMV'!H35/'Resultats PMV'!$P35 ->  | F45: ='Resultats PMV'!I35/'Resultats PMV'!$P35 ->  | G45: ='Resultats PMV'!J35/'Resultats PMV'!$P35 ->  | H45: ='Resultats PMV'!K35/'Resultats PMV'!$P35 ->  | I45: ='Resultats PMV'!L35/'Resultats PMV'!$P35 ->  | J45: ='Resultats PMV'!M35/'Resultats PMV'!$P35 ->  | K45: ='Resultats PMV'!N35/'Resultats PMV'!$P35 ->  | L45: ='Resultats PMV'!O35/'Resultats PMV'!$P35 ->  | O45: ='Resultats PMV'!R35 -> 0 | P45: ='Resultats PMV'!S35/'Resultats PMV'!$P35 ->  | Q45: ='Resultats PMV'!T35/'Resultats PMV'!$P35 ->  | R45: ='Resultats PMV'!U35/'Resultats PMV'!$P35 ->  | S45: ='Resultats PMV'!V35/'Resultats PMV'!$P35 ->  | T45: ='Resultats PMV'!W35/'Resultats PMV'!$P35 ->  | U45: ='Resultats PMV'!X35/'Resultats PMV'!$P35 ->  | V45: ='Resultats PMV'!Y35/'Resultats PMV'!$P35 ->  | W45: ='Resultats PMV'!Z35/'Resultats PMV'!$P35 ->  | X45: ='Resultats PMV'!AA35/'Resultats PMV'!$P35 ->  | Y45: ='Resultats PMV'!AB35/'Resultats PMV'!$P35 ->  | AB45: ='Resultats PMV'!AI35 -> 0 | AC45: ='Resultats PMV'!AN35/'Resultats PMV'!$AX35 ->  | AD45: ='Resultats PMV'!AO35/'Resultats PMV'!$AX35 ->  | AE45: ='Resultats PMV'!AP35/'Resultats PMV'!$AX35 ->  | AF45: ='Resultats PMV'!AQ35/'Resultats PMV'!$AX35 ->  | AG45: ='Resultats PMV'!AR35/'Resultats PMV'!$AX35 ->  | AH45: ='Resultats PMV'!AS35/'Resultats PMV'!$AX35 ->  | AI45: ='Resultats PMV'!AT35/'Resultats PMV'!$AX35 ->  | AJ45: ='Resultats PMV'!AU35/'Resultats PMV'!$AX35 ->  | AK45: ='Resultats PMV'!AV35/'Resultats PMV'!$AX35 ->  | AL45: ='Resultats PMV'!AW35/'Resultats PMV'!$AX35 -> 
B46: ='Resultats PMV'!A36 -> 0 | C46: ='Resultats PMV'!F36/'Resultats PMV'!$P36 ->  | D46: ='Resultats PMV'!G36/'Resultats PMV'!$P36 ->  | E46: ='Resultats PMV'!H36/'Resultats PMV'!$P36 ->  | F46: ='Resultats PMV'!I36/'Resultats PMV'!$P36 ->  | G46: ='Resultats PMV'!J36/'Resultats PMV'!$P36 ->  | H46: ='Resultats PMV'!K36/'Resultats PMV'!$P36 ->  | I46: ='Resultats PMV'!L36/'Resultats PMV'!$P36 ->  | J46: ='Resultats PMV'!M36/'Resultats PMV'!$P36 ->  | K46: ='Resultats PMV'!N36/'Resultats PMV'!$P36 ->  | L46: ='Resultats PMV'!O36/'Resultats PMV'!$P36 ->  | O46: ='Resultats PMV'!R36 -> 0 | P46: ='Resultats PMV'!S36/'Resultats PMV'!$P36 ->  | Q46: ='Resultats PMV'!T36/'Resultats PMV'!$P36 ->  | R46: ='Resultats PMV'!U36/'Resultats PMV'!$P36 ->  | S46: ='Resultats PMV'!V36/'Resultats PMV'!$P36 ->  | T46: ='Resultats PMV'!W36/'Resultats PMV'!$P36 ->  | U46: ='Resultats PMV'!X36/'Resultats PMV'!$P36 ->  | V46: ='Resultats PMV'!Y36/'Resultats PMV'!$P36 ->  | W46: ='Resultats PMV'!Z36/'Resultats PMV'!$P36 ->  | X46: ='Resultats PMV'!AA36/'Resultats PMV'!$P36 ->  | Y46: ='Resultats PMV'!AB36/'Resultats PMV'!$P36 ->  | AB46: ='Resultats PMV'!AI36 -> 0 | AC46: ='Resultats PMV'!AN36/'Resultats PMV'!$AX36 ->  | AD46: ='Resultats PMV'!AO36/'Resultats PMV'!$AX36 ->  | AE46: ='Resultats PMV'!AP36/'Resultats PMV'!$AX36 ->  | AF46: ='Resultats PMV'!AQ36/'Resultats PMV'!$AX36 ->  | AG46: ='Resultats PMV'!AR36/'Resultats PMV'!$AX36 ->  | AH46: ='Resultats PMV'!AS36/'Resultats PMV'!$AX36 ->  | AI46: ='Resultats PMV'!AT36/'Resultats PMV'!$AX36 ->  | AJ46: ='Resultats PMV'!AU36/'Resultats PMV'!$AX36 ->  | AK46: ='Resultats PMV'!AV36/'Resultats PMV'!$AX36 ->  | AL46: ='Resultats PMV'!AW36/'Resultats PMV'!$AX36 -> 
B47: ='Resultats PMV'!A37 -> 0 | C47: ='Resultats PMV'!F37/'Resultats PMV'!$P37 ->  | D47: ='Resultats PMV'!G37/'Resultats PMV'!$P37 ->  | E47: ='Resultats PMV'!H37/'Resultats PMV'!$P37 ->  | F47: ='Resultats PMV'!I37/'Resultats PMV'!$P37 ->  | G47: ='Resultats PMV'!J37/'Resultats PMV'!$P37 ->  | H47: ='Resultats PMV'!K37/'Resultats PMV'!$P37 ->  | I47: ='Resultats PMV'!L37/'Resultats PMV'!$P37 ->  | J47: ='Resultats PMV'!M37/'Resultats PMV'!$P37 ->  | K47: ='Resultats PMV'!N37/'Resultats PMV'!$P37 ->  | L47: ='Resultats PMV'!O37/'Resultats PMV'!$P37 ->  | O47: ='Resultats PMV'!R37 -> 0 | P47: ='Resultats PMV'!S37/'Resultats PMV'!$P37 ->  | Q47: ='Resultats PMV'!T37/'Resultats PMV'!$P37 ->  | R47: ='Resultats PMV'!U37/'Resultats PMV'!$P37 ->  | S47: ='Resultats PMV'!V37/'Resultats PMV'!$P37 ->  | T47: ='Resultats PMV'!W37/'Resultats PMV'!$P37 ->  | U47: ='Resultats PMV'!X37/'Resultats PMV'!$P37 ->  | V47: ='Resultats PMV'!Y37/'Resultats PMV'!$P37 ->  | W47: ='Resultats PMV'!Z37/'Resultats PMV'!$P37 ->  | X47: ='Resultats PMV'!AA37/'Resultats PMV'!$P37 ->  | Y47: ='Resultats PMV'!AB37/'Resultats PMV'!$P37 ->  | AB47: ='Resultats PMV'!AI37 -> 0 | AC47: ='Resultats PMV'!AN37/'Resultats PMV'!$AX37 ->  | AD47: ='Resultats PMV'!AO37/'Resultats PMV'!$AX37 ->  | AE47: ='Resultats PMV'!AP37/'Resultats PMV'!$AX37 ->  | AF47: ='Resultats PMV'!AQ37/'Resultats PMV'!$AX37 ->  | AG47: ='Resultats PMV'!AR37/'Resultats PMV'!$AX37 ->  | AH47: ='Resultats PMV'!AS37/'Resultats PMV'!$AX37 ->  | AI47: ='Resultats PMV'!AT37/'Resultats PMV'!$AX37 ->  | AJ47: ='Resultats PMV'!AU37/'Resultats PMV'!$AX37 ->  | AK47: ='Resultats PMV'!AV37/'Resultats PMV'!$AX37 ->  | AL47: ='Resultats PMV'!AW37/'Resultats PMV'!$AX37 -> 
B48: ='Resultats PMV'!A38 -> 0 | C48: ='Resultats PMV'!F38/'Resultats PMV'!$P38 ->  | D48: ='Resultats PMV'!G38/'Resultats PMV'!$P38 ->  | E48: ='Resultats PMV'!H38/'Resultats PMV'!$P38 ->  | F48: ='Resultats PMV'!I38/'Resultats PMV'!$P38 ->  | G48: ='Resultats PMV'!J38/'Resultats PMV'!$P38 ->  | H48: ='Resultats PMV'!K38/'Resultats PMV'!$P38 ->  | I48: ='Resultats PMV'!L38/'Resultats PMV'!$P38 ->  | J48: ='Resultats PMV'!M38/'Resultats PMV'!$P38 ->  | K48: ='Resultats PMV'!N38/'Resultats PMV'!$P38 ->  | L48: ='Resultats PMV'!O38/'Resultats PMV'!$P38 ->  | O48: ='Resultats PMV'!R38 -> 0 | P48: ='Resultats PMV'!S38/'Resultats PMV'!$P38 ->  | Q48: ='Resultats PMV'!T38/'Resultats PMV'!$P38 ->  | R48: ='Resultats PMV'!U38/'Resultats PMV'!$P38 ->  | S48: ='Resultats PMV'!V38/'Resultats PMV'!$P38 ->  | T48: ='Resultats PMV'!W38/'Resultats PMV'!$P38 ->  | U48: ='Resultats PMV'!X38/'Resultats PMV'!$P38 ->  | V48: ='Resultats PMV'!Y38/'Resultats PMV'!$P38 ->  | W48: ='Resultats PMV'!Z38/'Resultats PMV'!$P38 ->  | X48: ='Resultats PMV'!AA38/'Resultats PMV'!$P38 ->  | Y48: ='Resultats PMV'!AB38/'Resultats PMV'!$P38 ->  | AB48: ='Resultats PMV'!AI38 -> 0 | AC48: ='Resultats PMV'!AN38/'Resultats PMV'!$AX38 ->  | AD48: ='Resultats PMV'!AO38/'Resultats PMV'!$AX38 ->  | AE48: ='Resultats PMV'!AP38/'Resultats PMV'!$AX38 ->  | AF48: ='Resultats PMV'!AQ38/'Resultats PMV'!$AX38 ->  | AG48: ='Resultats PMV'!AR38/'Resultats PMV'!$AX38 ->  | AH48: ='Resultats PMV'!AS38/'Resultats PMV'!$AX38 ->  | AI48: ='Resultats PMV'!AT38/'Resultats PMV'!$AX38 ->  | AJ48: ='Resultats PMV'!AU38/'Resultats PMV'!$AX38 ->  | AK48: ='Resultats PMV'!AV38/'Resultats PMV'!$AX38 ->  | AL48: ='Resultats PMV'!AW38/'Resultats PMV'!$AX38 -> 
B49: ='Resultats PMV'!A39 -> 0 | C49: ='Resultats PMV'!F39/'Resultats PMV'!$P39 ->  | D49: ='Resultats PMV'!G39/'Resultats PMV'!$P39 ->  | E49: ='Resultats PMV'!H39/'Resultats PMV'!$P39 ->  | F49: ='Resultats PMV'!I39/'Resultats PMV'!$P39 ->  | G49: ='Resultats PMV'!J39/'Resultats PMV'!$P39 ->  | H49: ='Resultats PMV'!K39/'Resultats PMV'!$P39 ->  | I49: ='Resultats PMV'!L39/'Resultats PMV'!$P39 ->  | J49: ='Resultats PMV'!M39/'Resultats PMV'!$P39 ->  | K49: ='Resultats PMV'!N39/'Resultats PMV'!$P39 ->  | L49: ='Resultats PMV'!O39/'Resultats PMV'!$P39 ->  | O49: ='Resultats PMV'!R39 -> 0 | P49: ='Resultats PMV'!S39/'Resultats PMV'!$P39 ->  | Q49: ='Resultats PMV'!T39/'Resultats PMV'!$P39 ->  | R49: ='Resultats PMV'!U39/'Resultats PMV'!$P39 ->  | S49: ='Resultats PMV'!V39/'Resultats PMV'!$P39 ->  | T49: ='Resultats PMV'!W39/'Resultats PMV'!$P39 ->  | U49: ='Resultats PMV'!X39/'Resultats PMV'!$P39 ->  | V49: ='Resultats PMV'!Y39/'Resultats PMV'!$P39 ->  | W49: ='Resultats PMV'!Z39/'Resultats PMV'!$P39 ->  | X49: ='Resultats PMV'!AA39/'Resultats PMV'!$P39 ->  | Y49: ='Resultats PMV'!AB39/'Resultats PMV'!$P39 ->  | AB49: ='Resultats PMV'!AI39 -> 0 | AC49: ='Resultats PMV'!AN39/'Resultats PMV'!$AX39 ->  | AD49: ='Resultats PMV'!AO39/'Resultats PMV'!$AX39 ->  | AE49: ='Resultats PMV'!AP39/'Resultats PMV'!$AX39 ->  | AF49: ='Resultats PMV'!AQ39/'Resultats PMV'!$AX39 ->  | AG49: ='Resultats PMV'!AR39/'Resultats PMV'!$AX39 ->  | AH49: ='Resultats PMV'!AS39/'Resultats PMV'!$AX39 ->  | AI49: ='Resultats PMV'!AT39/'Resultats PMV'!$AX39 ->  | AJ49: ='Resultats PMV'!AU39/'Resultats PMV'!$AX39 ->  | AK49: ='Resultats PMV'!AV39/'Resultats PMV'!$AX39 ->  | AL49: ='Resultats PMV'!AW39/'Resultats PMV'!$AX39 -> 
B50: ='Resultats PMV'!A40 -> 0 | C50: ='Resultats PMV'!F40/'Resultats PMV'!$P40 ->  | D50: ='Resultats PMV'!G40/'Resultats PMV'!$P40 ->  | E50: ='Resultats PMV'!H40/'Resultats PMV'!$P40 ->  | F50: ='Resultats PMV'!I40/'Resultats PMV'!$P40 ->  | G50: ='Resultats PMV'!J40/'Resultats PMV'!$P40 ->  | H50: ='Resultats PMV'!K40/'Resultats PMV'!$P40 ->  | I50: ='Resultats PMV'!L40/'Resultats PMV'!$P40 ->  | J50: ='Resultats PMV'!M40/'Resultats PMV'!$P40 ->  | K50: ='Resultats PMV'!N40/'Resultats PMV'!$P40 ->  | L50: ='Resultats PMV'!O40/'Resultats PMV'!$P40 ->  | O50: ='Resultats PMV'!R40 -> 0 | P50: ='Resultats PMV'!S40/'Resultats PMV'!$P40 ->  | Q50: ='Resultats PMV'!T40/'Resultats PMV'!$P40 ->  | R50: ='Resultats PMV'!U40/'Resultats PMV'!$P40 ->  | S50: ='Resultats PMV'!V40/'Resultats PMV'!$P40 ->  | T50: ='Resultats PMV'!W40/'Resultats PMV'!$P40 ->  | U50: ='Resultats PMV'!X40/'Resultats PMV'!$P40 ->  | V50: ='Resultats PMV'!Y40/'Resultats PMV'!$P40 ->  | W50: ='Resultats PMV'!Z40/'Resultats PMV'!$P40 ->  | X50: ='Resultats PMV'!AA40/'Resultats PMV'!$P40 ->  | Y50: ='Resultats PMV'!AB40/'Resultats PMV'!$P40 ->  | AB50: ='Resultats PMV'!AI40 -> 0 | AC50: ='Resultats PMV'!AN40/'Resultats PMV'!$AX40 ->  | AD50: ='Resultats PMV'!AO40/'Resultats PMV'!$AX40 ->  | AE50: ='Resultats PMV'!AP40/'Resultats PMV'!$AX40 ->  | AF50: ='Resultats PMV'!AQ40/'Resultats PMV'!$AX40 ->  | AG50: ='Resultats PMV'!AR40/'Resultats PMV'!$AX40 ->  | AH50: ='Resultats PMV'!AS40/'Resultats PMV'!$AX40 ->  | AI50: ='Resultats PMV'!AT40/'Resultats PMV'!$AX40 ->  | AJ50: ='Resultats PMV'!AU40/'Resultats PMV'!$AX40 ->  | AK50: ='Resultats PMV'!AV40/'Resultats PMV'!$AX40 ->  | AL50: ='Resultats PMV'!AW40/'Resultats PMV'!$AX40 -> 
B51: ='Resultats PMV'!A41 -> 0 | C51: ='Resultats PMV'!F41/'Resultats PMV'!$P41 ->  | D51: ='Resultats PMV'!G41/'Resultats PMV'!$P41 ->  | E51: ='Resultats PMV'!H41/'Resultats PMV'!$P41 ->  | F51: ='Resultats PMV'!I41/'Resultats PMV'!$P41 ->  | G51: ='Resultats PMV'!J41/'Resultats PMV'!$P41 ->  | H51: ='Resultats PMV'!K41/'Resultats PMV'!$P41 ->  | I51: ='Resultats PMV'!L41/'Resultats PMV'!$P41 ->  | J51: ='Resultats PMV'!M41/'Resultats PMV'!$P41 ->  | K51: ='Resultats PMV'!N41/'Resultats PMV'!$P41 ->  | L51: ='Resultats PMV'!O41/'Resultats PMV'!$P41 ->  | O51: ='Resultats PMV'!R41 -> 0 | P51: ='Resultats PMV'!S41/'Resultats PMV'!$P41 ->  | Q51: ='Resultats PMV'!T41/'Resultats PMV'!$P41 ->  | R51: ='Resultats PMV'!U41/'Resultats PMV'!$P41 ->  | S51: ='Resultats PMV'!V41/'Resultats PMV'!$P41 ->  | T51: ='Resultats PMV'!W41/'Resultats PMV'!$P41 ->  | U51: ='Resultats PMV'!X41/'Resultats PMV'!$P41 ->  | V51: ='Resultats PMV'!Y41/'Resultats PMV'!$P41 ->  | W51: ='Resultats PMV'!Z41/'Resultats PMV'!$P41 ->  | X51: ='Resultats PMV'!AA41/'Resultats PMV'!$P41 ->  | Y51: ='Resultats PMV'!AB41/'Resultats PMV'!$P41 ->  | AB51: ='Resultats PMV'!AI41 -> 0 | AC51: ='Resultats PMV'!AN41/'Resultats PMV'!$AX41 ->  | AD51: ='Resultats PMV'!AO41/'Resultats PMV'!$AX41 ->  | AE51: ='Resultats PMV'!AP41/'Resultats PMV'!$AX41 ->  | AF51: ='Resultats PMV'!AQ41/'Resultats PMV'!$AX41 ->  | AG51: ='Resultats PMV'!AR41/'Resultats PMV'!$AX41 ->  | AH51: ='Resultats PMV'!AS41/'Resultats PMV'!$AX41 ->  | AI51: ='Resultats PMV'!AT41/'Resultats PMV'!$AX41 ->  | AJ51: ='Resultats PMV'!AU41/'Resultats PMV'!$AX41 ->  | AK51: ='Resultats PMV'!AV41/'Resultats PMV'!$AX41 ->  | AL51: ='Resultats PMV'!AW41/'Resultats PMV'!$AX41 -> 
B52: ='Resultats PMV'!A42 -> 0 | C52: ='Resultats PMV'!F42/'Resultats PMV'!$P42 ->  | D52: ='Resultats PMV'!G42/'Resultats PMV'!$P42 ->  | E52: ='Resultats PMV'!H42/'Resultats PMV'!$P42 ->  | F52: ='Resultats PMV'!I42/'Resultats PMV'!$P42 ->  | G52: ='Resultats PMV'!J42/'Resultats PMV'!$P42 ->  | H52: ='Resultats PMV'!K42/'Resultats PMV'!$P42 ->  | I52: ='Resultats PMV'!L42/'Resultats PMV'!$P42 ->  | J52: ='Resultats PMV'!M42/'Resultats PMV'!$P42 ->  | K52: ='Resultats PMV'!N42/'Resultats PMV'!$P42 ->  | L52: ='Resultats PMV'!O42/'Resultats PMV'!$P42 ->  | O52: ='Resultats PMV'!R42 -> 0 | P52: ='Resultats PMV'!S42/'Resultats PMV'!$P42 ->  | Q52: ='Resultats PMV'!T42/'Resultats PMV'!$P42 ->  | R52: ='Resultats PMV'!U42/'Resultats PMV'!$P42 ->  | S52: ='Resultats PMV'!V42/'Resultats PMV'!$P42 ->  | T52: ='Resultats PMV'!W42/'Resultats PMV'!$P42 ->  | U52: ='Resultats PMV'!X42/'Resultats PMV'!$P42 ->  | V52: ='Resultats PMV'!Y42/'Resultats PMV'!$P42 ->  | W52: ='Resultats PMV'!Z42/'Resultats PMV'!$P42 ->  | X52: ='Resultats PMV'!AA42/'Resultats PMV'!$P42 ->  | Y52: ='Resultats PMV'!AB42/'Resultats PMV'!$P42 ->  | AB52: ='Resultats PMV'!AI42 -> 0 | AC52: ='Resultats PMV'!AN42/'Resultats PMV'!$AX42 ->  | AD52: ='Resultats PMV'!AO42/'Resultats PMV'!$AX42 ->  | AE52: ='Resultats PMV'!AP42/'Resultats PMV'!$AX42 ->  | AF52: ='Resultats PMV'!AQ42/'Resultats PMV'!$AX42 ->  | AG52: ='Resultats PMV'!AR42/'Resultats PMV'!$AX42 ->  | AH52: ='Resultats PMV'!AS42/'Resultats PMV'!$AX42 ->  | AI52: ='Resultats PMV'!AT42/'Resultats PMV'!$AX42 ->  | AJ52: ='Resultats PMV'!AU42/'Resultats PMV'!$AX42 ->  | AK52: ='Resultats PMV'!AV42/'Resultats PMV'!$AX42 ->  | AL52: ='Resultats PMV'!AW42/'Resultats PMV'!$AX42 -> 
B53: ='Resultats PMV'!A43 -> 0 | C53: ='Resultats PMV'!F43/'Resultats PMV'!$P43 ->  | D53: ='Resultats PMV'!G43/'Resultats PMV'!$P43 ->  | E53: ='Resultats PMV'!H43/'Resultats PMV'!$P43 ->  | F53: ='Resultats PMV'!I43/'Resultats PMV'!$P43 ->  | G53: ='Resultats PMV'!J43/'Resultats PMV'!$P43 ->  | H53: ='Resultats PMV'!K43/'Resultats PMV'!$P43 ->  | I53: ='Resultats PMV'!L43/'Resultats PMV'!$P43 ->  | J53: ='Resultats PMV'!M43/'Resultats PMV'!$P43 ->  | K53: ='Resultats PMV'!N43/'Resultats PMV'!$P43 ->  | L53: ='Resultats PMV'!O43/'Resultats PMV'!$P43 ->  | O53: ='Resultats PMV'!R43 -> 0 | P53: ='Resultats PMV'!S43/'Resultats PMV'!$P43 ->  | Q53: ='Resultats PMV'!T43/'Resultats PMV'!$P43 ->  | R53: ='Resultats PMV'!U43/'Resultats PMV'!$P43 ->  | S53: ='Resultats PMV'!V43/'Resultats PMV'!$P43 ->  | T53: ='Resultats PMV'!W43/'Resultats PMV'!$P43 ->  | U53: ='Resultats PMV'!X43/'Resultats PMV'!$P43 ->  | V53: ='Resultats PMV'!Y43/'Resultats PMV'!$P43 ->  | W53: ='Resultats PMV'!Z43/'Resultats PMV'!$P43 ->  | X53: ='Resultats PMV'!AA43/'Resultats PMV'!$P43 ->  | Y53: ='Resultats PMV'!AB43/'Resultats PMV'!$P43 ->  | AB53: ='Resultats PMV'!AI43 -> 0 | AC53: ='Resultats PMV'!AN43/'Resultats PMV'!$AX43 ->  | AD53: ='Resultats PMV'!AO43/'Resultats PMV'!$AX43 ->  | AE53: ='Resultats PMV'!AP43/'Resultats PMV'!$AX43 ->  | AF53: ='Resultats PMV'!AQ43/'Resultats PMV'!$AX43 ->  | AG53: ='Resultats PMV'!AR43/'Resultats PMV'!$AX43 ->  | AH53: ='Resultats PMV'!AS43/'Resultats PMV'!$AX43 ->  | AI53: ='Resultats PMV'!AT43/'Resultats PMV'!$AX43 ->  | AJ53: ='Resultats PMV'!AU43/'Resultats PMV'!$AX43 ->  | AK53: ='Resultats PMV'!AV43/'Resultats PMV'!$AX43 ->  | AL53: ='Resultats PMV'!AW43/'Resultats PMV'!$AX43 -> 
B54: ='Resultats PMV'!A44 -> 0 | C54: ='Resultats PMV'!F44/'Resultats PMV'!$P44 ->  | D54: ='Resultats PMV'!G44/'Resultats PMV'!$P44 ->  | E54: ='Resultats PMV'!H44/'Resultats PMV'!$P44 ->  | F54: ='Resultats PMV'!I44/'Resultats PMV'!$P44 ->  | G54: ='Resultats PMV'!J44/'Resultats PMV'!$P44 ->  | H54: ='Resultats PMV'!K44/'Resultats PMV'!$P44 ->  | I54: ='Resultats PMV'!L44/'Resultats PMV'!$P44 ->  | J54: ='Resultats PMV'!M44/'Resultats PMV'!$P44 ->  | K54: ='Resultats PMV'!N44/'Resultats PMV'!$P44 ->  | L54: ='Resultats PMV'!O44/'Resultats PMV'!$P44 ->  | O54: ='Resultats PMV'!R44 -> 0 | P54: ='Resultats PMV'!S44/'Resultats PMV'!$P44 ->  | Q54: ='Resultats PMV'!T44/'Resultats PMV'!$P44 ->  | R54: ='Resultats PMV'!U44/'Resultats PMV'!$P44 ->  | S54: ='Resultats PMV'!V44/'Resultats PMV'!$P44 ->  | T54: ='Resultats PMV'!W44/'Resultats PMV'!$P44 ->  | U54: ='Resultats PMV'!X44/'Resultats PMV'!$P44 ->  | V54: ='Resultats PMV'!Y44/'Resultats PMV'!$P44 ->  | W54: ='Resultats PMV'!Z44/'Resultats PMV'!$P44 ->  | X54: ='Resultats PMV'!AA44/'Resultats PMV'!$P44 ->  | Y54: ='Resultats PMV'!AB44/'Resultats PMV'!$P44 ->  | AB54: ='Resultats PMV'!AI44 -> 0 | AC54: ='Resultats PMV'!AN44/'Resultats PMV'!$AX44 ->  | AD54: ='Resultats PMV'!AO44/'Resultats PMV'!$AX44 ->  | AE54: ='Resultats PMV'!AP44/'Resultats PMV'!$AX44 ->  | AF54: ='Resultats PMV'!AQ44/'Resultats PMV'!$AX44 ->  | AG54: ='Resultats PMV'!AR44/'Resultats PMV'!$AX44 ->  | AH54: ='Resultats PMV'!AS44/'Resultats PMV'!$AX44 ->  | AI54: ='Resultats PMV'!AT44/'Resultats PMV'!$AX44 ->  | AJ54: ='Resultats PMV'!AU44/'Resultats PMV'!$AX44 ->  | AK54: ='Resultats PMV'!AV44/'Resultats PMV'!$AX44 ->  | AL54: ='Resultats PMV'!AW44/'Resultats PMV'!$AX44 -> 
B55: ='Resultats PMV'!A45 -> 0 | C55: ='Resultats PMV'!F45/'Resultats PMV'!$P45 ->  | D55: ='Resultats PMV'!G45/'Resultats PMV'!$P45 ->  | E55: ='Resultats PMV'!H45/'Resultats PMV'!$P45 ->  | F55: ='Resultats PMV'!I45/'Resultats PMV'!$P45 ->  | G55: ='Resultats PMV'!J45/'Resultats PMV'!$P45 ->  | H55: ='Resultats PMV'!K45/'Resultats PMV'!$P45 ->  | I55: ='Resultats PMV'!L45/'Resultats PMV'!$P45 ->  | J55: ='Resultats PMV'!M45/'Resultats PMV'!$P45 ->  | K55: ='Resultats PMV'!N45/'Resultats PMV'!$P45 ->  | L55: ='Resultats PMV'!O45/'Resultats PMV'!$P45 ->  | O55: ='Resultats PMV'!R45 -> 0 | P55: ='Resultats PMV'!S45/'Resultats PMV'!$P45 ->  | Q55: ='Resultats PMV'!T45/'Resultats PMV'!$P45 ->  | R55: ='Resultats PMV'!U45/'Resultats PMV'!$P45 ->  | S55: ='Resultats PMV'!V45/'Resultats PMV'!$P45 ->  | T55: ='Resultats PMV'!W45/'Resultats PMV'!$P45 ->  | U55: ='Resultats PMV'!X45/'Resultats PMV'!$P45 ->  | V55: ='Resultats PMV'!Y45/'Resultats PMV'!$P45 ->  | W55: ='Resultats PMV'!Z45/'Resultats PMV'!$P45 ->  | X55: ='Resultats PMV'!AA45/'Resultats PMV'!$P45 ->  | Y55: ='Resultats PMV'!AB45/'Resultats PMV'!$P45 ->  | AB55: ='Resultats PMV'!AI45 -> 0 | AC55: ='Resultats PMV'!AN45/'Resultats PMV'!$AX45 ->  | AD55: ='Resultats PMV'!AO45/'Resultats PMV'!$AX45 ->  | AE55: ='Resultats PMV'!AP45/'Resultats PMV'!$AX45 ->  | AF55: ='Resultats PMV'!AQ45/'Resultats PMV'!$AX45 ->  | AG55: ='Resultats PMV'!AR45/'Resultats PMV'!$AX45 ->  | AH55: ='Resultats PMV'!AS45/'Resultats PMV'!$AX45 ->  | AI55: ='Resultats PMV'!AT45/'Resultats PMV'!$AX45 ->  | AJ55: ='Resultats PMV'!AU45/'Resultats PMV'!$AX45 ->  | AK55: ='Resultats PMV'!AV45/'Resultats PMV'!$AX45 ->  | AL55: ='Resultats PMV'!AW45/'Resultats PMV'!$AX45 -> 
B56: ='Resultats PMV'!A46 -> 0 | C56: ='Resultats PMV'!F46/'Resultats PMV'!$P46 ->  | D56: ='Resultats PMV'!G46/'Resultats PMV'!$P46 ->  | E56: ='Resultats PMV'!H46/'Resultats PMV'!$P46 ->  | F56: ='Resultats PMV'!I46/'Resultats PMV'!$P46 ->  | G56: ='Resultats PMV'!J46/'Resultats PMV'!$P46 ->  | H56: ='Resultats PMV'!K46/'Resultats PMV'!$P46 ->  | I56: ='Resultats PMV'!L46/'Resultats PMV'!$P46 ->  | J56: ='Resultats PMV'!M46/'Resultats PMV'!$P46 ->  | K56: ='Resultats PMV'!N46/'Resultats PMV'!$P46 ->  | L56: ='Resultats PMV'!O46/'Resultats PMV'!$P46 ->  | O56: ='Resultats PMV'!R46 -> 0 | P56: ='Resultats PMV'!S46/'Resultats PMV'!$P46 ->  | Q56: ='Resultats PMV'!T46/'Resultats PMV'!$P46 ->  | R56: ='Resultats PMV'!U46/'Resultats PMV'!$P46 ->  | S56: ='Resultats PMV'!V46/'Resultats PMV'!$P46 ->  | T56: ='Resultats PMV'!W46/'Resultats PMV'!$P46 ->  | U56: ='Resultats PMV'!X46/'Resultats PMV'!$P46 ->  | V56: ='Resultats PMV'!Y46/'Resultats PMV'!$P46 ->  | W56: ='Resultats PMV'!Z46/'Resultats PMV'!$P46 ->  | X56: ='Resultats PMV'!AA46/'Resultats PMV'!$P46 ->  | Y56: ='Resultats PMV'!AB46/'Resultats PMV'!$P46 ->  | AB56: ='Resultats PMV'!AI46 -> 0 | AC56: ='Resultats PMV'!AN46/'Resultats PMV'!$AX46 ->  | AD56: ='Resultats PMV'!AO46/'Resultats PMV'!$AX46 ->  | AE56: ='Resultats PMV'!AP46/'Resultats PMV'!$AX46 ->  | AF56: ='Resultats PMV'!AQ46/'Resultats PMV'!$AX46 ->  | AG56: ='Resultats PMV'!AR46/'Resultats PMV'!$AX46 ->  | AH56: ='Resultats PMV'!AS46/'Resultats PMV'!$AX46 ->  | AI56: ='Resultats PMV'!AT46/'Resultats PMV'!$AX46 ->  | AJ56: ='Resultats PMV'!AU46/'Resultats PMV'!$AX46 ->  | AK56: ='Resultats PMV'!AV46/'Resultats PMV'!$AX46 ->  | AL56: ='Resultats PMV'!AW46/'Resultats PMV'!$AX46 -> 
B57: ='Resultats PMV'!A47 -> 0 | C57: ='Resultats PMV'!F47/'Resultats PMV'!$P47 ->  | D57: ='Resultats PMV'!G47/'Resultats PMV'!$P47 ->  | E57: ='Resultats PMV'!H47/'Resultats PMV'!$P47 ->  | F57: ='Resultats PMV'!I47/'Resultats PMV'!$P47 ->  | G57: ='Resultats PMV'!J47/'Resultats PMV'!$P47 ->  | H57: ='Resultats PMV'!K47/'Resultats PMV'!$P47 ->  | I57: ='Resultats PMV'!L47/'Resultats PMV'!$P47 ->  | J57: ='Resultats PMV'!M47/'Resultats PMV'!$P47 ->  | K57: ='Resultats PMV'!N47/'Resultats PMV'!$P47 ->  | L57: ='Resultats PMV'!O47/'Resultats PMV'!$P47 ->  | O57: ='Resultats PMV'!R47 -> 0 | P57: ='Resultats PMV'!S47/'Resultats PMV'!$P47 ->  | Q57: ='Resultats PMV'!T47/'Resultats PMV'!$P47 ->  | R57: ='Resultats PMV'!U47/'Resultats PMV'!$P47 ->  | S57: ='Resultats PMV'!V47/'Resultats PMV'!$P47 ->  | T57: ='Resultats PMV'!W47/'Resultats PMV'!$P47 ->  | U57: ='Resultats PMV'!X47/'Resultats PMV'!$P47 ->  | V57: ='Resultats PMV'!Y47/'Resultats PMV'!$P47 ->  | W57: ='Resultats PMV'!Z47/'Resultats PMV'!$P47 ->  | X57: ='Resultats PMV'!AA47/'Resultats PMV'!$P47 ->  | Y57: ='Resultats PMV'!AB47/'Resultats PMV'!$P47 ->  | AB57: ='Resultats PMV'!AI47 -> 0 | AC57: ='Resultats PMV'!AN47/'Resultats PMV'!$AX47 ->  | AD57: ='Resultats PMV'!AO47/'Resultats PMV'!$AX47 ->  | AE57: ='Resultats PMV'!AP47/'Resultats PMV'!$AX47 ->  | AF57: ='Resultats PMV'!AQ47/'Resultats PMV'!$AX47 ->  | AG57: ='Resultats PMV'!AR47/'Resultats PMV'!$AX47 ->  | AH57: ='Resultats PMV'!AS47/'Resultats PMV'!$AX47 ->  | AI57: ='Resultats PMV'!AT47/'Resultats PMV'!$AX47 ->  | AJ57: ='Resultats PMV'!AU47/'Resultats PMV'!$AX47 ->  | AK57: ='Resultats PMV'!AV47/'Resultats PMV'!$AX47 ->  | AL57: ='Resultats PMV'!AW47/'Resultats PMV'!$AX47 -> 
B58: ='Resultats PMV'!A48 -> 0 | C58: ='Resultats PMV'!F48/'Resultats PMV'!$P48 ->  | D58: ='Resultats PMV'!G48/'Resultats PMV'!$P48 ->  | E58: ='Resultats PMV'!H48/'Resultats PMV'!$P48 ->  | F58: ='Resultats PMV'!I48/'Resultats PMV'!$P48 ->  | G58: ='Resultats PMV'!J48/'Resultats PMV'!$P48 ->  | H58: ='Resultats PMV'!K48/'Resultats PMV'!$P48 ->  | I58: ='Resultats PMV'!L48/'Resultats PMV'!$P48 ->  | J58: ='Resultats PMV'!M48/'Resultats PMV'!$P48 ->  | K58: ='Resultats PMV'!N48/'Resultats PMV'!$P48 ->  | L58: ='Resultats PMV'!O48/'Resultats PMV'!$P48 ->  | O58: ='Resultats PMV'!R48 -> 0 | P58: ='Resultats PMV'!S48/'Resultats PMV'!$P48 ->  | Q58: ='Resultats PMV'!T48/'Resultats PMV'!$P48 ->  | R58: ='Resultats PMV'!U48/'Resultats PMV'!$P48 ->  | S58: ='Resultats PMV'!V48/'Resultats PMV'!$P48 ->  | T58: ='Resultats PMV'!W48/'Resultats PMV'!$P48 ->  | U58: ='Resultats PMV'!X48/'Resultats PMV'!$P48 ->  | V58: ='Resultats PMV'!Y48/'Resultats PMV'!$P48 ->  | W58: ='Resultats PMV'!Z48/'Resultats PMV'!$P48 ->  | X58: ='Resultats PMV'!AA48/'Resultats PMV'!$P48 ->  | Y58: ='Resultats PMV'!AB48/'Resultats PMV'!$P48 ->  | AB58: ='Resultats PMV'!AI48 -> 0 | AC58: ='Resultats PMV'!AN48/'Resultats PMV'!$AX48 ->  | AD58: ='Resultats PMV'!AO48/'Resultats PMV'!$AX48 ->  | AE58: ='Resultats PMV'!AP48/'Resultats PMV'!$AX48 ->  | AF58: ='Resultats PMV'!AQ48/'Resultats PMV'!$AX48 ->  | AG58: ='Resultats PMV'!AR48/'Resultats PMV'!$AX48 ->  | AH58: ='Resultats PMV'!AS48/'Resultats PMV'!$AX48 ->  | AI58: ='Resultats PMV'!AT48/'Resultats PMV'!$AX48 ->  | AJ58: ='Resultats PMV'!AU48/'Resultats PMV'!$AX48 ->  | AK58: ='Resultats PMV'!AV48/'Resultats PMV'!$AX48 ->  | AL58: ='Resultats PMV'!AW48/'Resultats PMV'!$AX48 -> 
B59: ='Resultats PMV'!A49 -> 0 | C59: ='Resultats PMV'!F49/'Resultats PMV'!$P49 ->  | D59: ='Resultats PMV'!G49/'Resultats PMV'!$P49 ->  | E59: ='Resultats PMV'!H49/'Resultats PMV'!$P49 ->  | F59: ='Resultats PMV'!I49/'Resultats PMV'!$P49 ->  | G59: ='Resultats PMV'!J49/'Resultats PMV'!$P49 ->  | H59: ='Resultats PMV'!K49/'Resultats PMV'!$P49 ->  | I59: ='Resultats PMV'!L49/'Resultats PMV'!$P49 ->  | J59: ='Resultats PMV'!M49/'Resultats PMV'!$P49 ->  | K59: ='Resultats PMV'!N49/'Resultats PMV'!$P49 ->  | L59: ='Resultats PMV'!O49/'Resultats PMV'!$P49 ->  | O59: ='Resultats PMV'!R49 -> 0 | P59: ='Resultats PMV'!S49/'Resultats PMV'!$P49 ->  | Q59: ='Resultats PMV'!T49/'Resultats PMV'!$P49 ->  | R59: ='Resultats PMV'!U49/'Resultats PMV'!$P49 ->  | S59: ='Resultats PMV'!V49/'Resultats PMV'!$P49 ->  | T59: ='Resultats PMV'!W49/'Resultats PMV'!$P49 ->  | U59: ='Resultats PMV'!X49/'Resultats PMV'!$P49 ->  | V59: ='Resultats PMV'!Y49/'Resultats PMV'!$P49 ->  | W59: ='Resultats PMV'!Z49/'Resultats PMV'!$P49 ->  | X59: ='Resultats PMV'!AA49/'Resultats PMV'!$P49 ->  | Y59: ='Resultats PMV'!AB49/'Resultats PMV'!$P49 ->  | AB59: ='Resultats PMV'!AI49 -> 0 | AC59: ='Resultats PMV'!AN49/'Resultats PMV'!$AX49 ->  | AD59: ='Resultats PMV'!AO49/'Resultats PMV'!$AX49 ->  | AE59: ='Resultats PMV'!AP49/'Resultats PMV'!$AX49 ->  | AF59: ='Resultats PMV'!AQ49/'Resultats PMV'!$AX49 ->  | AG59: ='Resultats PMV'!AR49/'Resultats PMV'!$AX49 ->  | AH59: ='Resultats PMV'!AS49/'Resultats PMV'!$AX49 ->  | AI59: ='Resultats PMV'!AT49/'Resultats PMV'!$AX49 ->  | AJ59: ='Resultats PMV'!AU49/'Resultats PMV'!$AX49 ->  | AK59: ='Resultats PMV'!AV49/'Resultats PMV'!$AX49 ->  | AL59: ='Resultats PMV'!AW49/'Resultats PMV'!$AX49 -> 
B60: ='Resultats PMV'!A50 -> 0 | C60: ='Resultats PMV'!F50/'Resultats PMV'!$P50 ->  | D60: ='Resultats PMV'!G50/'Resultats PMV'!$P50 ->  | E60: ='Resultats PMV'!H50/'Resultats PMV'!$P50 ->  | F60: ='Resultats PMV'!I50/'Resultats PMV'!$P50 ->  | G60: ='Resultats PMV'!J50/'Resultats PMV'!$P50 ->  | H60: ='Resultats PMV'!K50/'Resultats PMV'!$P50 ->  | I60: ='Resultats PMV'!L50/'Resultats PMV'!$P50 ->  | J60: ='Resultats PMV'!M50/'Resultats PMV'!$P50 ->  | K60: ='Resultats PMV'!N50/'Resultats PMV'!$P50 ->  | L60: ='Resultats PMV'!O50/'Resultats PMV'!$P50 ->  | O60: ='Resultats PMV'!R50 -> 0 | P60: ='Resultats PMV'!S50/'Resultats PMV'!$P50 ->  | Q60: ='Resultats PMV'!T50/'Resultats PMV'!$P50 ->  | R60: ='Resultats PMV'!U50/'Resultats PMV'!$P50 ->  | S60: ='Resultats PMV'!V50/'Resultats PMV'!$P50 ->  | T60: ='Resultats PMV'!W50/'Resultats PMV'!$P50 ->  | U60: ='Resultats PMV'!X50/'Resultats PMV'!$P50 ->  | V60: ='Resultats PMV'!Y50/'Resultats PMV'!$P50 ->  | W60: ='Resultats PMV'!Z50/'Resultats PMV'!$P50 ->  | X60: ='Resultats PMV'!AA50/'Resultats PMV'!$P50 ->  | Y60: ='Resultats PMV'!AB50/'Resultats PMV'!$P50 ->  | AB60: ='Resultats PMV'!AI50 -> 0 | AC60: ='Resultats PMV'!AN50/'Resultats PMV'!$AX50 ->  | AD60: ='Resultats PMV'!AO50/'Resultats PMV'!$AX50 ->  | AE60: ='Resultats PMV'!AP50/'Resultats PMV'!$AX50 ->  | AF60: ='Resultats PMV'!AQ50/'Resultats PMV'!$AX50 ->  | AG60: ='Resultats PMV'!AR50/'Resultats PMV'!$AX50 ->  | AH60: ='Resultats PMV'!AS50/'Resultats PMV'!$AX50 ->  | AI60: ='Resultats PMV'!AT50/'Resultats PMV'!$AX50 ->  | AJ60: ='Resultats PMV'!AU50/'Resultats PMV'!$AX50 ->  | AK60: ='Resultats PMV'!AV50/'Resultats PMV'!$AX50 ->  | AL60: ='Resultats PMV'!AW50/'Resultats PMV'!$AX50 -> 
B61: ='Resultats PMV'!A51 -> 0 | C61: ='Resultats PMV'!F51/'Resultats PMV'!$P51 ->  | D61: ='Resultats PMV'!G51/'Resultats PMV'!$P51 ->  | E61: ='Resultats PMV'!H51/'Resultats PMV'!$P51 ->  | F61: ='Resultats PMV'!I51/'Resultats PMV'!$P51 ->  | G61: ='Resultats PMV'!J51/'Resultats PMV'!$P51 ->  | H61: ='Resultats PMV'!K51/'Resultats PMV'!$P51 ->  | I61: ='Resultats PMV'!L51/'Resultats PMV'!$P51 ->  | J61: ='Resultats PMV'!M51/'Resultats PMV'!$P51 ->  | K61: ='Resultats PMV'!N51/'Resultats PMV'!$P51 ->  | L61: ='Resultats PMV'!O51/'Resultats PMV'!$P51 ->  | O61: ='Resultats PMV'!R51 -> 0 | P61: ='Resultats PMV'!S51/'Resultats PMV'!$P51 ->  | Q61: ='Resultats PMV'!T51/'Resultats PMV'!$P51 ->  | R61: ='Resultats PMV'!U51/'Resultats PMV'!$P51 ->  | S61: ='Resultats PMV'!V51/'Resultats PMV'!$P51 ->  | T61: ='Resultats PMV'!W51/'Resultats PMV'!$P51 ->  | U61: ='Resultats PMV'!X51/'Resultats PMV'!$P51 ->  | V61: ='Resultats PMV'!Y51/'Resultats PMV'!$P51 ->  | W61: ='Resultats PMV'!Z51/'Resultats PMV'!$P51 ->  | X61: ='Resultats PMV'!AA51/'Resultats PMV'!$P51 ->  | Y61: ='Resultats PMV'!AB51/'Resultats PMV'!$P51 ->  | AB61: ='Resultats PMV'!AI51 -> 0 | AC61: ='Resultats PMV'!AN51/'Resultats PMV'!$AX51 ->  | AD61: ='Resultats PMV'!AO51/'Resultats PMV'!$AX51 ->  | AE61: ='Resultats PMV'!AP51/'Resultats PMV'!$AX51 ->  | AF61: ='Resultats PMV'!AQ51/'Resultats PMV'!$AX51 ->  | AG61: ='Resultats PMV'!AR51/'Resultats PMV'!$AX51 ->  | AH61: ='Resultats PMV'!AS51/'Resultats PMV'!$AX51 ->  | AI61: ='Resultats PMV'!AT51/'Resultats PMV'!$AX51 ->  | AJ61: ='Resultats PMV'!AU51/'Resultats PMV'!$AX51 ->  | AK61: ='Resultats PMV'!AV51/'Resultats PMV'!$AX51 ->  | AL61: ='Resultats PMV'!AW51/'Resultats PMV'!$AX51 -> 
B62: ='Resultats PMV'!A52 -> 0 | C62: ='Resultats PMV'!F52/'Resultats PMV'!$P52 ->  | D62: ='Resultats PMV'!G52/'Resultats PMV'!$P52 ->  | E62: ='Resultats PMV'!H52/'Resultats PMV'!$P52 ->  | F62: ='Resultats PMV'!I52/'Resultats PMV'!$P52 ->  | G62: ='Resultats PMV'!J52/'Resultats PMV'!$P52 ->  | H62: ='Resultats PMV'!K52/'Resultats PMV'!$P52 ->  | I62: ='Resultats PMV'!L52/'Resultats PMV'!$P52 ->  | J62: ='Resultats PMV'!M52/'Resultats PMV'!$P52 ->  | K62: ='Resultats PMV'!N52/'Resultats PMV'!$P52 ->  | L62: ='Resultats PMV'!O52/'Resultats PMV'!$P52 ->  | O62: ='Resultats PMV'!R52 -> 0 | P62: ='Resultats PMV'!S52/'Resultats PMV'!$P52 ->  | Q62: ='Resultats PMV'!T52/'Resultats PMV'!$P52 ->  | R62: ='Resultats PMV'!U52/'Resultats PMV'!$P52 ->  | S62: ='Resultats PMV'!V52/'Resultats PMV'!$P52 ->  | T62: ='Resultats PMV'!W52/'Resultats PMV'!$P52 ->  | U62: ='Resultats PMV'!X52/'Resultats PMV'!$P52 ->  | V62: ='Resultats PMV'!Y52/'Resultats PMV'!$P52 ->  | W62: ='Resultats PMV'!Z52/'Resultats PMV'!$P52 ->  | X62: ='Resultats PMV'!AA52/'Resultats PMV'!$P52 ->  | Y62: ='Resultats PMV'!AB52/'Resultats PMV'!$P52 ->  | AB62: ='Resultats PMV'!AI52 -> 0 | AC62: ='Resultats PMV'!AN52/'Resultats PMV'!$AX52 ->  | AD62: ='Resultats PMV'!AO52/'Resultats PMV'!$AX52 ->  | AE62: ='Resultats PMV'!AP52/'Resultats PMV'!$AX52 ->  | AF62: ='Resultats PMV'!AQ52/'Resultats PMV'!$AX52 ->  | AG62: ='Resultats PMV'!AR52/'Resultats PMV'!$AX52 ->  | AH62: ='Resultats PMV'!AS52/'Resultats PMV'!$AX52 ->  | AI62: ='Resultats PMV'!AT52/'Resultats PMV'!$AX52 ->  | AJ62: ='Resultats PMV'!AU52/'Resultats PMV'!$AX52 ->  | AK62: ='Resultats PMV'!AV52/'Resultats PMV'!$AX52 ->  | AL62: ='Resultats PMV'!AW52/'Resultats PMV'!$AX52 -> 
B63: ='Resultats PMV'!A53 -> 0 | C63: ='Resultats PMV'!F53/'Resultats PMV'!$P53 ->  | D63: ='Resultats PMV'!G53/'Resultats PMV'!$P53 ->  | E63: ='Resultats PMV'!H53/'Resultats PMV'!$P53 ->  | F63: ='Resultats PMV'!I53/'Resultats PMV'!$P53 ->  | G63: ='Resultats PMV'!J53/'Resultats PMV'!$P53 ->  | H63: ='Resultats PMV'!K53/'Resultats PMV'!$P53 ->  | I63: ='Resultats PMV'!L53/'Resultats PMV'!$P53 ->  | J63: ='Resultats PMV'!M53/'Resultats PMV'!$P53 ->  | K63: ='Resultats PMV'!N53/'Resultats PMV'!$P53 ->  | L63: ='Resultats PMV'!O53/'Resultats PMV'!$P53 ->  | O63: ='Resultats PMV'!R53 -> 0 | P63: ='Resultats PMV'!S53/'Resultats PMV'!$P53 ->  | Q63: ='Resultats PMV'!T53/'Resultats PMV'!$P53 ->  | R63: ='Resultats PMV'!U53/'Resultats PMV'!$P53 ->  | S63: ='Resultats PMV'!V53/'Resultats PMV'!$P53 ->  | T63: ='Resultats PMV'!W53/'Resultats PMV'!$P53 ->  | U63: ='Resultats PMV'!X53/'Resultats PMV'!$P53 ->  | V63: ='Resultats PMV'!Y53/'Resultats PMV'!$P53 ->  | W63: ='Resultats PMV'!Z53/'Resultats PMV'!$P53 ->  | X63: ='Resultats PMV'!AA53/'Resultats PMV'!$P53 ->  | Y63: ='Resultats PMV'!AB53/'Resultats PMV'!$P53 ->  | AB63: ='Resultats PMV'!AI53 -> 0 | AC63: ='Resultats PMV'!AN53/'Resultats PMV'!$AX53 ->  | AD63: ='Resultats PMV'!AO53/'Resultats PMV'!$AX53 ->  | AE63: ='Resultats PMV'!AP53/'Resultats PMV'!$AX53 ->  | AF63: ='Resultats PMV'!AQ53/'Resultats PMV'!$AX53 ->  | AG63: ='Resultats PMV'!AR53/'Resultats PMV'!$AX53 ->  | AH63: ='Resultats PMV'!AS53/'Resultats PMV'!$AX53 ->  | AI63: ='Resultats PMV'!AT53/'Resultats PMV'!$AX53 ->  | AJ63: ='Resultats PMV'!AU53/'Resultats PMV'!$AX53 ->  | AK63: ='Resultats PMV'!AV53/'Resultats PMV'!$AX53 ->  | AL63: ='Resultats PMV'!AW53/'Resultats PMV'!$AX53 -> 
B64: ='Resultats PMV'!A54 -> 0 | C64: ='Resultats PMV'!F54/'Resultats PMV'!$P54 ->  | D64: ='Resultats PMV'!G54/'Resultats PMV'!$P54 ->  | E64: ='Resultats PMV'!H54/'Resultats PMV'!$P54 ->  | F64: ='Resultats PMV'!I54/'Resultats PMV'!$P54 ->  | G64: ='Resultats PMV'!J54/'Resultats PMV'!$P54 ->  | H64: ='Resultats PMV'!K54/'Resultats PMV'!$P54 ->  | I64: ='Resultats PMV'!L54/'Resultats PMV'!$P54 ->  | J64: ='Resultats PMV'!M54/'Resultats PMV'!$P54 ->  | K64: ='Resultats PMV'!N54/'Resultats PMV'!$P54 ->  | L64: ='Resultats PMV'!O54/'Resultats PMV'!$P54 ->  | O64: ='Resultats PMV'!R54 -> 0 | P64: ='Resultats PMV'!S54/'Resultats PMV'!$P54 ->  | Q64: ='Resultats PMV'!T54/'Resultats PMV'!$P54 ->  | R64: ='Resultats PMV'!U54/'Resultats PMV'!$P54 ->  | S64: ='Resultats PMV'!V54/'Resultats PMV'!$P54 ->  | T64: ='Resultats PMV'!W54/'Resultats PMV'!$P54 ->  | U64: ='Resultats PMV'!X54/'Resultats PMV'!$P54 ->  | V64: ='Resultats PMV'!Y54/'Resultats PMV'!$P54 ->  | W64: ='Resultats PMV'!Z54/'Resultats PMV'!$P54 ->  | X64: ='Resultats PMV'!AA54/'Resultats PMV'!$P54 ->  | Y64: ='Resultats PMV'!AB54/'Resultats PMV'!$P54 ->  | AB64: ='Resultats PMV'!AI54 -> 0 | AC64: ='Resultats PMV'!AN54/'Resultats PMV'!$AX54 ->  | AD64: ='Resultats PMV'!AO54/'Resultats PMV'!$AX54 ->  | AE64: ='Resultats PMV'!AP54/'Resultats PMV'!$AX54 ->  | AF64: ='Resultats PMV'!AQ54/'Resultats PMV'!$AX54 ->  | AG64: ='Resultats PMV'!AR54/'Resultats PMV'!$AX54 ->  | AH64: ='Resultats PMV'!AS54/'Resultats PMV'!$AX54 ->  | AI64: ='Resultats PMV'!AT54/'Resultats PMV'!$AX54 ->  | AJ64: ='Resultats PMV'!AU54/'Resultats PMV'!$AX54 ->  | AK64: ='Resultats PMV'!AV54/'Resultats PMV'!$AX54 ->  | AL64: ='Resultats PMV'!AW54/'Resultats PMV'!$AX54 -> 
B65: ='Resultats PMV'!A55 -> 0 | C65: ='Resultats PMV'!F55/'Resultats PMV'!$P55 ->  | D65: ='Resultats PMV'!G55/'Resultats PMV'!$P55 ->  | E65: ='Resultats PMV'!H55/'Resultats PMV'!$P55 ->  | F65: ='Resultats PMV'!I55/'Resultats PMV'!$P55 ->  | G65: ='Resultats PMV'!J55/'Resultats PMV'!$P55 ->  | H65: ='Resultats PMV'!K55/'Resultats PMV'!$P55 ->  | I65: ='Resultats PMV'!L55/'Resultats PMV'!$P55 ->  | J65: ='Resultats PMV'!M55/'Resultats PMV'!$P55 ->  | K65: ='Resultats PMV'!N55/'Resultats PMV'!$P55 ->  | L65: ='Resultats PMV'!O55/'Resultats PMV'!$P55 ->  | O65: ='Resultats PMV'!R55 -> 0 | P65: ='Resultats PMV'!S55/'Resultats PMV'!$P55 ->  | Q65: ='Resultats PMV'!T55/'Resultats PMV'!$P55 ->  | R65: ='Resultats PMV'!U55/'Resultats PMV'!$P55 ->  | S65: ='Resultats PMV'!V55/'Resultats PMV'!$P55 ->  | T65: ='Resultats PMV'!W55/'Resultats PMV'!$P55 ->  | U65: ='Resultats PMV'!X55/'Resultats PMV'!$P55 ->  | V65: ='Resultats PMV'!Y55/'Resultats PMV'!$P55 ->  | W65: ='Resultats PMV'!Z55/'Resultats PMV'!$P55 ->  | X65: ='Resultats PMV'!AA55/'Resultats PMV'!$P55 ->  | Y65: ='Resultats PMV'!AB55/'Resultats PMV'!$P55 ->  | AB65: ='Resultats PMV'!AI55 -> 0 | AC65: ='Resultats PMV'!AN55/'Resultats PMV'!$AX55 ->  | AD65: ='Resultats PMV'!AO55/'Resultats PMV'!$AX55 ->  | AE65: ='Resultats PMV'!AP55/'Resultats PMV'!$AX55 ->  | AF65: ='Resultats PMV'!AQ55/'Resultats PMV'!$AX55 ->  | AG65: ='Resultats PMV'!AR55/'Resultats PMV'!$AX55 ->  | AH65: ='Resultats PMV'!AS55/'Resultats PMV'!$AX55 ->  | AI65: ='Resultats PMV'!AT55/'Resultats PMV'!$AX55 ->  | AJ65: ='Resultats PMV'!AU55/'Resultats PMV'!$AX55 ->  | AK65: ='Resultats PMV'!AV55/'Resultats PMV'!$AX55 ->  | AL65: ='Resultats PMV'!AW55/'Resultats PMV'!$AX55 -> 
B66: ='Resultats PMV'!A56 -> 0 | C66: ='Resultats PMV'!F56/'Resultats PMV'!$P56 ->  | D66: ='Resultats PMV'!G56/'Resultats PMV'!$P56 ->  | E66: ='Resultats PMV'!H56/'Resultats PMV'!$P56 ->  | F66: ='Resultats PMV'!I56/'Resultats PMV'!$P56 ->  | G66: ='Resultats PMV'!J56/'Resultats PMV'!$P56 ->  | H66: ='Resultats PMV'!K56/'Resultats PMV'!$P56 ->  | I66: ='Resultats PMV'!L56/'Resultats PMV'!$P56 ->  | J66: ='Resultats PMV'!M56/'Resultats PMV'!$P56 ->  | K66: ='Resultats PMV'!N56/'Resultats PMV'!$P56 ->  | L66: ='Resultats PMV'!O56/'Resultats PMV'!$P56 ->  | O66: ='Resultats PMV'!R56 -> 0 | P66: ='Resultats PMV'!S56/'Resultats PMV'!$P56 ->  | Q66: ='Resultats PMV'!T56/'Resultats PMV'!$P56 ->  | R66: ='Resultats PMV'!U56/'Resultats PMV'!$P56 ->  | S66: ='Resultats PMV'!V56/'Resultats PMV'!$P56 ->  | T66: ='Resultats PMV'!W56/'Resultats PMV'!$P56 ->  | U66: ='Resultats PMV'!X56/'Resultats PMV'!$P56 ->  | V66: ='Resultats PMV'!Y56/'Resultats PMV'!$P56 ->  | W66: ='Resultats PMV'!Z56/'Resultats PMV'!$P56 ->  | X66: ='Resultats PMV'!AA56/'Resultats PMV'!$P56 ->  | Y66: ='Resultats PMV'!AB56/'Resultats PMV'!$P56 ->  | AB66: ='Resultats PMV'!AI56 -> 0 | AC66: ='Resultats PMV'!AN56/'Resultats PMV'!$AX56 ->  | AD66: ='Resultats PMV'!AO56/'Resultats PMV'!$AX56 ->  | AE66: ='Resultats PMV'!AP56/'Resultats PMV'!$AX56 ->  | AF66: ='Resultats PMV'!AQ56/'Resultats PMV'!$AX56 ->  | AG66: ='Resultats PMV'!AR56/'Resultats PMV'!$AX56 ->  | AH66: ='Resultats PMV'!AS56/'Resultats PMV'!$AX56 ->  | AI66: ='Resultats PMV'!AT56/'Resultats PMV'!$AX56 ->  | AJ66: ='Resultats PMV'!AU56/'Resultats PMV'!$AX56 ->  | AK66: ='Resultats PMV'!AV56/'Resultats PMV'!$AX56 ->  | AL66: ='Resultats PMV'!AW56/'Resultats PMV'!$AX56 -> 
B67: ='Resultats PMV'!A57 -> 0 | C67: ='Resultats PMV'!F57/'Resultats PMV'!$P57 ->  | D67: ='Resultats PMV'!G57/'Resultats PMV'!$P57 ->  | E67: ='Resultats PMV'!H57/'Resultats PMV'!$P57 ->  | F67: ='Resultats PMV'!I57/'Resultats PMV'!$P57 ->  | G67: ='Resultats PMV'!J57/'Resultats PMV'!$P57 ->  | H67: ='Resultats PMV'!K57/'Resultats PMV'!$P57 ->  | I67: ='Resultats PMV'!L57/'Resultats PMV'!$P57 ->  | J67: ='Resultats PMV'!M57/'Resultats PMV'!$P57 ->  | K67: ='Resultats PMV'!N57/'Resultats PMV'!$P57 ->  | L67: ='Resultats PMV'!O57/'Resultats PMV'!$P57 ->  | O67: ='Resultats PMV'!R57 -> 0 | P67: ='Resultats PMV'!S57/'Resultats PMV'!$P57 ->  | Q67: ='Resultats PMV'!T57/'Resultats PMV'!$P57 ->  | R67: ='Resultats PMV'!U57/'Resultats PMV'!$P57 ->  | S67: ='Resultats PMV'!V57/'Resultats PMV'!$P57 ->  | T67: ='Resultats PMV'!W57/'Resultats PMV'!$P57 ->  | U67: ='Resultats PMV'!X57/'Resultats PMV'!$P57 ->  | V67: ='Resultats PMV'!Y57/'Resultats PMV'!$P57 ->  | W67: ='Resultats PMV'!Z57/'Resultats PMV'!$P57 ->  | X67: ='Resultats PMV'!AA57/'Resultats PMV'!$P57 ->  | Y67: ='Resultats PMV'!AB57/'Resultats PMV'!$P57 ->  | AB67: ='Resultats PMV'!AI57 -> 0 | AC67: ='Resultats PMV'!AN57/'Resultats PMV'!$AX57 ->  | AD67: ='Resultats PMV'!AO57/'Resultats PMV'!$AX57 ->  | AE67: ='Resultats PMV'!AP57/'Resultats PMV'!$AX57 ->  | AF67: ='Resultats PMV'!AQ57/'Resultats PMV'!$AX57 ->  | AG67: ='Resultats PMV'!AR57/'Resultats PMV'!$AX57 ->  | AH67: ='Resultats PMV'!AS57/'Resultats PMV'!$AX57 ->  | AI67: ='Resultats PMV'!AT57/'Resultats PMV'!$AX57 ->  | AJ67: ='Resultats PMV'!AU57/'Resultats PMV'!$AX57 ->  | AK67: ='Resultats PMV'!AV57/'Resultats PMV'!$AX57 ->  | AL67: ='Resultats PMV'!AW57/'Resultats PMV'!$AX57 -> 
B68: ='Resultats PMV'!A58 -> 0 | C68: ='Resultats PMV'!F58/'Resultats PMV'!$P58 ->  | D68: ='Resultats PMV'!G58/'Resultats PMV'!$P58 ->  | E68: ='Resultats PMV'!H58/'Resultats PMV'!$P58 ->  | F68: ='Resultats PMV'!I58/'Resultats PMV'!$P58 ->  | G68: ='Resultats PMV'!J58/'Resultats PMV'!$P58 ->  | H68: ='Resultats PMV'!K58/'Resultats PMV'!$P58 ->  | I68: ='Resultats PMV'!L58/'Resultats PMV'!$P58 ->  | J68: ='Resultats PMV'!M58/'Resultats PMV'!$P58 ->  | K68: ='Resultats PMV'!N58/'Resultats PMV'!$P58 ->  | L68: ='Resultats PMV'!O58/'Resultats PMV'!$P58 ->  | O68: ='Resultats PMV'!R58 -> 0 | P68: ='Resultats PMV'!S58/'Resultats PMV'!$P58 ->  | Q68: ='Resultats PMV'!T58/'Resultats PMV'!$P58 ->  | R68: ='Resultats PMV'!U58/'Resultats PMV'!$P58 ->  | S68: ='Resultats PMV'!V58/'Resultats PMV'!$P58 ->  | T68: ='Resultats PMV'!W58/'Resultats PMV'!$P58 ->  | U68: ='Resultats PMV'!X58/'Resultats PMV'!$P58 ->  | V68: ='Resultats PMV'!Y58/'Resultats PMV'!$P58 ->  | W68: ='Resultats PMV'!Z58/'Resultats PMV'!$P58 ->  | X68: ='Resultats PMV'!AA58/'Resultats PMV'!$P58 ->  | Y68: ='Resultats PMV'!AB58/'Resultats PMV'!$P58 ->  | AB68: ='Resultats PMV'!AI58 -> 0 | AC68: ='Resultats PMV'!AN58/'Resultats PMV'!$AX58 ->  | AD68: ='Resultats PMV'!AO58/'Resultats PMV'!$AX58 ->  | AE68: ='Resultats PMV'!AP58/'Resultats PMV'!$AX58 ->  | AF68: ='Resultats PMV'!AQ58/'Resultats PMV'!$AX58 ->  | AG68: ='Resultats PMV'!AR58/'Resultats PMV'!$AX58 ->  | AH68: ='Resultats PMV'!AS58/'Resultats PMV'!$AX58 ->  | AI68: ='Resultats PMV'!AT58/'Resultats PMV'!$AX58 ->  | AJ68: ='Resultats PMV'!AU58/'Resultats PMV'!$AX58 ->  | AK68: ='Resultats PMV'!AV58/'Resultats PMV'!$AX58 ->  | AL68: ='Resultats PMV'!AW58/'Resultats PMV'!$AX58 -> 
B69: ='Resultats PMV'!A59 -> 0 | C69: ='Resultats PMV'!F59/'Resultats PMV'!$P59 ->  | D69: ='Resultats PMV'!G59/'Resultats PMV'!$P59 ->  | E69: ='Resultats PMV'!H59/'Resultats PMV'!$P59 ->  | F69: ='Resultats PMV'!I59/'Resultats PMV'!$P59 ->  | G69: ='Resultats PMV'!J59/'Resultats PMV'!$P59 ->  | H69: ='Resultats PMV'!K59/'Resultats PMV'!$P59 ->  | I69: ='Resultats PMV'!L59/'Resultats PMV'!$P59 ->  | J69: ='Resultats PMV'!M59/'Resultats PMV'!$P59 ->  | K69: ='Resultats PMV'!N59/'Resultats PMV'!$P59 ->  | L69: ='Resultats PMV'!O59/'Resultats PMV'!$P59 ->  | O69: ='Resultats PMV'!R59 -> 0 | P69: ='Resultats PMV'!S59/'Resultats PMV'!$P59 ->  | Q69: ='Resultats PMV'!T59/'Resultats PMV'!$P59 ->  | R69: ='Resultats PMV'!U59/'Resultats PMV'!$P59 ->  | S69: ='Resultats PMV'!V59/'Resultats PMV'!$P59 ->  | T69: ='Resultats PMV'!W59/'Resultats PMV'!$P59 ->  | U69: ='Resultats PMV'!X59/'Resultats PMV'!$P59 ->  | V69: ='Resultats PMV'!Y59/'Resultats PMV'!$P59 ->  | W69: ='Resultats PMV'!Z59/'Resultats PMV'!$P59 ->  | X69: ='Resultats PMV'!AA59/'Resultats PMV'!$P59 ->  | Y69: ='Resultats PMV'!AB59/'Resultats PMV'!$P59 ->  | AB69: ='Resultats PMV'!AI59 -> 0 | AC69: ='Resultats PMV'!AN59/'Resultats PMV'!$AX59 ->  | AD69: ='Resultats PMV'!AO59/'Resultats PMV'!$AX59 ->  | AE69: ='Resultats PMV'!AP59/'Resultats PMV'!$AX59 ->  | AF69: ='Resultats PMV'!AQ59/'Resultats PMV'!$AX59 ->  | AG69: ='Resultats PMV'!AR59/'Resultats PMV'!$AX59 ->  | AH69: ='Resultats PMV'!AS59/'Resultats PMV'!$AX59 ->  | AI69: ='Resultats PMV'!AT59/'Resultats PMV'!$AX59 ->  | AJ69: ='Resultats PMV'!AU59/'Resultats PMV'!$AX59 ->  | AK69: ='Resultats PMV'!AV59/'Resultats PMV'!$AX59 ->  | AL69: ='Resultats PMV'!AW59/'Resultats PMV'!$AX59 -> 
B70: ='Resultats PMV'!A60 -> 0 | C70: ='Resultats PMV'!F60/'Resultats PMV'!$P60 ->  | D70: ='Resultats PMV'!G60/'Resultats PMV'!$P60 ->  | E70: ='Resultats PMV'!H60/'Resultats PMV'!$P60 ->  | F70: ='Resultats PMV'!I60/'Resultats PMV'!$P60 ->  | G70: ='Resultats PMV'!J60/'Resultats PMV'!$P60 ->  | H70: ='Resultats PMV'!K60/'Resultats PMV'!$P60 ->  | I70: ='Resultats PMV'!L60/'Resultats PMV'!$P60 ->  | J70: ='Resultats PMV'!M60/'Resultats PMV'!$P60 ->  | K70: ='Resultats PMV'!N60/'Resultats PMV'!$P60 ->  | L70: ='Resultats PMV'!O60/'Resultats PMV'!$P60 ->  | O70: ='Resultats PMV'!R60 -> 0 | P70: ='Resultats PMV'!S60/'Resultats PMV'!$P60 ->  | Q70: ='Resultats PMV'!T60/'Resultats PMV'!$P60 ->  | R70: ='Resultats PMV'!U60/'Resultats PMV'!$P60 ->  | S70: ='Resultats PMV'!V60/'Resultats PMV'!$P60 ->  | T70: ='Resultats PMV'!W60/'Resultats PMV'!$P60 ->  | U70: ='Resultats PMV'!X60/'Resultats PMV'!$P60 ->  | V70: ='Resultats PMV'!Y60/'Resultats PMV'!$P60 ->  | W70: ='Resultats PMV'!Z60/'Resultats PMV'!$P60 ->  | X70: ='Resultats PMV'!AA60/'Resultats PMV'!$P60 ->  | Y70: ='Resultats PMV'!AB60/'Resultats PMV'!$P60 ->  | AB70: ='Resultats PMV'!AI60 -> 0 | AC70: ='Resultats PMV'!AN60/'Resultats PMV'!$AX60 ->  | AD70: ='Resultats PMV'!AO60/'Resultats PMV'!$AX60 ->  | AE70: ='Resultats PMV'!AP60/'Resultats PMV'!$AX60 ->  | AF70: ='Resultats PMV'!AQ60/'Resultats PMV'!$AX60 ->  | AG70: ='Resultats PMV'!AR60/'Resultats PMV'!$AX60 ->  | AH70: ='Resultats PMV'!AS60/'Resultats PMV'!$AX60 ->  | AI70: ='Resultats PMV'!AT60/'Resultats PMV'!$AX60 ->  | AJ70: ='Resultats PMV'!AU60/'Resultats PMV'!$AX60 ->  | AK70: ='Resultats PMV'!AV60/'Resultats PMV'!$AX60 ->  | AL70: ='Resultats PMV'!AW60/'Resultats PMV'!$AX60 -> 
B71: ='Resultats PMV'!A61 -> 0 | C71: ='Resultats PMV'!F61/'Resultats PMV'!$P61 ->  | D71: ='Resultats PMV'!G61/'Resultats PMV'!$P61 ->  | E71: ='Resultats PMV'!H61/'Resultats PMV'!$P61 ->  | F71: ='Resultats PMV'!I61/'Resultats PMV'!$P61 ->  | G71: ='Resultats PMV'!J61/'Resultats PMV'!$P61 ->  | H71: ='Resultats PMV'!K61/'Resultats PMV'!$P61 ->  | I71: ='Resultats PMV'!L61/'Resultats PMV'!$P61 ->  | J71: ='Resultats PMV'!M61/'Resultats PMV'!$P61 ->  | K71: ='Resultats PMV'!N61/'Resultats PMV'!$P61 ->  | L71: ='Resultats PMV'!O61/'Resultats PMV'!$P61 ->  | O71: ='Resultats PMV'!R61 -> 0 | P71: ='Resultats PMV'!S61/'Resultats PMV'!$P61 ->  | Q71: ='Resultats PMV'!T61/'Resultats PMV'!$P61 ->  | R71: ='Resultats PMV'!U61/'Resultats PMV'!$P61 ->  | S71: ='Resultats PMV'!V61/'Resultats PMV'!$P61 ->  | T71: ='Resultats PMV'!W61/'Resultats PMV'!$P61 ->  | U71: ='Resultats PMV'!X61/'Resultats PMV'!$P61 ->  | V71: ='Resultats PMV'!Y61/'Resultats PMV'!$P61 ->  | W71: ='Resultats PMV'!Z61/'Resultats PMV'!$P61 ->  | X71: ='Resultats PMV'!AA61/'Resultats PMV'!$P61 ->  | Y71: ='Resultats PMV'!AB61/'Resultats PMV'!$P61 ->  | AB71: ='Resultats PMV'!AI61 -> 0 | AC71: ='Resultats PMV'!AN61/'Resultats PMV'!$AX61 ->  | AD71: ='Resultats PMV'!AO61/'Resultats PMV'!$AX61 ->  | AE71: ='Resultats PMV'!AP61/'Resultats PMV'!$AX61 ->  | AF71: ='Resultats PMV'!AQ61/'Resultats PMV'!$AX61 ->  | AG71: ='Resultats PMV'!AR61/'Resultats PMV'!$AX61 ->  | AH71: ='Resultats PMV'!AS61/'Resultats PMV'!$AX61 ->  | AI71: ='Resultats PMV'!AT61/'Resultats PMV'!$AX61 ->  | AJ71: ='Resultats PMV'!AU61/'Resultats PMV'!$AX61 ->  | AK71: ='Resultats PMV'!AV61/'Resultats PMV'!$AX61 ->  | AL71: ='Resultats PMV'!AW61/'Resultats PMV'!$AX61 -> 
B72: ='Resultats PMV'!A62 -> 0 | C72: ='Resultats PMV'!F62/'Resultats PMV'!$P62 ->  | D72: ='Resultats PMV'!G62/'Resultats PMV'!$P62 ->  | E72: ='Resultats PMV'!H62/'Resultats PMV'!$P62 ->  | F72: ='Resultats PMV'!I62/'Resultats PMV'!$P62 ->  | G72: ='Resultats PMV'!J62/'Resultats PMV'!$P62 ->  | H72: ='Resultats PMV'!K62/'Resultats PMV'!$P62 ->  | I72: ='Resultats PMV'!L62/'Resultats PMV'!$P62 ->  | J72: ='Resultats PMV'!M62/'Resultats PMV'!$P62 ->  | K72: ='Resultats PMV'!N62/'Resultats PMV'!$P62 ->  | L72: ='Resultats PMV'!O62/'Resultats PMV'!$P62 ->  | O72: ='Resultats PMV'!R62 -> 0 | P72: ='Resultats PMV'!S62/'Resultats PMV'!$P62 ->  | Q72: ='Resultats PMV'!T62/'Resultats PMV'!$P62 ->  | R72: ='Resultats PMV'!U62/'Resultats PMV'!$P62 ->  | S72: ='Resultats PMV'!V62/'Resultats PMV'!$P62 ->  | T72: ='Resultats PMV'!W62/'Resultats PMV'!$P62 ->  | U72: ='Resultats PMV'!X62/'Resultats PMV'!$P62 ->  | V72: ='Resultats PMV'!Y62/'Resultats PMV'!$P62 ->  | W72: ='Resultats PMV'!Z62/'Resultats PMV'!$P62 ->  | X72: ='Resultats PMV'!AA62/'Resultats PMV'!$P62 ->  | Y72: ='Resultats PMV'!AB62/'Resultats PMV'!$P62 ->  | AB72: ='Resultats PMV'!AI62 -> 0 | AC72: ='Resultats PMV'!AN62/'Resultats PMV'!$AX62 ->  | AD72: ='Resultats PMV'!AO62/'Resultats PMV'!$AX62 ->  | AE72: ='Resultats PMV'!AP62/'Resultats PMV'!$AX62 ->  | AF72: ='Resultats PMV'!AQ62/'Resultats PMV'!$AX62 ->  | AG72: ='Resultats PMV'!AR62/'Resultats PMV'!$AX62 ->  | AH72: ='Resultats PMV'!AS62/'Resultats PMV'!$AX62 ->  | AI72: ='Resultats PMV'!AT62/'Resultats PMV'!$AX62 ->  | AJ72: ='Resultats PMV'!AU62/'Resultats PMV'!$AX62 ->  | AK72: ='Resultats PMV'!AV62/'Resultats PMV'!$AX62 ->  | AL72: ='Resultats PMV'!AW62/'Resultats PMV'!$AX62 -> 
B73: ='Resultats PMV'!A63 -> 0 | C73: ='Resultats PMV'!F63/'Resultats PMV'!$P63 ->  | D73: ='Resultats PMV'!G63/'Resultats PMV'!$P63 ->  | E73: ='Resultats PMV'!H63/'Resultats PMV'!$P63 ->  | F73: ='Resultats PMV'!I63/'Resultats PMV'!$P63 ->  | G73: ='Resultats PMV'!J63/'Resultats PMV'!$P63 ->  | H73: ='Resultats PMV'!K63/'Resultats PMV'!$P63 ->  | I73: ='Resultats PMV'!L63/'Resultats PMV'!$P63 ->  | J73: ='Resultats PMV'!M63/'Resultats PMV'!$P63 ->  | K73: ='Resultats PMV'!N63/'Resultats PMV'!$P63 ->  | L73: ='Resultats PMV'!O63/'Resultats PMV'!$P63 ->  | O73: ='Resultats PMV'!R63 -> 0 | P73: ='Resultats PMV'!S63/'Resultats PMV'!$P63 ->  | Q73: ='Resultats PMV'!T63/'Resultats PMV'!$P63 ->  | R73: ='Resultats PMV'!U63/'Resultats PMV'!$P63 ->  | S73: ='Resultats PMV'!V63/'Resultats PMV'!$P63 ->  | T73: ='Resultats PMV'!W63/'Resultats PMV'!$P63 ->  | U73: ='Resultats PMV'!X63/'Resultats PMV'!$P63 ->  | V73: ='Resultats PMV'!Y63/'Resultats PMV'!$P63 ->  | W73: ='Resultats PMV'!Z63/'Resultats PMV'!$P63 ->  | X73: ='Resultats PMV'!AA63/'Resultats PMV'!$P63 ->  | Y73: ='Resultats PMV'!AB63/'Resultats PMV'!$P63 ->  | AB73: ='Resultats PMV'!AI63 -> 0 | AC73: ='Resultats PMV'!AN63/'Resultats PMV'!$AX63 ->  | AD73: ='Resultats PMV'!AO63/'Resultats PMV'!$AX63 ->  | AE73: ='Resultats PMV'!AP63/'Resultats PMV'!$AX63 ->  | AF73: ='Resultats PMV'!AQ63/'Resultats PMV'!$AX63 ->  | AG73: ='Resultats PMV'!AR63/'Resultats PMV'!$AX63 ->  | AH73: ='Resultats PMV'!AS63/'Resultats PMV'!$AX63 ->  | AI73: ='Resultats PMV'!AT63/'Resultats PMV'!$AX63 ->  | AJ73: ='Resultats PMV'!AU63/'Resultats PMV'!$AX63 ->  | AK73: ='Resultats PMV'!AV63/'Resultats PMV'!$AX63 ->  | AL73: ='Resultats PMV'!AW63/'Resultats PMV'!$AX63 -> 
B74: ='Resultats PMV'!A64 -> 0 | C74: ='Resultats PMV'!F64/'Resultats PMV'!$P64 ->  | D74: ='Resultats PMV'!G64/'Resultats PMV'!$P64 ->  | E74: ='Resultats PMV'!H64/'Resultats PMV'!$P64 ->  | F74: ='Resultats PMV'!I64/'Resultats PMV'!$P64 ->  | G74: ='Resultats PMV'!J64/'Resultats PMV'!$P64 ->  | H74: ='Resultats PMV'!K64/'Resultats PMV'!$P64 ->  | I74: ='Resultats PMV'!L64/'Resultats PMV'!$P64 ->  | J74: ='Resultats PMV'!M64/'Resultats PMV'!$P64 ->  | K74: ='Resultats PMV'!N64/'Resultats PMV'!$P64 ->  | L74: ='Resultats PMV'!O64/'Resultats PMV'!$P64 ->  | O74: ='Resultats PMV'!R64 -> 0 | P74: ='Resultats PMV'!S64/'Resultats PMV'!$P64 ->  | Q74: ='Resultats PMV'!T64/'Resultats PMV'!$P64 ->  | R74: ='Resultats PMV'!U64/'Resultats PMV'!$P64 ->  | S74: ='Resultats PMV'!V64/'Resultats PMV'!$P64 ->  | T74: ='Resultats PMV'!W64/'Resultats PMV'!$P64 ->  | U74: ='Resultats PMV'!X64/'Resultats PMV'!$P64 ->  | V74: ='Resultats PMV'!Y64/'Resultats PMV'!$P64 ->  | W74: ='Resultats PMV'!Z64/'Resultats PMV'!$P64 ->  | X74: ='Resultats PMV'!AA64/'Resultats PMV'!$P64 ->  | Y74: ='Resultats PMV'!AB64/'Resultats PMV'!$P64 ->  | AB74: ='Resultats PMV'!AI64 -> 0 | AC74: ='Resultats PMV'!AN64/'Resultats PMV'!$AX64 ->  | AD74: ='Resultats PMV'!AO64/'Resultats PMV'!$AX64 ->  | AE74: ='Resultats PMV'!AP64/'Resultats PMV'!$AX64 ->  | AF74: ='Resultats PMV'!AQ64/'Resultats PMV'!$AX64 ->  | AG74: ='Resultats PMV'!AR64/'Resultats PMV'!$AX64 ->  | AH74: ='Resultats PMV'!AS64/'Resultats PMV'!$AX64 ->  | AI74: ='Resultats PMV'!AT64/'Resultats PMV'!$AX64 ->  | AJ74: ='Resultats PMV'!AU64/'Resultats PMV'!$AX64 ->  | AK74: ='Resultats PMV'!AV64/'Resultats PMV'!$AX64 ->  | AL74: ='Resultats PMV'!AW64/'Resultats PMV'!$AX64 -> 
B75: ='Resultats PMV'!A65 -> 0 | C75: ='Resultats PMV'!F65/'Resultats PMV'!$P65 ->  | D75: ='Resultats PMV'!G65/'Resultats PMV'!$P65 ->  | E75: ='Resultats PMV'!H65/'Resultats PMV'!$P65 ->  | F75: ='Resultats PMV'!I65/'Resultats PMV'!$P65 ->  | G75: ='Resultats PMV'!J65/'Resultats PMV'!$P65 ->  | H75: ='Resultats PMV'!K65/'Resultats PMV'!$P65 ->  | I75: ='Resultats PMV'!L65/'Resultats PMV'!$P65 ->  | J75: ='Resultats PMV'!M65/'Resultats PMV'!$P65 ->  | K75: ='Resultats PMV'!N65/'Resultats PMV'!$P65 ->  | L75: ='Resultats PMV'!O65/'Resultats PMV'!$P65 ->  | O75: ='Resultats PMV'!R65 -> 0 | P75: ='Resultats PMV'!S65/'Resultats PMV'!$P65 ->  | Q75: ='Resultats PMV'!T65/'Resultats PMV'!$P65 ->  | R75: ='Resultats PMV'!U65/'Resultats PMV'!$P65 ->  | S75: ='Resultats PMV'!V65/'Resultats PMV'!$P65 ->  | T75: ='Resultats PMV'!W65/'Resultats PMV'!$P65 ->  | U75: ='Resultats PMV'!X65/'Resultats PMV'!$P65 ->  | V75: ='Resultats PMV'!Y65/'Resultats PMV'!$P65 ->  | W75: ='Resultats PMV'!Z65/'Resultats PMV'!$P65 ->  | X75: ='Resultats PMV'!AA65/'Resultats PMV'!$P65 ->  | Y75: ='Resultats PMV'!AB65/'Resultats PMV'!$P65 ->  | AB75: ='Resultats PMV'!AI65 -> 0 | AC75: ='Resultats PMV'!AN65/'Resultats PMV'!$AX65 ->  | AD75: ='Resultats PMV'!AO65/'Resultats PMV'!$AX65 ->  | AE75: ='Resultats PMV'!AP65/'Resultats PMV'!$AX65 ->  | AF75: ='Resultats PMV'!AQ65/'Resultats PMV'!$AX65 ->  | AG75: ='Resultats PMV'!AR65/'Resultats PMV'!$AX65 ->  | AH75: ='Resultats PMV'!AS65/'Resultats PMV'!$AX65 ->  | AI75: ='Resultats PMV'!AT65/'Resultats PMV'!$AX65 ->  | AJ75: ='Resultats PMV'!AU65/'Resultats PMV'!$AX65 ->  | AK75: ='Resultats PMV'!AV65/'Resultats PMV'!$AX65 ->  | AL75: ='Resultats PMV'!AW65/'Resultats PMV'!$AX65 -> 
B76: ='Resultats PMV'!A66 -> 0 | C76: ='Resultats PMV'!F66/'Resultats PMV'!$P66 ->  | D76: ='Resultats PMV'!G66/'Resultats PMV'!$P66 ->  | E76: ='Resultats PMV'!H66/'Resultats PMV'!$P66 ->  | F76: ='Resultats PMV'!I66/'Resultats PMV'!$P66 ->  | G76: ='Resultats PMV'!J66/'Resultats PMV'!$P66 ->  | H76: ='Resultats PMV'!K66/'Resultats PMV'!$P66 ->  | I76: ='Resultats PMV'!L66/'Resultats PMV'!$P66 ->  | J76: ='Resultats PMV'!M66/'Resultats PMV'!$P66 ->  | K76: ='Resultats PMV'!N66/'Resultats PMV'!$P66 ->  | L76: ='Resultats PMV'!O66/'Resultats PMV'!$P66 ->  | O76: ='Resultats PMV'!R66 -> 0 | P76: ='Resultats PMV'!S66/'Resultats PMV'!$P66 ->  | Q76: ='Resultats PMV'!T66/'Resultats PMV'!$P66 ->  | R76: ='Resultats PMV'!U66/'Resultats PMV'!$P66 ->  | S76: ='Resultats PMV'!V66/'Resultats PMV'!$P66 ->  | T76: ='Resultats PMV'!W66/'Resultats PMV'!$P66 ->  | U76: ='Resultats PMV'!X66/'Resultats PMV'!$P66 ->  | V76: ='Resultats PMV'!Y66/'Resultats PMV'!$P66 ->  | W76: ='Resultats PMV'!Z66/'Resultats PMV'!$P66 ->  | X76: ='Resultats PMV'!AA66/'Resultats PMV'!$P66 ->  | Y76: ='Resultats PMV'!AB66/'Resultats PMV'!$P66 ->  | AB76: ='Resultats PMV'!AI66 -> 0 | AC76: ='Resultats PMV'!AN66/'Resultats PMV'!$AX66 ->  | AD76: ='Resultats PMV'!AO66/'Resultats PMV'!$AX66 ->  | AE76: ='Resultats PMV'!AP66/'Resultats PMV'!$AX66 ->  | AF76: ='Resultats PMV'!AQ66/'Resultats PMV'!$AX66 ->  | AG76: ='Resultats PMV'!AR66/'Resultats PMV'!$AX66 ->  | AH76: ='Resultats PMV'!AS66/'Resultats PMV'!$AX66 ->  | AI76: ='Resultats PMV'!AT66/'Resultats PMV'!$AX66 ->  | AJ76: ='Resultats PMV'!AU66/'Resultats PMV'!$AX66 ->  | AK76: ='Resultats PMV'!AV66/'Resultats PMV'!$AX66 ->  | AL76: ='Resultats PMV'!AW66/'Resultats PMV'!$AX66 -> 
B77: ='Resultats PMV'!A67 -> 0 | C77: ='Resultats PMV'!F67/'Resultats PMV'!$P67 ->  | D77: ='Resultats PMV'!G67/'Resultats PMV'!$P67 ->  | E77: ='Resultats PMV'!H67/'Resultats PMV'!$P67 ->  | F77: ='Resultats PMV'!I67/'Resultats PMV'!$P67 ->  | G77: ='Resultats PMV'!J67/'Resultats PMV'!$P67 ->  | H77: ='Resultats PMV'!K67/'Resultats PMV'!$P67 ->  | I77: ='Resultats PMV'!L67/'Resultats PMV'!$P67 ->  | J77: ='Resultats PMV'!M67/'Resultats PMV'!$P67 ->  | K77: ='Resultats PMV'!N67/'Resultats PMV'!$P67 ->  | L77: ='Resultats PMV'!O67/'Resultats PMV'!$P67 ->  | O77: ='Resultats PMV'!R67 -> 0 | P77: ='Resultats PMV'!S67/'Resultats PMV'!$P67 ->  | Q77: ='Resultats PMV'!T67/'Resultats PMV'!$P67 ->  | R77: ='Resultats PMV'!U67/'Resultats PMV'!$P67 ->  | S77: ='Resultats PMV'!V67/'Resultats PMV'!$P67 ->  | T77: ='Resultats PMV'!W67/'Resultats PMV'!$P67 ->  | U77: ='Resultats PMV'!X67/'Resultats PMV'!$P67 ->  | V77: ='Resultats PMV'!Y67/'Resultats PMV'!$P67 ->  | W77: ='Resultats PMV'!Z67/'Resultats PMV'!$P67 ->  | X77: ='Resultats PMV'!AA67/'Resultats PMV'!$P67 ->  | Y77: ='Resultats PMV'!AB67/'Resultats PMV'!$P67 ->  | AB77: ='Resultats PMV'!AI67 -> 0 | AC77: ='Resultats PMV'!AN67/'Resultats PMV'!$AX67 ->  | AD77: ='Resultats PMV'!AO67/'Resultats PMV'!$AX67 ->  | AE77: ='Resultats PMV'!AP67/'Resultats PMV'!$AX67 ->  | AF77: ='Resultats PMV'!AQ67/'Resultats PMV'!$AX67 ->  | AG77: ='Resultats PMV'!AR67/'Resultats PMV'!$AX67 ->  | AH77: ='Resultats PMV'!AS67/'Resultats PMV'!$AX67 ->  | AI77: ='Resultats PMV'!AT67/'Resultats PMV'!$AX67 ->  | AJ77: ='Resultats PMV'!AU67/'Resultats PMV'!$AX67 ->  | AK77: ='Resultats PMV'!AV67/'Resultats PMV'!$AX67 ->  | AL77: ='Resultats PMV'!AW67/'Resultats PMV'!$AX67 -> 
B78: ='Resultats PMV'!A68 -> 0 | C78: ='Resultats PMV'!F68/'Resultats PMV'!$P68 ->  | D78: ='Resultats PMV'!G68/'Resultats PMV'!$P68 ->  | E78: ='Resultats PMV'!H68/'Resultats PMV'!$P68 ->  | F78: ='Resultats PMV'!I68/'Resultats PMV'!$P68 ->  | G78: ='Resultats PMV'!J68/'Resultats PMV'!$P68 ->  | H78: ='Resultats PMV'!K68/'Resultats PMV'!$P68 ->  | I78: ='Resultats PMV'!L68/'Resultats PMV'!$P68 ->  | J78: ='Resultats PMV'!M68/'Resultats PMV'!$P68 ->  | K78: ='Resultats PMV'!N68/'Resultats PMV'!$P68 ->  | L78: ='Resultats PMV'!O68/'Resultats PMV'!$P68 ->  | O78: ='Resultats PMV'!R68 -> 0 | P78: ='Resultats PMV'!S68/'Resultats PMV'!$P68 ->  | Q78: ='Resultats PMV'!T68/'Resultats PMV'!$P68 ->  | R78: ='Resultats PMV'!U68/'Resultats PMV'!$P68 ->  | S78: ='Resultats PMV'!V68/'Resultats PMV'!$P68 ->  | T78: ='Resultats PMV'!W68/'Resultats PMV'!$P68 ->  | U78: ='Resultats PMV'!X68/'Resultats PMV'!$P68 ->  | V78: ='Resultats PMV'!Y68/'Resultats PMV'!$P68 ->  | W78: ='Resultats PMV'!Z68/'Resultats PMV'!$P68 ->  | X78: ='Resultats PMV'!AA68/'Resultats PMV'!$P68 ->  | Y78: ='Resultats PMV'!AB68/'Resultats PMV'!$P68 ->  | AB78: ='Resultats PMV'!AI68 -> 0 | AC78: ='Resultats PMV'!AN68/'Resultats PMV'!$AX68 ->  | AD78: ='Resultats PMV'!AO68/'Resultats PMV'!$AX68 ->  | AE78: ='Resultats PMV'!AP68/'Resultats PMV'!$AX68 ->  | AF78: ='Resultats PMV'!AQ68/'Resultats PMV'!$AX68 ->  | AG78: ='Resultats PMV'!AR68/'Resultats PMV'!$AX68 ->  | AH78: ='Resultats PMV'!AS68/'Resultats PMV'!$AX68 ->  | AI78: ='Resultats PMV'!AT68/'Resultats PMV'!$AX68 ->  | AJ78: ='Resultats PMV'!AU68/'Resultats PMV'!$AX68 ->  | AK78: ='Resultats PMV'!AV68/'Resultats PMV'!$AX68 ->  | AL78: ='Resultats PMV'!AW68/'Resultats PMV'!$AX68 -> 
B79: ='Resultats PMV'!A69 -> 0 | C79: ='Resultats PMV'!F69/'Resultats PMV'!$P69 ->  | D79: ='Resultats PMV'!G69/'Resultats PMV'!$P69 ->  | E79: ='Resultats PMV'!H69/'Resultats PMV'!$P69 ->  | F79: ='Resultats PMV'!I69/'Resultats PMV'!$P69 ->  | G79: ='Resultats PMV'!J69/'Resultats PMV'!$P69 ->  | H79: ='Resultats PMV'!K69/'Resultats PMV'!$P69 ->  | I79: ='Resultats PMV'!L69/'Resultats PMV'!$P69 ->  | J79: ='Resultats PMV'!M69/'Resultats PMV'!$P69 ->  | K79: ='Resultats PMV'!N69/'Resultats PMV'!$P69 ->  | L79: ='Resultats PMV'!O69/'Resultats PMV'!$P69 ->  | O79: ='Resultats PMV'!R69 -> 0 | P79: ='Resultats PMV'!S69/'Resultats PMV'!$P69 ->  | Q79: ='Resultats PMV'!T69/'Resultats PMV'!$P69 ->  | R79: ='Resultats PMV'!U69/'Resultats PMV'!$P69 ->  | S79: ='Resultats PMV'!V69/'Resultats PMV'!$P69 ->  | T79: ='Resultats PMV'!W69/'Resultats PMV'!$P69 ->  | U79: ='Resultats PMV'!X69/'Resultats PMV'!$P69 ->  | V79: ='Resultats PMV'!Y69/'Resultats PMV'!$P69 ->  | W79: ='Resultats PMV'!Z69/'Resultats PMV'!$P69 ->  | X79: ='Resultats PMV'!AA69/'Resultats PMV'!$P69 ->  | Y79: ='Resultats PMV'!AB69/'Resultats PMV'!$P69 ->  | AB79: ='Resultats PMV'!AI69 -> 0 | AC79: ='Resultats PMV'!AN69/'Resultats PMV'!$AX69 ->  | AD79: ='Resultats PMV'!AO69/'Resultats PMV'!$AX69 ->  | AE79: ='Resultats PMV'!AP69/'Resultats PMV'!$AX69 ->  | AF79: ='Resultats PMV'!AQ69/'Resultats PMV'!$AX69 ->  | AG79: ='Resultats PMV'!AR69/'Resultats PMV'!$AX69 ->  | AH79: ='Resultats PMV'!AS69/'Resultats PMV'!$AX69 ->  | AI79: ='Resultats PMV'!AT69/'Resultats PMV'!$AX69 ->  | AJ79: ='Resultats PMV'!AU69/'Resultats PMV'!$AX69 ->  | AK79: ='Resultats PMV'!AV69/'Resultats PMV'!$AX69 ->  | AL79: ='Resultats PMV'!AW69/'Resultats PMV'!$AX69 -> 
B80: ='Resultats PMV'!A70 -> 0 | C80: ='Resultats PMV'!F70/'Resultats PMV'!$P70 ->  | D80: ='Resultats PMV'!G70/'Resultats PMV'!$P70 ->  | E80: ='Resultats PMV'!H70/'Resultats PMV'!$P70 ->  | F80: ='Resultats PMV'!I70/'Resultats PMV'!$P70 ->  | G80: ='Resultats PMV'!J70/'Resultats PMV'!$P70 ->  | H80: ='Resultats PMV'!K70/'Resultats PMV'!$P70 ->  | I80: ='Resultats PMV'!L70/'Resultats PMV'!$P70 ->  | J80: ='Resultats PMV'!M70/'Resultats PMV'!$P70 ->  | K80: ='Resultats PMV'!N70/'Resultats PMV'!$P70 ->  | L80: ='Resultats PMV'!O70/'Resultats PMV'!$P70 ->  | O80: ='Resultats PMV'!R70 -> 0 | P80: ='Resultats PMV'!S70/'Resultats PMV'!$P70 ->  | Q80: ='Resultats PMV'!T70/'Resultats PMV'!$P70 ->  | R80: ='Resultats PMV'!U70/'Resultats PMV'!$P70 ->  | S80: ='Resultats PMV'!V70/'Resultats PMV'!$P70 ->  | T80: ='Resultats PMV'!W70/'Resultats PMV'!$P70 ->  | U80: ='Resultats PMV'!X70/'Resultats PMV'!$P70 ->  | V80: ='Resultats PMV'!Y70/'Resultats PMV'!$P70 ->  | W80: ='Resultats PMV'!Z70/'Resultats PMV'!$P70 ->  | X80: ='Resultats PMV'!AA70/'Resultats PMV'!$P70 ->  | Y80: ='Resultats PMV'!AB70/'Resultats PMV'!$P70 ->  | AB80: ='Resultats PMV'!AI70 -> 0 | AC80: ='Resultats PMV'!AN70/'Resultats PMV'!$AX70 ->  | AD80: ='Resultats PMV'!AO70/'Resultats PMV'!$AX70 ->  | AE80: ='Resultats PMV'!AP70/'Resultats PMV'!$AX70 ->  | AF80: ='Resultats PMV'!AQ70/'Resultats PMV'!$AX70 ->  | AG80: ='Resultats PMV'!AR70/'Resultats PMV'!$AX70 ->  | AH80: ='Resultats PMV'!AS70/'Resultats PMV'!$AX70 ->  | AI80: ='Resultats PMV'!AT70/'Resultats PMV'!$AX70 ->  | AJ80: ='Resultats PMV'!AU70/'Resultats PMV'!$AX70 ->  | AK80: ='Resultats PMV'!AV70/'Resultats PMV'!$AX70 ->  | AL80: ='Resultats PMV'!AW70/'Resultats PMV'!$AX70 -> 
B81: ='Resultats PMV'!A71 -> 0 | C81: ='Resultats PMV'!F71/'Resultats PMV'!$P71 ->  | D81: ='Resultats PMV'!G71/'Resultats PMV'!$P71 ->  | E81: ='Resultats PMV'!H71/'Resultats PMV'!$P71 ->  | F81: ='Resultats PMV'!I71/'Resultats PMV'!$P71 ->  | G81: ='Resultats PMV'!J71/'Resultats PMV'!$P71 ->  | H81: ='Resultats PMV'!K71/'Resultats PMV'!$P71 ->  | I81: ='Resultats PMV'!L71/'Resultats PMV'!$P71 ->  | J81: ='Resultats PMV'!M71/'Resultats PMV'!$P71 ->  | K81: ='Resultats PMV'!N71/'Resultats PMV'!$P71 ->  | L81: ='Resultats PMV'!O71/'Resultats PMV'!$P71 ->  | O81: ='Resultats PMV'!R71 -> 0 | P81: ='Resultats PMV'!S71/'Resultats PMV'!$P71 ->  | Q81: ='Resultats PMV'!T71/'Resultats PMV'!$P71 ->  | R81: ='Resultats PMV'!U71/'Resultats PMV'!$P71 ->  | S81: ='Resultats PMV'!V71/'Resultats PMV'!$P71 ->  | T81: ='Resultats PMV'!W71/'Resultats PMV'!$P71 ->  | U81: ='Resultats PMV'!X71/'Resultats PMV'!$P71 ->  | V81: ='Resultats PMV'!Y71/'Resultats PMV'!$P71 ->  | W81: ='Resultats PMV'!Z71/'Resultats PMV'!$P71 ->  | X81: ='Resultats PMV'!AA71/'Resultats PMV'!$P71 ->  | Y81: ='Resultats PMV'!AB71/'Resultats PMV'!$P71 ->  | AB81: ='Resultats PMV'!AI71 -> 0 | AC81: ='Resultats PMV'!AN71/'Resultats PMV'!$AX71 ->  | AD81: ='Resultats PMV'!AO71/'Resultats PMV'!$AX71 ->  | AE81: ='Resultats PMV'!AP71/'Resultats PMV'!$AX71 ->  | AF81: ='Resultats PMV'!AQ71/'Resultats PMV'!$AX71 ->  | AG81: ='Resultats PMV'!AR71/'Resultats PMV'!$AX71 ->  | AH81: ='Resultats PMV'!AS71/'Resultats PMV'!$AX71 ->  | AI81: ='Resultats PMV'!AT71/'Resultats PMV'!$AX71 ->  | AJ81: ='Resultats PMV'!AU71/'Resultats PMV'!$AX71 ->  | AK81: ='Resultats PMV'!AV71/'Resultats PMV'!$AX71 ->  | AL81: ='Resultats PMV'!AW71/'Resultats PMV'!$AX71 -> 
B82: ='Resultats PMV'!A72 -> 0 | C82: ='Resultats PMV'!F72/'Resultats PMV'!$P72 ->  | D82: ='Resultats PMV'!G72/'Resultats PMV'!$P72 ->  | E82: ='Resultats PMV'!H72/'Resultats PMV'!$P72 ->  | F82: ='Resultats PMV'!I72/'Resultats PMV'!$P72 ->  | G82: ='Resultats PMV'!J72/'Resultats PMV'!$P72 ->  | H82: ='Resultats PMV'!K72/'Resultats PMV'!$P72 ->  | I82: ='Resultats PMV'!L72/'Resultats PMV'!$P72 ->  | J82: ='Resultats PMV'!M72/'Resultats PMV'!$P72 ->  | K82: ='Resultats PMV'!N72/'Resultats PMV'!$P72 ->  | L82: ='Resultats PMV'!O72/'Resultats PMV'!$P72 ->  | O82: ='Resultats PMV'!R72 -> 0 | P82: ='Resultats PMV'!S72/'Resultats PMV'!$P72 ->  | Q82: ='Resultats PMV'!T72/'Resultats PMV'!$P72 ->  | R82: ='Resultats PMV'!U72/'Resultats PMV'!$P72 ->  | S82: ='Resultats PMV'!V72/'Resultats PMV'!$P72 ->  | T82: ='Resultats PMV'!W72/'Resultats PMV'!$P72 ->  | U82: ='Resultats PMV'!X72/'Resultats PMV'!$P72 ->  | V82: ='Resultats PMV'!Y72/'Resultats PMV'!$P72 ->  | W82: ='Resultats PMV'!Z72/'Resultats PMV'!$P72 ->  | X82: ='Resultats PMV'!AA72/'Resultats PMV'!$P72 ->  | Y82: ='Resultats PMV'!AB72/'Resultats PMV'!$P72 ->  | AB82: ='Resultats PMV'!AI72 -> 0 | AC82: ='Resultats PMV'!AN72/'Resultats PMV'!$AX72 ->  | AD82: ='Resultats PMV'!AO72/'Resultats PMV'!$AX72 ->  | AE82: ='Resultats PMV'!AP72/'Resultats PMV'!$AX72 ->  | AF82: ='Resultats PMV'!AQ72/'Resultats PMV'!$AX72 ->  | AG82: ='Resultats PMV'!AR72/'Resultats PMV'!$AX72 ->  | AH82: ='Resultats PMV'!AS72/'Resultats PMV'!$AX72 ->  | AI82: ='Resultats PMV'!AT72/'Resultats PMV'!$AX72 ->  | AJ82: ='Resultats PMV'!AU72/'Resultats PMV'!$AX72 ->  | AK82: ='Resultats PMV'!AV72/'Resultats PMV'!$AX72 ->  | AL82: ='Resultats PMV'!AW72/'Resultats PMV'!$AX72 -> 
B83: ='Resultats PMV'!A73 -> 0 | C83: ='Resultats PMV'!F73/'Resultats PMV'!$P73 ->  | D83: ='Resultats PMV'!G73/'Resultats PMV'!$P73 ->  | E83: ='Resultats PMV'!H73/'Resultats PMV'!$P73 ->  | F83: ='Resultats PMV'!I73/'Resultats PMV'!$P73 ->  | G83: ='Resultats PMV'!J73/'Resultats PMV'!$P73 ->  | H83: ='Resultats PMV'!K73/'Resultats PMV'!$P73 ->  | I83: ='Resultats PMV'!L73/'Resultats PMV'!$P73 ->  | J83: ='Resultats PMV'!M73/'Resultats PMV'!$P73 ->  | K83: ='Resultats PMV'!N73/'Resultats PMV'!$P73 ->  | L83: ='Resultats PMV'!O73/'Resultats PMV'!$P73 ->  | O83: ='Resultats PMV'!R73 -> 0 | P83: ='Resultats PMV'!S73/'Resultats PMV'!$P73 ->  | Q83: ='Resultats PMV'!T73/'Resultats PMV'!$P73 ->  | R83: ='Resultats PMV'!U73/'Resultats PMV'!$P73 ->  | S83: ='Resultats PMV'!V73/'Resultats PMV'!$P73 ->  | T83: ='Resultats PMV'!W73/'Resultats PMV'!$P73 ->  | U83: ='Resultats PMV'!X73/'Resultats PMV'!$P73 ->  | V83: ='Resultats PMV'!Y73/'Resultats PMV'!$P73 ->  | W83: ='Resultats PMV'!Z73/'Resultats PMV'!$P73 ->  | X83: ='Resultats PMV'!AA73/'Resultats PMV'!$P73 ->  | Y83: ='Resultats PMV'!AB73/'Resultats PMV'!$P73 ->  | AB83: ='Resultats PMV'!AI73 -> 0 | AC83: ='Resultats PMV'!AN73/'Resultats PMV'!$AX73 ->  | AD83: ='Resultats PMV'!AO73/'Resultats PMV'!$AX73 ->  | AE83: ='Resultats PMV'!AP73/'Resultats PMV'!$AX73 ->  | AF83: ='Resultats PMV'!AQ73/'Resultats PMV'!$AX73 ->  | AG83: ='Resultats PMV'!AR73/'Resultats PMV'!$AX73 ->  | AH83: ='Resultats PMV'!AS73/'Resultats PMV'!$AX73 ->  | AI83: ='Resultats PMV'!AT73/'Resultats PMV'!$AX73 ->  | AJ83: ='Resultats PMV'!AU73/'Resultats PMV'!$AX73 ->  | AK83: ='Resultats PMV'!AV73/'Resultats PMV'!$AX73 ->  | AL83: ='Resultats PMV'!AW73/'Resultats PMV'!$AX73 -> 
B84: ='Resultats PMV'!A74 -> 0 | C84: ='Resultats PMV'!F74/'Resultats PMV'!$P74 ->  | D84: ='Resultats PMV'!G74/'Resultats PMV'!$P74 ->  | E84: ='Resultats PMV'!H74/'Resultats PMV'!$P74 ->  | F84: ='Resultats PMV'!I74/'Resultats PMV'!$P74 ->  | G84: ='Resultats PMV'!J74/'Resultats PMV'!$P74 ->  | H84: ='Resultats PMV'!K74/'Resultats PMV'!$P74 ->  | I84: ='Resultats PMV'!L74/'Resultats PMV'!$P74 ->  | J84: ='Resultats PMV'!M74/'Resultats PMV'!$P74 ->  | K84: ='Resultats PMV'!N74/'Resultats PMV'!$P74 ->  | L84: ='Resultats PMV'!O74/'Resultats PMV'!$P74 ->  | M84: =1-SUM(F84:I84) ->  | O84: ='Resultats PMV'!R74 -> 0 | P84: ='Resultats PMV'!S74/'Resultats PMV'!$P74 ->  | Q84: ='Resultats PMV'!T74/'Resultats PMV'!$P74 ->  | R84: ='Resultats PMV'!U74/'Resultats PMV'!$P74 ->  | S84: ='Resultats PMV'!V74/'Resultats PMV'!$P74 ->  | T84: ='Resultats PMV'!W74/'Resultats PMV'!$P74 ->  | U84: ='Resultats PMV'!X74/'Resultats PMV'!$P74 ->  | V84: ='Resultats PMV'!Y74/'Resultats PMV'!$P74 ->  | W84: ='Resultats PMV'!Z74/'Resultats PMV'!$P74 ->  | X84: ='Resultats PMV'!AA74/'Resultats PMV'!$P74 ->  | Y84: ='Resultats PMV'!AB74/'Resultats PMV'!$P74 ->  | Z84: =1-SUM(S84:V84) ->  | AB84: ='Resultats PMV'!AI74 -> 0 | AC84: ='Resultats PMV'!AN74/'Resultats PMV'!$AX74 ->  | AD84: ='Resultats PMV'!AO74/'Resultats PMV'!$AX74 ->  | AE84: ='Resultats PMV'!AP74/'Resultats PMV'!$AX74 ->  | AF84: ='Resultats PMV'!AQ74/'Resultats PMV'!$AX74 ->  | AG84: ='Resultats PMV'!AR74/'Resultats PMV'!$AX74 ->  | AH84: ='Resultats PMV'!AS74/'Resultats PMV'!$AX74 ->  | AI84: ='Resultats PMV'!AT74/'Resultats PMV'!$AX74 ->  | AJ84: ='Resultats PMV'!AU74/'Resultats PMV'!$AX74 ->  | AK84: ='Resultats PMV'!AV74/'Resultats PMV'!$AX74 ->  | AL84: ='Resultats PMV'!AW74/'Resultats PMV'!$AX74 ->  | AM84: =1-SUM(AF84:AI84) -> 
B85: ='Resultats PMV'!A75 -> 0 | C85: ='Resultats PMV'!F75/'Resultats PMV'!$P75 ->  | D85: ='Resultats PMV'!G75/'Resultats PMV'!$P75 ->  | E85: ='Resultats PMV'!H75/'Resultats PMV'!$P75 ->  | F85: ='Resultats PMV'!I75/'Resultats PMV'!$P75 ->  | G85: ='Resultats PMV'!J75/'Resultats PMV'!$P75 ->  | H85: ='Resultats PMV'!K75/'Resultats PMV'!$P75 ->  | I85: ='Resultats PMV'!L75/'Resultats PMV'!$P75 ->  | J85: ='Resultats PMV'!M75/'Resultats PMV'!$P75 ->  | K85: ='Resultats PMV'!N75/'Resultats PMV'!$P75 ->  | L85: ='Resultats PMV'!O75/'Resultats PMV'!$P75 ->  | O85: ='Resultats PMV'!R75 -> 0 | P85: ='Resultats PMV'!S75/'Resultats PMV'!$P75 ->  | Q85: ='Resultats PMV'!T75/'Resultats PMV'!$P75 ->  | R85: ='Resultats PMV'!U75/'Resultats PMV'!$P75 ->  | S85: ='Resultats PMV'!V75/'Resultats PMV'!$P75 ->  | T85: ='Resultats PMV'!W75/'Resultats PMV'!$P75 ->  | U85: ='Resultats PMV'!X75/'Resultats PMV'!$P75 ->  | V85: ='Resultats PMV'!Y75/'Resultats PMV'!$P75 ->  | W85: ='Resultats PMV'!Z75/'Resultats PMV'!$P75 ->  | X85: ='Resultats PMV'!AA75/'Resultats PMV'!$P75 ->  | Y85: ='Resultats PMV'!AB75/'Resultats PMV'!$P75 ->  | AB85: ='Resultats PMV'!AI75 -> 0 | AC85: ='Resultats PMV'!AN75/'Resultats PMV'!$AX75 ->  | AD85: ='Resultats PMV'!AO75/'Resultats PMV'!$AX75 ->  | AE85: ='Resultats PMV'!AP75/'Resultats PMV'!$AX75 ->  | AF85: ='Resultats PMV'!AQ75/'Resultats PMV'!$AX75 ->  | AG85: ='Resultats PMV'!AR75/'Resultats PMV'!$AX75 ->  | AH85: ='Resultats PMV'!AS75/'Resultats PMV'!$AX75 ->  | AI85: ='Resultats PMV'!AT75/'Resultats PMV'!$AX75 ->  | AJ85: ='Resultats PMV'!AU75/'Resultats PMV'!$AX75 ->  | AK85: ='Resultats PMV'!AV75/'Resultats PMV'!$AX75 ->  | AL85: ='Resultats PMV'!AW75/'Resultats PMV'!$AX75 -> 
B86: ='Resultats PMV'!A76 -> 0 | C86: ='Resultats PMV'!F76/'Resultats PMV'!$P76 ->  | D86: ='Resultats PMV'!G76/'Resultats PMV'!$P76 ->  | E86: ='Resultats PMV'!H76/'Resultats PMV'!$P76 ->  | F86: ='Resultats PMV'!I76/'Resultats PMV'!$P76 ->  | G86: ='Resultats PMV'!J76/'Resultats PMV'!$P76 ->  | H86: ='Resultats PMV'!K76/'Resultats PMV'!$P76 ->  | I86: ='Resultats PMV'!L76/'Resultats PMV'!$P76 ->  | J86: ='Resultats PMV'!M76/'Resultats PMV'!$P76 ->  | K86: ='Resultats PMV'!N76/'Resultats PMV'!$P76 ->  | L86: ='Resultats PMV'!O76/'Resultats PMV'!$P76 ->  | O86: ='Resultats PMV'!R76 -> 0 | P86: ='Resultats PMV'!S76/'Resultats PMV'!$P76 ->  | Q86: ='Resultats PMV'!T76/'Resultats PMV'!$P76 ->  | R86: ='Resultats PMV'!U76/'Resultats PMV'!$P76 ->  | S86: ='Resultats PMV'!V76/'Resultats PMV'!$P76 ->  | T86: ='Resultats PMV'!W76/'Resultats PMV'!$P76 ->  | U86: ='Resultats PMV'!X76/'Resultats PMV'!$P76 ->  | V86: ='Resultats PMV'!Y76/'Resultats PMV'!$P76 ->  | W86: ='Resultats PMV'!Z76/'Resultats PMV'!$P76 ->  | X86: ='Resultats PMV'!AA76/'Resultats PMV'!$P76 ->  | Y86: ='Resultats PMV'!AB76/'Resultats PMV'!$P76 ->  | AB86: ='Resultats PMV'!AI76 -> 0 | AC86: ='Resultats PMV'!AN76/'Resultats PMV'!$AX76 ->  | AD86: ='Resultats PMV'!AO76/'Resultats PMV'!$AX76 ->  | AE86: ='Resultats PMV'!AP76/'Resultats PMV'!$AX76 ->  | AF86: ='Resultats PMV'!AQ76/'Resultats PMV'!$AX76 ->  | AG86: ='Resultats PMV'!AR76/'Resultats PMV'!$AX76 ->  | AH86: ='Resultats PMV'!AS76/'Resultats PMV'!$AX76 ->  | AI86: ='Resultats PMV'!AT76/'Resultats PMV'!$AX76 ->  | AJ86: ='Resultats PMV'!AU76/'Resultats PMV'!$AX76 ->  | AK86: ='Resultats PMV'!AV76/'Resultats PMV'!$AX76 ->  | AL86: ='Resultats PMV'!AW76/'Resultats PMV'!$AX76 -> 
B87: ='Resultats PMV'!A77 -> 0 | C87: ='Resultats PMV'!F77/'Resultats PMV'!$P77 ->  | D87: ='Resultats PMV'!G77/'Resultats PMV'!$P77 ->  | E87: ='Resultats PMV'!H77/'Resultats PMV'!$P77 ->  | F87: ='Resultats PMV'!I77/'Resultats PMV'!$P77 ->  | G87: ='Resultats PMV'!J77/'Resultats PMV'!$P77 ->  | H87: ='Resultats PMV'!K77/'Resultats PMV'!$P77 ->  | I87: ='Resultats PMV'!L77/'Resultats PMV'!$P77 ->  | J87: ='Resultats PMV'!M77/'Resultats PMV'!$P77 ->  | K87: ='Resultats PMV'!N77/'Resultats PMV'!$P77 ->  | L87: ='Resultats PMV'!O77/'Resultats PMV'!$P77 ->  | O87: ='Resultats PMV'!R77 -> 0 | P87: ='Resultats PMV'!S77/'Resultats PMV'!$P77 ->  | Q87: ='Resultats PMV'!T77/'Resultats PMV'!$P77 ->  | R87: ='Resultats PMV'!U77/'Resultats PMV'!$P77 ->  | S87: ='Resultats PMV'!V77/'Resultats PMV'!$P77 ->  | T87: ='Resultats PMV'!W77/'Resultats PMV'!$P77 ->  | U87: ='Resultats PMV'!X77/'Resultats PMV'!$P77 ->  | V87: ='Resultats PMV'!Y77/'Resultats PMV'!$P77 ->  | W87: ='Resultats PMV'!Z77/'Resultats PMV'!$P77 ->  | X87: ='Resultats PMV'!AA77/'Resultats PMV'!$P77 ->  | Y87: ='Resultats PMV'!AB77/'Resultats PMV'!$P77 ->  | AB87: ='Resultats PMV'!AI77 -> 0 | AC87: ='Resultats PMV'!AN77/'Resultats PMV'!$AX77 ->  | AD87: ='Resultats PMV'!AO77/'Resultats PMV'!$AX77 ->  | AE87: ='Resultats PMV'!AP77/'Resultats PMV'!$AX77 ->  | AF87: ='Resultats PMV'!AQ77/'Resultats PMV'!$AX77 ->  | AG87: ='Resultats PMV'!AR77/'Resultats PMV'!$AX77 ->  | AH87: ='Resultats PMV'!AS77/'Resultats PMV'!$AX77 ->  | AI87: ='Resultats PMV'!AT77/'Resultats PMV'!$AX77 ->  | AJ87: ='Resultats PMV'!AU77/'Resultats PMV'!$AX77 ->  | AK87: ='Resultats PMV'!AV77/'Resultats PMV'!$AX77 ->  | AL87: ='Resultats PMV'!AW77/'Resultats PMV'!$AX77 -> 
B88: ='Resultats PMV'!A78 -> 0 | C88: ='Resultats PMV'!F78/'Resultats PMV'!$P78 ->  | D88: ='Resultats PMV'!G78/'Resultats PMV'!$P78 ->  | E88: ='Resultats PMV'!H78/'Resultats PMV'!$P78 ->  | F88: ='Resultats PMV'!I78/'Resultats PMV'!$P78 ->  | G88: ='Resultats PMV'!J78/'Resultats PMV'!$P78 ->  | H88: ='Resultats PMV'!K78/'Resultats PMV'!$P78 ->  | I88: ='Resultats PMV'!L78/'Resultats PMV'!$P78 ->  | J88: ='Resultats PMV'!M78/'Resultats PMV'!$P78 ->  | K88: ='Resultats PMV'!N78/'Resultats PMV'!$P78 ->  | L88: ='Resultats PMV'!O78/'Resultats PMV'!$P78 ->  | O88: ='Resultats PMV'!R78 -> 0 | P88: ='Resultats PMV'!S78/'Resultats PMV'!$P78 ->  | Q88: ='Resultats PMV'!T78/'Resultats PMV'!$P78 ->  | R88: ='Resultats PMV'!U78/'Resultats PMV'!$P78 ->  | S88: ='Resultats PMV'!V78/'Resultats PMV'!$P78 ->  | T88: ='Resultats PMV'!W78/'Resultats PMV'!$P78 ->  | U88: ='Resultats PMV'!X78/'Resultats PMV'!$P78 ->  | V88: ='Resultats PMV'!Y78/'Resultats PMV'!$P78 ->  | W88: ='Resultats PMV'!Z78/'Resultats PMV'!$P78 ->  | X88: ='Resultats PMV'!AA78/'Resultats PMV'!$P78 ->  | Y88: ='Resultats PMV'!AB78/'Resultats PMV'!$P78 ->  | AB88: ='Resultats PMV'!AI78 -> 0 | AC88: ='Resultats PMV'!AN78/'Resultats PMV'!$AX78 ->  | AD88: ='Resultats PMV'!AO78/'Resultats PMV'!$AX78 ->  | AE88: ='Resultats PMV'!AP78/'Resultats PMV'!$AX78 ->  | AF88: ='Resultats PMV'!AQ78/'Resultats PMV'!$AX78 ->  | AG88: ='Resultats PMV'!AR78/'Resultats PMV'!$AX78 ->  | AH88: ='Resultats PMV'!AS78/'Resultats PMV'!$AX78 ->  | AI88: ='Resultats PMV'!AT78/'Resultats PMV'!$AX78 ->  | AJ88: ='Resultats PMV'!AU78/'Resultats PMV'!$AX78 ->  | AK88: ='Resultats PMV'!AV78/'Resultats PMV'!$AX78 ->  | AL88: ='Resultats PMV'!AW78/'Resultats PMV'!$AX78 -> 
B89: ='Resultats PMV'!A79 -> 0 | C89: ='Resultats PMV'!F79/'Resultats PMV'!$P79 ->  | D89: ='Resultats PMV'!G79/'Resultats PMV'!$P79 ->  | E89: ='Resultats PMV'!H79/'Resultats PMV'!$P79 ->  | F89: ='Resultats PMV'!I79/'Resultats PMV'!$P79 ->  | G89: ='Resultats PMV'!J79/'Resultats PMV'!$P79 ->  | H89: ='Resultats PMV'!K79/'Resultats PMV'!$P79 ->  | I89: ='Resultats PMV'!L79/'Resultats PMV'!$P79 ->  | J89: ='Resultats PMV'!M79/'Resultats PMV'!$P79 ->  | K89: ='Resultats PMV'!N79/'Resultats PMV'!$P79 ->  | L89: ='Resultats PMV'!O79/'Resultats PMV'!$P79 ->  | O89: ='Resultats PMV'!R79 -> 0 | P89: ='Resultats PMV'!S79/'Resultats PMV'!$P79 ->  | Q89: ='Resultats PMV'!T79/'Resultats PMV'!$P79 ->  | R89: ='Resultats PMV'!U79/'Resultats PMV'!$P79 ->  | S89: ='Resultats PMV'!V79/'Resultats PMV'!$P79 ->  | T89: ='Resultats PMV'!W79/'Resultats PMV'!$P79 ->  | U89: ='Resultats PMV'!X79/'Resultats PMV'!$P79 ->  | V89: ='Resultats PMV'!Y79/'Resultats PMV'!$P79 ->  | W89: ='Resultats PMV'!Z79/'Resultats PMV'!$P79 ->  | X89: ='Resultats PMV'!AA79/'Resultats PMV'!$P79 ->  | Y89: ='Resultats PMV'!AB79/'Resultats PMV'!$P79 ->  | AB89: ='Resultats PMV'!AI79 -> 0 | AC89: ='Resultats PMV'!AN79/'Resultats PMV'!$AX79 ->  | AD89: ='Resultats PMV'!AO79/'Resultats PMV'!$AX79 ->  | AE89: ='Resultats PMV'!AP79/'Resultats PMV'!$AX79 ->  | AF89: ='Resultats PMV'!AQ79/'Resultats PMV'!$AX79 ->  | AG89: ='Resultats PMV'!AR79/'Resultats PMV'!$AX79 ->  | AH89: ='Resultats PMV'!AS79/'Resultats PMV'!$AX79 ->  | AI89: ='Resultats PMV'!AT79/'Resultats PMV'!$AX79 ->  | AJ89: ='Resultats PMV'!AU79/'Resultats PMV'!$AX79 ->  | AK89: ='Resultats PMV'!AV79/'Resultats PMV'!$AX79 ->  | AL89: ='Resultats PMV'!AW79/'Resultats PMV'!$AX79 -> 
B90: ='Resultats PMV'!A80 -> 0 | C90: ='Resultats PMV'!F80/'Resultats PMV'!$P80 ->  | D90: ='Resultats PMV'!G80/'Resultats PMV'!$P80 ->  | E90: ='Resultats PMV'!H80/'Resultats PMV'!$P80 ->  | F90: ='Resultats PMV'!I80/'Resultats PMV'!$P80 ->  | G90: ='Resultats PMV'!J80/'Resultats PMV'!$P80 ->  | H90: ='Resultats PMV'!K80/'Resultats PMV'!$P80 ->  | I90: ='Resultats PMV'!L80/'Resultats PMV'!$P80 ->  | J90: ='Resultats PMV'!M80/'Resultats PMV'!$P80 ->  | K90: ='Resultats PMV'!N80/'Resultats PMV'!$P80 ->  | L90: ='Resultats PMV'!O80/'Resultats PMV'!$P80 ->  | O90: ='Resultats PMV'!R80 -> 0 | P90: ='Resultats PMV'!S80/'Resultats PMV'!$P80 ->  | Q90: ='Resultats PMV'!T80/'Resultats PMV'!$P80 ->  | R90: ='Resultats PMV'!U80/'Resultats PMV'!$P80 ->  | S90: ='Resultats PMV'!V80/'Resultats PMV'!$P80 ->  | T90: ='Resultats PMV'!W80/'Resultats PMV'!$P80 ->  | U90: ='Resultats PMV'!X80/'Resultats PMV'!$P80 ->  | V90: ='Resultats PMV'!Y80/'Resultats PMV'!$P80 ->  | W90: ='Resultats PMV'!Z80/'Resultats PMV'!$P80 ->  | X90: ='Resultats PMV'!AA80/'Resultats PMV'!$P80 ->  | Y90: ='Resultats PMV'!AB80/'Resultats PMV'!$P80 ->  | AB90: ='Resultats PMV'!AI80 -> 0 | AC90: ='Resultats PMV'!AN80/'Resultats PMV'!$AX80 ->  | AD90: ='Resultats PMV'!AO80/'Resultats PMV'!$AX80 ->  | AE90: ='Resultats PMV'!AP80/'Resultats PMV'!$AX80 ->  | AF90: ='Resultats PMV'!AQ80/'Resultats PMV'!$AX80 ->  | AG90: ='Resultats PMV'!AR80/'Resultats PMV'!$AX80 ->  | AH90: ='Resultats PMV'!AS80/'Resultats PMV'!$AX80 ->  | AI90: ='Resultats PMV'!AT80/'Resultats PMV'!$AX80 ->  | AJ90: ='Resultats PMV'!AU80/'Resultats PMV'!$AX80 ->  | AK90: ='Resultats PMV'!AV80/'Resultats PMV'!$AX80 ->  | AL90: ='Resultats PMV'!AW80/'Resultats PMV'!$AX80 -> 
B91: ='Resultats PMV'!A81 -> 0 | C91: ='Resultats PMV'!F81/'Resultats PMV'!$P81 ->  | D91: ='Resultats PMV'!G81/'Resultats PMV'!$P81 ->  | E91: ='Resultats PMV'!H81/'Resultats PMV'!$P81 ->  | F91: ='Resultats PMV'!I81/'Resultats PMV'!$P81 ->  | G91: ='Resultats PMV'!J81/'Resultats PMV'!$P81 ->  | H91: ='Resultats PMV'!K81/'Resultats PMV'!$P81 ->  | I91: ='Resultats PMV'!L81/'Resultats PMV'!$P81 ->  | J91: ='Resultats PMV'!M81/'Resultats PMV'!$P81 ->  | K91: ='Resultats PMV'!N81/'Resultats PMV'!$P81 ->  | L91: ='Resultats PMV'!O81/'Resultats PMV'!$P81 ->  | O91: ='Resultats PMV'!R81 -> 0 | P91: ='Resultats PMV'!S81/'Resultats PMV'!$P81 ->  | Q91: ='Resultats PMV'!T81/'Resultats PMV'!$P81 ->  | R91: ='Resultats PMV'!U81/'Resultats PMV'!$P81 ->  | S91: ='Resultats PMV'!V81/'Resultats PMV'!$P81 ->  | T91: ='Resultats PMV'!W81/'Resultats PMV'!$P81 ->  | U91: ='Resultats PMV'!X81/'Resultats PMV'!$P81 ->  | V91: ='Resultats PMV'!Y81/'Resultats PMV'!$P81 ->  | W91: ='Resultats PMV'!Z81/'Resultats PMV'!$P81 ->  | X91: ='Resultats PMV'!AA81/'Resultats PMV'!$P81 ->  | Y91: ='Resultats PMV'!AB81/'Resultats PMV'!$P81 ->  | AB91: ='Resultats PMV'!AI81 -> 0 | AC91: ='Resultats PMV'!AN81/'Resultats PMV'!$AX81 ->  | AD91: ='Resultats PMV'!AO81/'Resultats PMV'!$AX81 ->  | AE91: ='Resultats PMV'!AP81/'Resultats PMV'!$AX81 ->  | AF91: ='Resultats PMV'!AQ81/'Resultats PMV'!$AX81 ->  | AG91: ='Resultats PMV'!AR81/'Resultats PMV'!$AX81 ->  | AH91: ='Resultats PMV'!AS81/'Resultats PMV'!$AX81 ->  | AI91: ='Resultats PMV'!AT81/'Resultats PMV'!$AX81 ->  | AJ91: ='Resultats PMV'!AU81/'Resultats PMV'!$AX81 ->  | AK91: ='Resultats PMV'!AV81/'Resultats PMV'!$AX81 ->  | AL91: ='Resultats PMV'!AW81/'Resultats PMV'!$AX81 -> 
B92: ='Resultats PMV'!A82 -> 0 | C92: ='Resultats PMV'!F82/'Resultats PMV'!$P82 ->  | D92: ='Resultats PMV'!G82/'Resultats PMV'!$P82 ->  | E92: ='Resultats PMV'!H82/'Resultats PMV'!$P82 ->  | F92: ='Resultats PMV'!I82/'Resultats PMV'!$P82 ->  | G92: ='Resultats PMV'!J82/'Resultats PMV'!$P82 ->  | H92: ='Resultats PMV'!K82/'Resultats PMV'!$P82 ->  | I92: ='Resultats PMV'!L82/'Resultats PMV'!$P82 ->  | J92: ='Resultats PMV'!M82/'Resultats PMV'!$P82 ->  | K92: ='Resultats PMV'!N82/'Resultats PMV'!$P82 ->  | L92: ='Resultats PMV'!O82/'Resultats PMV'!$P82 ->  | O92: ='Resultats PMV'!R82 -> 0 | P92: ='Resultats PMV'!S82/'Resultats PMV'!$P82 ->  | Q92: ='Resultats PMV'!T82/'Resultats PMV'!$P82 ->  | R92: ='Resultats PMV'!U82/'Resultats PMV'!$P82 ->  | S92: ='Resultats PMV'!V82/'Resultats PMV'!$P82 ->  | T92: ='Resultats PMV'!W82/'Resultats PMV'!$P82 ->  | U92: ='Resultats PMV'!X82/'Resultats PMV'!$P82 ->  | V92: ='Resultats PMV'!Y82/'Resultats PMV'!$P82 ->  | W92: ='Resultats PMV'!Z82/'Resultats PMV'!$P82 ->  | X92: ='Resultats PMV'!AA82/'Resultats PMV'!$P82 ->  | Y92: ='Resultats PMV'!AB82/'Resultats PMV'!$P82 ->  | AB92: ='Resultats PMV'!AI82 -> 0 | AC92: ='Resultats PMV'!AN82/'Resultats PMV'!$AX82 ->  | AD92: ='Resultats PMV'!AO82/'Resultats PMV'!$AX82 ->  | AE92: ='Resultats PMV'!AP82/'Resultats PMV'!$AX82 ->  | AF92: ='Resultats PMV'!AQ82/'Resultats PMV'!$AX82 ->  | AG92: ='Resultats PMV'!AR82/'Resultats PMV'!$AX82 ->  | AH92: ='Resultats PMV'!AS82/'Resultats PMV'!$AX82 ->  | AI92: ='Resultats PMV'!AT82/'Resultats PMV'!$AX82 ->  | AJ92: ='Resultats PMV'!AU82/'Resultats PMV'!$AX82 ->  | AK92: ='Resultats PMV'!AV82/'Resultats PMV'!$AX82 ->  | AL92: ='Resultats PMV'!AW82/'Resultats PMV'!$AX82 -> 
B93: ='Resultats PMV'!A83 -> 0 | C93: ='Resultats PMV'!F83/'Resultats PMV'!$P83 ->  | D93: ='Resultats PMV'!G83/'Resultats PMV'!$P83 ->  | E93: ='Resultats PMV'!H83/'Resultats PMV'!$P83 ->  | F93: ='Resultats PMV'!I83/'Resultats PMV'!$P83 ->  | G93: ='Resultats PMV'!J83/'Resultats PMV'!$P83 ->  | H93: ='Resultats PMV'!K83/'Resultats PMV'!$P83 ->  | I93: ='Resultats PMV'!L83/'Resultats PMV'!$P83 ->  | J93: ='Resultats PMV'!M83/'Resultats PMV'!$P83 ->  | K93: ='Resultats PMV'!N83/'Resultats PMV'!$P83 ->  | L93: ='Resultats PMV'!O83/'Resultats PMV'!$P83 ->  | O93: ='Resultats PMV'!R83 -> 0 | P93: ='Resultats PMV'!S83/'Resultats PMV'!$P83 ->  | Q93: ='Resultats PMV'!T83/'Resultats PMV'!$P83 ->  | R93: ='Resultats PMV'!U83/'Resultats PMV'!$P83 ->  | S93: ='Resultats PMV'!V83/'Resultats PMV'!$P83 ->  | T93: ='Resultats PMV'!W83/'Resultats PMV'!$P83 ->  | U93: ='Resultats PMV'!X83/'Resultats PMV'!$P83 ->  | V93: ='Resultats PMV'!Y83/'Resultats PMV'!$P83 ->  | W93: ='Resultats PMV'!Z83/'Resultats PMV'!$P83 ->  | X93: ='Resultats PMV'!AA83/'Resultats PMV'!$P83 ->  | Y93: ='Resultats PMV'!AB83/'Resultats PMV'!$P83 ->  | AB93: ='Resultats PMV'!AI83 -> 0 | AC93: ='Resultats PMV'!AN83/'Resultats PMV'!$AX83 ->  | AD93: ='Resultats PMV'!AO83/'Resultats PMV'!$AX83 ->  | AE93: ='Resultats PMV'!AP83/'Resultats PMV'!$AX83 ->  | AF93: ='Resultats PMV'!AQ83/'Resultats PMV'!$AX83 ->  | AG93: ='Resultats PMV'!AR83/'Resultats PMV'!$AX83 ->  | AH93: ='Resultats PMV'!AS83/'Resultats PMV'!$AX83 ->  | AI93: ='Resultats PMV'!AT83/'Resultats PMV'!$AX83 ->  | AJ93: ='Resultats PMV'!AU83/'Resultats PMV'!$AX83 ->  | AK93: ='Resultats PMV'!AV83/'Resultats PMV'!$AX83 ->  | AL93: ='Resultats PMV'!AW83/'Resultats PMV'!$AX83 -> 
B94: ='Resultats PMV'!A84 -> 0 | C94: ='Resultats PMV'!F84/'Resultats PMV'!$P84 ->  | D94: ='Resultats PMV'!G84/'Resultats PMV'!$P84 ->  | E94: ='Resultats PMV'!H84/'Resultats PMV'!$P84 ->  | F94: ='Resultats PMV'!I84/'Resultats PMV'!$P84 ->  | G94: ='Resultats PMV'!J84/'Resultats PMV'!$P84 ->  | H94: ='Resultats PMV'!K84/'Resultats PMV'!$P84 ->  | I94: ='Resultats PMV'!L84/'Resultats PMV'!$P84 ->  | J94: ='Resultats PMV'!M84/'Resultats PMV'!$P84 ->  | K94: ='Resultats PMV'!N84/'Resultats PMV'!$P84 ->  | L94: ='Resultats PMV'!O84/'Resultats PMV'!$P84 ->  | O94: ='Resultats PMV'!R84 -> 0 | P94: ='Resultats PMV'!S84/'Resultats PMV'!$P84 ->  | Q94: ='Resultats PMV'!T84/'Resultats PMV'!$P84 ->  | R94: ='Resultats PMV'!U84/'Resultats PMV'!$P84 ->  | S94: ='Resultats PMV'!V84/'Resultats PMV'!$P84 ->  | T94: ='Resultats PMV'!W84/'Resultats PMV'!$P84 ->  | U94: ='Resultats PMV'!X84/'Resultats PMV'!$P84 ->  | V94: ='Resultats PMV'!Y84/'Resultats PMV'!$P84 ->  | W94: ='Resultats PMV'!Z84/'Resultats PMV'!$P84 ->  | X94: ='Resultats PMV'!AA84/'Resultats PMV'!$P84 ->  | Y94: ='Resultats PMV'!AB84/'Resultats PMV'!$P84 ->  | AB94: ='Resultats PMV'!AI84 -> 0 | AC94: ='Resultats PMV'!AN84/'Resultats PMV'!$AX84 ->  | AD94: ='Resultats PMV'!AO84/'Resultats PMV'!$AX84 ->  | AE94: ='Resultats PMV'!AP84/'Resultats PMV'!$AX84 ->  | AF94: ='Resultats PMV'!AQ84/'Resultats PMV'!$AX84 ->  | AG94: ='Resultats PMV'!AR84/'Resultats PMV'!$AX84 ->  | AH94: ='Resultats PMV'!AS84/'Resultats PMV'!$AX84 ->  | AI94: ='Resultats PMV'!AT84/'Resultats PMV'!$AX84 ->  | AJ94: ='Resultats PMV'!AU84/'Resultats PMV'!$AX84 ->  | AK94: ='Resultats PMV'!AV84/'Resultats PMV'!$AX84 ->  | AL94: ='Resultats PMV'!AW84/'Resultats PMV'!$AX84 -> 
B95: ='Resultats PMV'!A85 -> 0 | C95: ='Resultats PMV'!F85/'Resultats PMV'!$P85 ->  | D95: ='Resultats PMV'!G85/'Resultats PMV'!$P85 ->  | E95: ='Resultats PMV'!H85/'Resultats PMV'!$P85 ->  | F95: ='Resultats PMV'!I85/'Resultats PMV'!$P85 ->  | G95: ='Resultats PMV'!J85/'Resultats PMV'!$P85 ->  | H95: ='Resultats PMV'!K85/'Resultats PMV'!$P85 ->  | I95: ='Resultats PMV'!L85/'Resultats PMV'!$P85 ->  | J95: ='Resultats PMV'!M85/'Resultats PMV'!$P85 ->  | K95: ='Resultats PMV'!N85/'Resultats PMV'!$P85 ->  | L95: ='Resultats PMV'!O85/'Resultats PMV'!$P85 ->  | O95: ='Resultats PMV'!R85 -> 0 | P95: ='Resultats PMV'!S85/'Resultats PMV'!$P85 ->  | Q95: ='Resultats PMV'!T85/'Resultats PMV'!$P85 ->  | R95: ='Resultats PMV'!U85/'Resultats PMV'!$P85 ->  | S95: ='Resultats PMV'!V85/'Resultats PMV'!$P85 ->  | T95: ='Resultats PMV'!W85/'Resultats PMV'!$P85 ->  | U95: ='Resultats PMV'!X85/'Resultats PMV'!$P85 ->  | V95: ='Resultats PMV'!Y85/'Resultats PMV'!$P85 ->  | W95: ='Resultats PMV'!Z85/'Resultats PMV'!$P85 ->  | X95: ='Resultats PMV'!AA85/'Resultats PMV'!$P85 ->  | Y95: ='Resultats PMV'!AB85/'Resultats PMV'!$P85 ->  | AB95: ='Resultats PMV'!AI85 -> 0 | AC95: ='Resultats PMV'!AN85/'Resultats PMV'!$AX85 ->  | AD95: ='Resultats PMV'!AO85/'Resultats PMV'!$AX85 ->  | AE95: ='Resultats PMV'!AP85/'Resultats PMV'!$AX85 ->  | AF95: ='Resultats PMV'!AQ85/'Resultats PMV'!$AX85 ->  | AG95: ='Resultats PMV'!AR85/'Resultats PMV'!$AX85 ->  | AH95: ='Resultats PMV'!AS85/'Resultats PMV'!$AX85 ->  | AI95: ='Resultats PMV'!AT85/'Resultats PMV'!$AX85 ->  | AJ95: ='Resultats PMV'!AU85/'Resultats PMV'!$AX85 ->  | AK95: ='Resultats PMV'!AV85/'Resultats PMV'!$AX85 ->  | AL95: ='Resultats PMV'!AW85/'Resultats PMV'!$AX85 -> 
B96: ='Resultats PMV'!A86 -> 0 | C96: ='Resultats PMV'!F86/'Resultats PMV'!$P86 ->  | D96: ='Resultats PMV'!G86/'Resultats PMV'!$P86 ->  | E96: ='Resultats PMV'!H86/'Resultats PMV'!$P86 ->  | F96: ='Resultats PMV'!I86/'Resultats PMV'!$P86 ->  | G96: ='Resultats PMV'!J86/'Resultats PMV'!$P86 ->  | H96: ='Resultats PMV'!K86/'Resultats PMV'!$P86 ->  | I96: ='Resultats PMV'!L86/'Resultats PMV'!$P86 ->  | J96: ='Resultats PMV'!M86/'Resultats PMV'!$P86 ->  | K96: ='Resultats PMV'!N86/'Resultats PMV'!$P86 ->  | L96: ='Resultats PMV'!O86/'Resultats PMV'!$P86 ->  | O96: ='Resultats PMV'!R86 -> 0 | P96: ='Resultats PMV'!S86/'Resultats PMV'!$P86 ->  | Q96: ='Resultats PMV'!T86/'Resultats PMV'!$P86 ->  | R96: ='Resultats PMV'!U86/'Resultats PMV'!$P86 ->  | S96: ='Resultats PMV'!V86/'Resultats PMV'!$P86 ->  | T96: ='Resultats PMV'!W86/'Resultats PMV'!$P86 ->  | U96: ='Resultats PMV'!X86/'Resultats PMV'!$P86 ->  | V96: ='Resultats PMV'!Y86/'Resultats PMV'!$P86 ->  | W96: ='Resultats PMV'!Z86/'Resultats PMV'!$P86 ->  | X96: ='Resultats PMV'!AA86/'Resultats PMV'!$P86 ->  | Y96: ='Resultats PMV'!AB86/'Resultats PMV'!$P86 ->  | AB96: ='Resultats PMV'!AI86 -> 0 | AC96: ='Resultats PMV'!AN86/'Resultats PMV'!$AX86 ->  | AD96: ='Resultats PMV'!AO86/'Resultats PMV'!$AX86 ->  | AE96: ='Resultats PMV'!AP86/'Resultats PMV'!$AX86 ->  | AF96: ='Resultats PMV'!AQ86/'Resultats PMV'!$AX86 ->  | AG96: ='Resultats PMV'!AR86/'Resultats PMV'!$AX86 ->  | AH96: ='Resultats PMV'!AS86/'Resultats PMV'!$AX86 ->  | AI96: ='Resultats PMV'!AT86/'Resultats PMV'!$AX86 ->  | AJ96: ='Resultats PMV'!AU86/'Resultats PMV'!$AX86 ->  | AK96: ='Resultats PMV'!AV86/'Resultats PMV'!$AX86 ->  | AL96: ='Resultats PMV'!AW86/'Resultats PMV'!$AX86 -> 
B97: ='Resultats PMV'!A87 -> 0 | C97: ='Resultats PMV'!F87/'Resultats PMV'!$P87 ->  | D97: ='Resultats PMV'!G87/'Resultats PMV'!$P87 ->  | E97: ='Resultats PMV'!H87/'Resultats PMV'!$P87 ->  | F97: ='Resultats PMV'!I87/'Resultats PMV'!$P87 ->  | G97: ='Resultats PMV'!J87/'Resultats PMV'!$P87 ->  | H97: ='Resultats PMV'!K87/'Resultats PMV'!$P87 ->  | I97: ='Resultats PMV'!L87/'Resultats PMV'!$P87 ->  | J97: ='Resultats PMV'!M87/'Resultats PMV'!$P87 ->  | K97: ='Resultats PMV'!N87/'Resultats PMV'!$P87 ->  | L97: ='Resultats PMV'!O87/'Resultats PMV'!$P87 ->  | O97: ='Resultats PMV'!R87 -> 0 | P97: ='Resultats PMV'!S87/'Resultats PMV'!$P87 ->  | Q97: ='Resultats PMV'!T87/'Resultats PMV'!$P87 ->  | R97: ='Resultats PMV'!U87/'Resultats PMV'!$P87 ->  | S97: ='Resultats PMV'!V87/'Resultats PMV'!$P87 ->  | T97: ='Resultats PMV'!W87/'Resultats PMV'!$P87 ->  | U97: ='Resultats PMV'!X87/'Resultats PMV'!$P87 ->  | V97: ='Resultats PMV'!Y87/'Resultats PMV'!$P87 ->  | W97: ='Resultats PMV'!Z87/'Resultats PMV'!$P87 ->  | X97: ='Resultats PMV'!AA87/'Resultats PMV'!$P87 ->  | Y97: ='Resultats PMV'!AB87/'Resultats PMV'!$P87 ->  | AB97: ='Resultats PMV'!AI87 -> 0 | AC97: ='Resultats PMV'!AN87/'Resultats PMV'!$AX87 ->  | AD97: ='Resultats PMV'!AO87/'Resultats PMV'!$AX87 ->  | AE97: ='Resultats PMV'!AP87/'Resultats PMV'!$AX87 ->  | AF97: ='Resultats PMV'!AQ87/'Resultats PMV'!$AX87 ->  | AG97: ='Resultats PMV'!AR87/'Resultats PMV'!$AX87 ->  | AH97: ='Resultats PMV'!AS87/'Resultats PMV'!$AX87 ->  | AI97: ='Resultats PMV'!AT87/'Resultats PMV'!$AX87 ->  | AJ97: ='Resultats PMV'!AU87/'Resultats PMV'!$AX87 ->  | AK97: ='Resultats PMV'!AV87/'Resultats PMV'!$AX87 ->  | AL97: ='Resultats PMV'!AW87/'Resultats PMV'!$AX87 -> 
B98: ='Resultats PMV'!A88 -> 0 | C98: ='Resultats PMV'!F88/'Resultats PMV'!$P88 ->  | D98: ='Resultats PMV'!G88/'Resultats PMV'!$P88 ->  | E98: ='Resultats PMV'!H88/'Resultats PMV'!$P88 ->  | F98: ='Resultats PMV'!I88/'Resultats PMV'!$P88 ->  | G98: ='Resultats PMV'!J88/'Resultats PMV'!$P88 ->  | H98: ='Resultats PMV'!K88/'Resultats PMV'!$P88 ->  | I98: ='Resultats PMV'!L88/'Resultats PMV'!$P88 ->  | J98: ='Resultats PMV'!M88/'Resultats PMV'!$P88 ->  | K98: ='Resultats PMV'!N88/'Resultats PMV'!$P88 ->  | L98: ='Resultats PMV'!O88/'Resultats PMV'!$P88 ->  | O98: ='Resultats PMV'!R88 -> 0 | P98: ='Resultats PMV'!S88/'Resultats PMV'!$P88 ->  | Q98: ='Resultats PMV'!T88/'Resultats PMV'!$P88 ->  | R98: ='Resultats PMV'!U88/'Resultats PMV'!$P88 ->  | S98: ='Resultats PMV'!V88/'Resultats PMV'!$P88 ->  | T98: ='Resultats PMV'!W88/'Resultats PMV'!$P88 ->  | U98: ='Resultats PMV'!X88/'Resultats PMV'!$P88 ->  | V98: ='Resultats PMV'!Y88/'Resultats PMV'!$P88 ->  | W98: ='Resultats PMV'!Z88/'Resultats PMV'!$P88 ->  | X98: ='Resultats PMV'!AA88/'Resultats PMV'!$P88 ->  | Y98: ='Resultats PMV'!AB88/'Resultats PMV'!$P88 ->  | AB98: ='Resultats PMV'!AI88 -> 0 | AC98: ='Resultats PMV'!AN88/'Resultats PMV'!$AX88 ->  | AD98: ='Resultats PMV'!AO88/'Resultats PMV'!$AX88 ->  | AE98: ='Resultats PMV'!AP88/'Resultats PMV'!$AX88 ->  | AF98: ='Resultats PMV'!AQ88/'Resultats PMV'!$AX88 ->  | AG98: ='Resultats PMV'!AR88/'Resultats PMV'!$AX88 ->  | AH98: ='Resultats PMV'!AS88/'Resultats PMV'!$AX88 ->  | AI98: ='Resultats PMV'!AT88/'Resultats PMV'!$AX88 ->  | AJ98: ='Resultats PMV'!AU88/'Resultats PMV'!$AX88 ->  | AK98: ='Resultats PMV'!AV88/'Resultats PMV'!$AX88 ->  | AL98: ='Resultats PMV'!AW88/'Resultats PMV'!$AX88 -> 
B99: ='Resultats PMV'!A89 -> 0 | C99: ='Resultats PMV'!F89/'Resultats PMV'!$P89 ->  | D99: ='Resultats PMV'!G89/'Resultats PMV'!$P89 ->  | E99: ='Resultats PMV'!H89/'Resultats PMV'!$P89 ->  | F99: ='Resultats PMV'!I89/'Resultats PMV'!$P89 ->  | G99: ='Resultats PMV'!J89/'Resultats PMV'!$P89 ->  | H99: ='Resultats PMV'!K89/'Resultats PMV'!$P89 ->  | I99: ='Resultats PMV'!L89/'Resultats PMV'!$P89 ->  | J99: ='Resultats PMV'!M89/'Resultats PMV'!$P89 ->  | K99: ='Resultats PMV'!N89/'Resultats PMV'!$P89 ->  | L99: ='Resultats PMV'!O89/'Resultats PMV'!$P89 ->  | O99: ='Resultats PMV'!R89 -> 0 | P99: ='Resultats PMV'!S89/'Resultats PMV'!$P89 ->  | Q99: ='Resultats PMV'!T89/'Resultats PMV'!$P89 ->  | R99: ='Resultats PMV'!U89/'Resultats PMV'!$P89 ->  | S99: ='Resultats PMV'!V89/'Resultats PMV'!$P89 ->  | T99: ='Resultats PMV'!W89/'Resultats PMV'!$P89 ->  | U99: ='Resultats PMV'!X89/'Resultats PMV'!$P89 ->  | V99: ='Resultats PMV'!Y89/'Resultats PMV'!$P89 ->  | W99: ='Resultats PMV'!Z89/'Resultats PMV'!$P89 ->  | X99: ='Resultats PMV'!AA89/'Resultats PMV'!$P89 ->  | Y99: ='Resultats PMV'!AB89/'Resultats PMV'!$P89 ->  | AB99: ='Resultats PMV'!AI89 -> 0 | AC99: ='Resultats PMV'!AN89/'Resultats PMV'!$AX89 ->  | AD99: ='Resultats PMV'!AO89/'Resultats PMV'!$AX89 ->  | AE99: ='Resultats PMV'!AP89/'Resultats PMV'!$AX89 ->  | AF99: ='Resultats PMV'!AQ89/'Resultats PMV'!$AX89 ->  | AG99: ='Resultats PMV'!AR89/'Resultats PMV'!$AX89 ->  | AH99: ='Resultats PMV'!AS89/'Resultats PMV'!$AX89 ->  | AI99: ='Resultats PMV'!AT89/'Resultats PMV'!$AX89 ->  | AJ99: ='Resultats PMV'!AU89/'Resultats PMV'!$AX89 ->  | AK99: ='Resultats PMV'!AV89/'Resultats PMV'!$AX89 ->  | AL99: ='Resultats PMV'!AW89/'Resultats PMV'!$AX89 -> 
B100: ='Resultats PMV'!A90 -> 0 | C100: ='Resultats PMV'!F90/'Resultats PMV'!$P90 ->  | D100: ='Resultats PMV'!G90/'Resultats PMV'!$P90 ->  | E100: ='Resultats PMV'!H90/'Resultats PMV'!$P90 ->  | F100: ='Resultats PMV'!I90/'Resultats PMV'!$P90 ->  | G100: ='Resultats PMV'!J90/'Resultats PMV'!$P90 ->  | H100: ='Resultats PMV'!K90/'Resultats PMV'!$P90 ->  | I100: ='Resultats PMV'!L90/'Resultats PMV'!$P90 ->  | J100: ='Resultats PMV'!M90/'Resultats PMV'!$P90 ->  | K100: ='Resultats PMV'!N90/'Resultats PMV'!$P90 ->  | L100: ='Resultats PMV'!O90/'Resultats PMV'!$P90 ->  | O100: ='Resultats PMV'!R90 -> 0 | P100: ='Resultats PMV'!S90/'Resultats PMV'!$P90 ->  | Q100: ='Resultats PMV'!T90/'Resultats PMV'!$P90 ->  | R100: ='Resultats PMV'!U90/'Resultats PMV'!$P90 ->  | S100: ='Resultats PMV'!V90/'Resultats PMV'!$P90 ->  | T100: ='Resultats PMV'!W90/'Resultats PMV'!$P90 ->  | U100: ='Resultats PMV'!X90/'Resultats PMV'!$P90 ->  | V100: ='Resultats PMV'!Y90/'Resultats PMV'!$P90 ->  | W100: ='Resultats PMV'!Z90/'Resultats PMV'!$P90 ->  | X100: ='Resultats PMV'!AA90/'Resultats PMV'!$P90 ->  | Y100: ='Resultats PMV'!AB90/'Resultats PMV'!$P90 ->  | AB100: ='Resultats PMV'!AI90 -> 0 | AC100: ='Resultats PMV'!AN90/'Resultats PMV'!$AX90 ->  | AD100: ='Resultats PMV'!AO90/'Resultats PMV'!$AX90 ->  | AE100: ='Resultats PMV'!AP90/'Resultats PMV'!$AX90 ->  | AF100: ='Resultats PMV'!AQ90/'Resultats PMV'!$AX90 ->  | AG100: ='Resultats PMV'!AR90/'Resultats PMV'!$AX90 ->  | AH100: ='Resultats PMV'!AS90/'Resultats PMV'!$AX90 ->  | AI100: ='Resultats PMV'!AT90/'Resultats PMV'!$AX90 ->  | AJ100: ='Resultats PMV'!AU90/'Resultats PMV'!$AX90 ->  | AK100: ='Resultats PMV'!AV90/'Resultats PMV'!$AX90 ->  | AL100: ='Resultats PMV'!AW90/'Resultats PMV'!$AX90 -> 
B101: ='Resultats PMV'!A91 -> 0 | C101: ='Resultats PMV'!F91/'Resultats PMV'!$P91 ->  | D101: ='Resultats PMV'!G91/'Resultats PMV'!$P91 ->  | E101: ='Resultats PMV'!H91/'Resultats PMV'!$P91 ->  | F101: ='Resultats PMV'!I91/'Resultats PMV'!$P91 ->  | G101: ='Resultats PMV'!J91/'Resultats PMV'!$P91 ->  | H101: ='Resultats PMV'!K91/'Resultats PMV'!$P91 ->  | I101: ='Resultats PMV'!L91/'Resultats PMV'!$P91 ->  | J101: ='Resultats PMV'!M91/'Resultats PMV'!$P91 ->  | K101: ='Resultats PMV'!N91/'Resultats PMV'!$P91 ->  | L101: ='Resultats PMV'!O91/'Resultats PMV'!$P91 ->  | O101: ='Resultats PMV'!R91 -> 0 | P101: ='Resultats PMV'!S91/'Resultats PMV'!$P91 ->  | Q101: ='Resultats PMV'!T91/'Resultats PMV'!$P91 ->  | R101: ='Resultats PMV'!U91/'Resultats PMV'!$P91 ->  | S101: ='Resultats PMV'!V91/'Resultats PMV'!$P91 ->  | T101: ='Resultats PMV'!W91/'Resultats PMV'!$P91 ->  | U101: ='Resultats PMV'!X91/'Resultats PMV'!$P91 ->  | V101: ='Resultats PMV'!Y91/'Resultats PMV'!$P91 ->  | W101: ='Resultats PMV'!Z91/'Resultats PMV'!$P91 ->  | X101: ='Resultats PMV'!AA91/'Resultats PMV'!$P91 ->  | Y101: ='Resultats PMV'!AB91/'Resultats PMV'!$P91 ->  | AB101: ='Resultats PMV'!AI91 -> 0 | AC101: ='Resultats PMV'!AN91/'Resultats PMV'!$AX91 ->  | AD101: ='Resultats PMV'!AO91/'Resultats PMV'!$AX91 ->  | AE101: ='Resultats PMV'!AP91/'Resultats PMV'!$AX91 ->  | AF101: ='Resultats PMV'!AQ91/'Resultats PMV'!$AX91 ->  | AG101: ='Resultats PMV'!AR91/'Resultats PMV'!$AX91 ->  | AH101: ='Resultats PMV'!AS91/'Resultats PMV'!$AX91 ->  | AI101: ='Resultats PMV'!AT91/'Resultats PMV'!$AX91 ->  | AJ101: ='Resultats PMV'!AU91/'Resultats PMV'!$AX91 ->  | AK101: ='Resultats PMV'!AV91/'Resultats PMV'!$AX91 ->  | AL101: ='Resultats PMV'!AW91/'Resultats PMV'!$AX91 -> 
B102: ='Resultats PMV'!A92 -> 0 | C102: ='Resultats PMV'!F92/'Resultats PMV'!$P92 ->  | D102: ='Resultats PMV'!G92/'Resultats PMV'!$P92 ->  | E102: ='Resultats PMV'!H92/'Resultats PMV'!$P92 ->  | F102: ='Resultats PMV'!I92/'Resultats PMV'!$P92 ->  | G102: ='Resultats PMV'!J92/'Resultats PMV'!$P92 ->  | H102: ='Resultats PMV'!K92/'Resultats PMV'!$P92 ->  | I102: ='Resultats PMV'!L92/'Resultats PMV'!$P92 ->  | J102: ='Resultats PMV'!M92/'Resultats PMV'!$P92 ->  | K102: ='Resultats PMV'!N92/'Resultats PMV'!$P92 ->  | L102: ='Resultats PMV'!O92/'Resultats PMV'!$P92 ->  | O102: ='Resultats PMV'!R92 -> 0 | P102: ='Resultats PMV'!S92/'Resultats PMV'!$P92 ->  | Q102: ='Resultats PMV'!T92/'Resultats PMV'!$P92 ->  | R102: ='Resultats PMV'!U92/'Resultats PMV'!$P92 ->  | S102: ='Resultats PMV'!V92/'Resultats PMV'!$P92 ->  | T102: ='Resultats PMV'!W92/'Resultats PMV'!$P92 ->  | U102: ='Resultats PMV'!X92/'Resultats PMV'!$P92 ->  | V102: ='Resultats PMV'!Y92/'Resultats PMV'!$P92 ->  | W102: ='Resultats PMV'!Z92/'Resultats PMV'!$P92 ->  | X102: ='Resultats PMV'!AA92/'Resultats PMV'!$P92 ->  | Y102: ='Resultats PMV'!AB92/'Resultats PMV'!$P92 ->  | AB102: ='Resultats PMV'!AI92 -> 0 | AC102: ='Resultats PMV'!AN92/'Resultats PMV'!$AX92 ->  | AD102: ='Resultats PMV'!AO92/'Resultats PMV'!$AX92 ->  | AE102: ='Resultats PMV'!AP92/'Resultats PMV'!$AX92 ->  | AF102: ='Resultats PMV'!AQ92/'Resultats PMV'!$AX92 ->  | AG102: ='Resultats PMV'!AR92/'Resultats PMV'!$AX92 ->  | AH102: ='Resultats PMV'!AS92/'Resultats PMV'!$AX92 ->  | AI102: ='Resultats PMV'!AT92/'Resultats PMV'!$AX92 ->  | AJ102: ='Resultats PMV'!AU92/'Resultats PMV'!$AX92 ->  | AK102: ='Resultats PMV'!AV92/'Resultats PMV'!$AX92 ->  | AL102: ='Resultats PMV'!AW92/'Resultats PMV'!$AX92 -> 
B103: ='Resultats PMV'!A93 -> 0 | C103: ='Resultats PMV'!F93/'Resultats PMV'!$P93 ->  | D103: ='Resultats PMV'!G93/'Resultats PMV'!$P93 ->  | E103: ='Resultats PMV'!H93/'Resultats PMV'!$P93 ->  | F103: ='Resultats PMV'!I93/'Resultats PMV'!$P93 ->  | G103: ='Resultats PMV'!J93/'Resultats PMV'!$P93 ->  | H103: ='Resultats PMV'!K93/'Resultats PMV'!$P93 ->  | I103: ='Resultats PMV'!L93/'Resultats PMV'!$P93 ->  | J103: ='Resultats PMV'!M93/'Resultats PMV'!$P93 ->  | K103: ='Resultats PMV'!N93/'Resultats PMV'!$P93 ->  | L103: ='Resultats PMV'!O93/'Resultats PMV'!$P93 ->  | O103: ='Resultats PMV'!R93 -> 0 | P103: ='Resultats PMV'!S93/'Resultats PMV'!$P93 ->  | Q103: ='Resultats PMV'!T93/'Resultats PMV'!$P93 ->  | R103: ='Resultats PMV'!U93/'Resultats PMV'!$P93 ->  | S103: ='Resultats PMV'!V93/'Resultats PMV'!$P93 ->  | T103: ='Resultats PMV'!W93/'Resultats PMV'!$P93 ->  | U103: ='Resultats PMV'!X93/'Resultats PMV'!$P93 ->  | V103: ='Resultats PMV'!Y93/'Resultats PMV'!$P93 ->  | W103: ='Resultats PMV'!Z93/'Resultats PMV'!$P93 ->  | X103: ='Resultats PMV'!AA93/'Resultats PMV'!$P93 ->  | Y103: ='Resultats PMV'!AB93/'Resultats PMV'!$P93 ->  | AB103: ='Resultats PMV'!AI93 -> 0 | AC103: ='Resultats PMV'!AN93/'Resultats PMV'!$AX93 ->  | AD103: ='Resultats PMV'!AO93/'Resultats PMV'!$AX93 ->  | AE103: ='Resultats PMV'!AP93/'Resultats PMV'!$AX93 ->  | AF103: ='Resultats PMV'!AQ93/'Resultats PMV'!$AX93 ->  | AG103: ='Resultats PMV'!AR93/'Resultats PMV'!$AX93 ->  | AH103: ='Resultats PMV'!AS93/'Resultats PMV'!$AX93 ->  | AI103: ='Resultats PMV'!AT93/'Resultats PMV'!$AX93 ->  | AJ103: ='Resultats PMV'!AU93/'Resultats PMV'!$AX93 ->  | AK103: ='Resultats PMV'!AV93/'Resultats PMV'!$AX93 ->  | AL103: ='Resultats PMV'!AW93/'Resultats PMV'!$AX93 -> 
B104: ='Resultats PMV'!A94 -> 0 | C104: ='Resultats PMV'!F94/'Resultats PMV'!$P94 ->  | D104: ='Resultats PMV'!G94/'Resultats PMV'!$P94 ->  | E104: ='Resultats PMV'!H94/'Resultats PMV'!$P94 ->  | F104: ='Resultats PMV'!I94/'Resultats PMV'!$P94 ->  | G104: ='Resultats PMV'!J94/'Resultats PMV'!$P94 ->  | H104: ='Resultats PMV'!K94/'Resultats PMV'!$P94 ->  | I104: ='Resultats PMV'!L94/'Resultats PMV'!$P94 ->  | J104: ='Resultats PMV'!M94/'Resultats PMV'!$P94 ->  | K104: ='Resultats PMV'!N94/'Resultats PMV'!$P94 ->  | L104: ='Resultats PMV'!O94/'Resultats PMV'!$P94 ->  | O104: ='Resultats PMV'!R94 -> 0 | P104: ='Resultats PMV'!S94/'Resultats PMV'!$P94 ->  | Q104: ='Resultats PMV'!T94/'Resultats PMV'!$P94 ->  | R104: ='Resultats PMV'!U94/'Resultats PMV'!$P94 ->  | S104: ='Resultats PMV'!V94/'Resultats PMV'!$P94 ->  | T104: ='Resultats PMV'!W94/'Resultats PMV'!$P94 ->  | U104: ='Resultats PMV'!X94/'Resultats PMV'!$P94 ->  | V104: ='Resultats PMV'!Y94/'Resultats PMV'!$P94 ->  | W104: ='Resultats PMV'!Z94/'Resultats PMV'!$P94 ->  | X104: ='Resultats PMV'!AA94/'Resultats PMV'!$P94 ->  | Y104: ='Resultats PMV'!AB94/'Resultats PMV'!$P94 ->  | AB104: ='Resultats PMV'!AI94 -> 0 | AC104: ='Resultats PMV'!AN94/'Resultats PMV'!$AX94 ->  | AD104: ='Resultats PMV'!AO94/'Resultats PMV'!$AX94 ->  | AE104: ='Resultats PMV'!AP94/'Resultats PMV'!$AX94 ->  | AF104: ='Resultats PMV'!AQ94/'Resultats PMV'!$AX94 ->  | AG104: ='Resultats PMV'!AR94/'Resultats PMV'!$AX94 ->  | AH104: ='Resultats PMV'!AS94/'Resultats PMV'!$AX94 ->  | AI104: ='Resultats PMV'!AT94/'Resultats PMV'!$AX94 ->  | AJ104: ='Resultats PMV'!AU94/'Resultats PMV'!$AX94 ->  | AK104: ='Resultats PMV'!AV94/'Resultats PMV'!$AX94 ->  | AL104: ='Resultats PMV'!AW94/'Resultats PMV'!$AX94 -> 

Sheet Resultats PPD
B1: 1ère colonne | C1: 1 | E1: Il s'agit du numéro de l'entête de colonne du tableau ZONE THERMAL COMFORT FANGER MODEL PPD qui correspond à la valeur minimale de PPD. Par défaut la colonne de PPD min à 5% est "1 [hr]". Le numéro est la valeur n de l'entête de colonne "n [hr]". Saisissez 0 pour partir de la colonne "- [hr]".
B2: Dernière colonne | C2: 7 | E2: Le numéro de la dernière colonne à reporter ci-dessous. Le numéro de l'entête de colonne est le chiffre n dans l'intitulé de ZONE THERMAL COMFORT FANGER MODEL PPD : n [hr]. Saisissez "-" pour la colonne "equal to or more than". Attention le tableau ci-dessous n'est pas automatiquement adapté au nombre de tranches souhaitées, il faut le dimensionner manuellement et modifier la macro (nettoyage des valeurs du tableau jusqu'à N2000 à modifier).
F5: Totaux | O5: Total annuel
A6: Année | F6: =SUM(F9:F502) -> 106.5 | G6: =SUM(G9:G502) -> 3228 | H6: 1387 | I6: 1090.5 | J6: 920.5 | K6: 724 | L6: 588.5 | M6: 499 | N6: 3984 | O6: =SUM(F6:N6) -> 12528
F7: Inférieur à | G7: 5.01<= | H7: 10.01<= | I7: 15.01<= | J7: 20.01<= | K7: 25.01<= | L7: 30.01<= | M7: 35.01<= | N7: Supérieur à
A8: Nom Zone | B8: Moyenne | C8: Ecart Type | D8: Min | E8: Max | F8: 5.01 | G8: 10.01> | H8: 15.01> | I8: 20.01> | J8: 25.01> | K8: 30.01> | L8: 35.01> | M8: 40.01> | N8: 40.01 | O8: Temps hors confort
A9: FLOOR0:ZONE1 | B9: 34.35 | C9: 30.34 | D9: 5 | E9: 100 | F9: 25 | G9: 866.5 | H9: 358.5 | I9: 252.5 | J9: 189.5 | K9: 152 | L9: 113.5 | M9: 113 | N9: 1061.5 | O9: =SUM(I9:N9) -> 1882
A10: FLOOR0:ZONE2 | B10: 34.06 | C10: 29.2 | D10: 5 | E10: 99.99 | F10: 26.5 | G10: 780.5 | H10: 317 | I10: 278.5 | J10: 240 | K10: 189 | L10: 166.5 | M10: 128.5 | N10: 1005.5 | O10: =SUM(I10:N10) -> 2008
A11: FLOOR1:SANITAIRES | B11: 33.45 | C11: 29.35 | D11: 5 | E11: 99.99 | F11: 26 | G11: 800 | H11: 375 | I11: 273.5 | J11: 234 | K11: 176 | L11: 149.5 | M11: 127 | N11: 971 | O11: 1931
A12: FLOOR1:ZONE1 | B12: 32.99 | C12: 28.43 | D12: 5 | E12: 100 | F12: 29 | G12: 781 | H12: 336.5 | I12: 286 | J12: 257 | K12: 207 | L12: 159 | M12: 130.5 | N12: 946 | O12: 1985.5
O13: 0
O14: 0
O15: 0
O16: 0
O17: 0
O18: 0
O19: 0
O20: 0
O21: 0
O22: 0
O23: 0
O24: 0
O25: 0
O26: 0
O27: 0
O28: 0
O29: 0
O30: 0
O31: 0
O32: 0
O33: 0
O34: 0
O35: 0
O36: 0
O37: 0
O38: 0
O39: 0
O40: 0
O41: 0
O42: 0
O43: 0
O44: 0
O45: 0
O46: 0
O47: 0
O48: 0
O49: 0
O50: 0
O51: 0
O52: 0
O53: 0

Sheet Tableau BREEAM
B3: Space | C3: PMV min | D3: PMV max | E3: PPD min | F3: PPD max | G3: Mean PPD | H3: % of unmet hours
B4: ='Resultats PMV'!A9 -> FLOOR0:ZONE1 | C4: ='Resultats PMV'!D9 -> -2.2 | D4: ='Resultats PMV'!E9 -> 4.39 | E4: =VLOOKUP($B4,'Resultats PPD'!$A$9:$D$53,4,FALSE) -> 5 | F4: =VLOOKUP($B4,'Resultats PPD'!$A$9:$E$53,5,FALSE) -> 100 | H4: =VLOOKUP($B4,'Synth & graphe PMV'!$B$19:$M$104,12,FALSE) -> 0.7084929757 | J4: =MAX(ABS(C4),D4) -> 4.39
B5: ='Resultats PMV'!A10 -> FLOOR0:ZONE2 | C5: ='Resultats PMV'!D10 -> -2.3 | D5: ='Resultats PMV'!E10 -> 3.77 | E5: =VLOOKUP($B5,'Resultats PPD'!$A$9:$D$53,4,FALSE) -> 5 | F5: =VLOOKUP($B5,'Resultats PPD'!$A$9:$E$53,5,FALSE) -> 99.99 | H5: =VLOOKUP($B5,'Synth & graphe PMV'!$B$19:$M$104,12,FALSE) -> 0.7380268199 | J5: =MAX(ABS(C5),D5) -> 3.77
B6: ='Resultats PMV'!A11 -> FLOOR1:SANITAIRES | C6: ='Resultats PMV'!D11 -> -2 | D6: ='Resultats PMV'!E11 -> 3.67 | E6: =VLOOKUP($B6,'Resultats PPD'!$A$9:$D$53,4,FALSE) -> 5 | F6: =VLOOKUP($B6,'Resultats PPD'!$A$9:$E$53,5,FALSE) -> 99.99 | H6: =VLOOKUP($B6,'Synth & graphe PMV'!$B$19:$M$104,12,FALSE) -> 0.7294061303 | J6: 3.67
B7: ='Resultats PMV'!A12 -> FLOOR1:ZONE1 | C7: ='Resultats PMV'!D12 -> -2.2 | D7: ='Resultats PMV'!E12 -> 3.91 | E7: =VLOOKUP($B7,'Resultats PPD'!$A$9:$D$53,4,FALSE) -> 5 | F7: =VLOOKUP($B7,'Resultats PPD'!$A$9:$E$53,5,FALSE) -> 100 | H7: =VLOOKUP($B7,'Synth & graphe PMV'!$B$19:$M$104,12,FALSE) -> 0.7354725415 | J7: 3.91
B8: ='Resultats PMV'!A13 -> 0 | C8: ='Resultats PMV'!D13 -> 0 | D8: ='Resultats PMV'!E13 -> 0 | E8: =VLOOKUP($B8,'Resultats PPD'!$A$9:$D$53,4,FALSE) ->  | F8: =VLOOKUP($B8,'Resultats PPD'!$A$9:$E$53,5,FALSE) ->  | H8: =VLOOKUP($B8,'Synth & graphe PMV'!$B$19:$M$104,12,FALSE) ->  | J8: 0
B9: ='Resultats PMV'!A14 -> 0 | C9: ='Resultats PMV'!D14 -> 0 | D9: ='Resultats PMV'!E14 -> 0 | E9: =VLOOKUP($B9,'Resultats PPD'!$A$9:$D$53,4,FALSE) ->  | F9: =VLOOKUP($B9,'Resultats PPD'!$A$9:$E$53,5,FALSE) ->  | H9: =VLOOKUP($B9,'Synth & graphe PMV'!$B$19:$M$104,12,FALSE) ->  | J9: 0
B10: ='Resultats PMV'!A15 -> 0 | C10: ='Resultats PMV'!D15 -> 0 | D10: ='Resultats PMV'!E15 -> 0 | E10: =VLOOKUP($B10,'Resultats PPD'!$A$9:$D$53,4,FALSE) ->  | F10: =VLOOKUP($B10,'Resultats PPD'!$A$9:$E$53,5,FALSE) ->  | H10: =VLOOKUP($B10,'Synth & graphe PMV'!$B$19:$M$104,12,FALSE) ->  | J10: 0
B11: ='Resultats PMV'!A16 -> 0 | C11: ='Resultats PMV'!D16 -> 0 | D11: ='Resultats PMV'!E16 -> 0 | E11: =VLOOKUP($B11,'Resultats PPD'!$A$9:$D$53,4,FALSE) ->  | F11: =VLOOKUP($B11,'Resultats PPD'!$A$9:$E$53,5,FALSE) ->  | H11: =VLOOKUP($B11,'Synth & graphe PMV'!$B$19:$M$104,12,FALSE) ->  | J11: 0
B12: ='Resultats PMV'!A17 -> 0 | C12: ='Resultats PMV'!D17 -> 0 | D12: ='Resultats PMV'!E17 -> 0 | E12: =VLOOKUP($B12,'Resultats PPD'!$A$9:$D$53,4,FALSE) ->  | F12: =VLOOKUP($B12,'Resultats PPD'!$A$9:$E$53,5,FALSE) ->  | H12: =VLOOKUP($B12,'Synth & graphe PMV'!$B$19:$M$104,12,FALSE) ->  | J12: 0
B13: ='Resultats PMV'!A18 -> 0 | C13: ='Resultats PMV'!D18 -> 0 | D13: ='Resultats PMV'!E18 -> 0 | E13: =VLOOKUP($B13,'Resultats PPD'!$A$9:$D$53,4,FALSE) ->  | F13: =VLOOKUP($B13,'Resultats PPD'!$A$9:$E$53,5,FALSE) ->  | H13: =VLOOKUP($B13,'Synth & graphe PMV'!$B$19:$M$104,12,FALSE) ->  | J13: 0
B14: ='Resultats PMV'!A19 -> 0 | C14: ='Resultats PMV'!D19 -> 0 | D14: ='Resultats PMV'!E19 -> 0 | E14: =VLOOKUP($B14,'Resultats PPD'!$A$9:$D$53,4,FALSE) ->  | F14: =VLOOKUP($B14,'Resultats PPD'!$A$9:$E$53,5,FALSE) ->  | H14: =VLOOKUP($B14,'Synth & graphe PMV'!$B$19:$M$104,12,FALSE) ->  | J14: 0
B15: ='Resultats PMV'!A20 -> 0 | C15: ='Resultats PMV'!D20 -> 0 | D15: ='Resultats PMV'!E20 -> 0 | E15: =VLOOKUP($B15,'Resultats PPD'!$A$9:$D$53,4,FALSE) ->  | F15: =VLOOKUP($B15,'Resultats PPD'!$A$9:$E$53,5,FALSE) ->  | H15: =VLOOKUP($B15,'Synth & graphe PMV'!$B$19:$M$104,12,FALSE) ->  | J15: 0
B16: ='Resultats PMV'!A21 -> 0 | C16: ='Resultats PMV'!D21 -> 0 | D16: ='Resultats PMV'!E21 -> 0 | E16: =VLOOKUP($B16,'Resultats PPD'!$A$9:$D$53,4,FALSE) ->  | F16: =VLOOKUP($B16,'Resultats PPD'!$A$9:$E$53,5,FALSE) ->  | H16: =VLOOKUP($B16,'Synth & graphe PMV'!$B$19:$M$104,12,FALSE) ->  | J16: 0
B17: ='Resultats PMV'!A22 -> 0 | C17: ='Resultats PMV'!D22 -> 0 | D17: ='Resultats PMV'!E22 -> 0 | E17: =VLOOKUP($B17,'Resultats PPD'!$A$9:$D$53,4,FALSE) ->  | F17: =VLOOKUP($B17,'Resultats PPD'!$A$9:$E$53,5,FALSE) ->  | H17: =VLOOKUP($B17,'Synth & graphe PMV'!$B$19:$M$104,12,FALSE) -> 
B18: ='Resultats PMV'!A23 -> 0 | C18: ='Resultats PMV'!D23 -> 0 | D18: ='Resultats PMV'!E23 -> 0 | E18: =VLOOKUP($B18,'Resultats PPD'!$A$9:$D$53,4,FALSE) ->  | F18: =VLOOKUP($B18,'Resultats PPD'!$A$9:$E$53,5,FALSE) ->  | H18: =VLOOKUP($B18,'Synth & graphe PMV'!$B$19:$M$104,12,FALSE) -> 
B19: ='Resultats PMV'!A24 -> 0 | C19: ='Resultats PMV'!D24 -> 0 | D19: ='Resultats PMV'!E24 -> 0 | E19: =VLOOKUP($B19,'Resultats PPD'!$A$9:$D$53,4,FALSE) ->  | F19: =VLOOKUP($B19,'Resultats PPD'!$A$9:$E$53,5,FALSE) ->  | H19: =VLOOKUP($B19,'Synth & graphe PMV'!$B$19:$M$104,12,FALSE) -> 
B20: ='Resultats PMV'!A25 -> 0 | C20: ='Resultats PMV'!D25 -> 0 | D20: ='Resultats PMV'!E25 -> 0 | E20: =VLOOKUP($B20,'Resultats PPD'!$A$9:$D$53,4,FALSE) ->  | F20: =VLOOKUP($B20,'Resultats PPD'!$A$9:$E$53,5,FALSE) ->  | H20: =VLOOKUP($B20,'Synth & graphe PMV'!$B$19:$M$104,12,FALSE) -> 
B21: ='Resultats PMV'!A26 -> 0 | C21: ='Resultats PMV'!D26 -> 0 | D21: ='Resultats PMV'!E26 -> 0 | E21: =VLOOKUP($B21,'Resultats PPD'!$A$9:$D$53,4,FALSE) ->  | F21: =VLOOKUP($B21,'Resultats PPD'!$A$9:$E$53,5,FALSE) ->  | H21: =VLOOKUP($B21,'Synth & graphe PMV'!$B$19:$M$104,12,FALSE) -> 
B22: ='Resultats PMV'!A27 -> 0 | C22: ='Resultats PMV'!D27 -> 0 | D22: ='Resultats PMV'!E27 -> 0 | E22: =VLOOKUP($B22,'Resultats PPD'!$A$9:$D$53,4,FALSE) ->  | F22: =VLOOKUP($B22,'Resultats PPD'!$A$9:$E$53,5,FALSE) ->  | H22: =VLOOKUP($B22,'Synth & graphe PMV'!$B$19:$M$104,12,FALSE) -> 
B23: ='Resultats PMV'!A28 -> 0 | C23: ='Resultats PMV'!D28 -> 0 | D23: ='Resultats PMV'!E28 -> 0 | E23: =VLOOKUP($B23,'Resultats PPD'!$A$9:$D$53,4,FALSE) ->  | F23: =VLOOKUP($B23,'Resultats PPD'!$A$9:$E$53,5,FALSE) ->  | H23: =VLOOKUP($B23,'Synth & graphe PMV'!$B$19:$M$104,12,FALSE) -> 
B24: ='Resultats PMV'!A29 -> 0 | C24: ='Resultats PMV'!D29 -> 0 | D24: ='Resultats PMV'!E29 -> 0 | E24: =VLOOKUP($B24,'Resultats PPD'!$A$9:$D$53,4,FALSE) ->  | F24: =VLOOKUP($B24,'Resultats PPD'!$A$9:$E$53,5,FALSE) ->  | H24: =VLOOKUP($B24,'Synth & graphe PMV'!$B$19:$M$104,12,FALSE) -> 
B25: ='Resultats PMV'!A30 -> 0 | C25: ='Resultats PMV'!D30 -> 0 | D25: ='Resultats PMV'!E30 -> 0 | E25: =VLOOKUP($B25,'Resultats PPD'!$A$9:$D$53,4,FALSE) ->  | F25: =VLOOKUP($B25,'Resultats PPD'!$A$9:$E$53,5,FALSE) ->  | H25: =VLOOKUP($B25,'Synth & graphe PMV'!$B$19:$M$104,12,FALSE) -> 
B26: ='Resultats PMV'!A31 -> 0 | C26: ='Resultats PMV'!D31 -> 0 | D26: ='Resultats PMV'!E31 -> 0 | E26: =VLOOKUP($B26,'Resultats PPD'!$A$9:$D$53,4,FALSE) ->  | F26: =VLOOKUP($B26,'Resultats PPD'!$A$9:$E$53,5,FALSE) ->  | H26: =VLOOKUP($B26,'Synth & graphe PMV'!$B$19:$M$104,12,FALSE) -> 
B27: ='Resultats PMV'!A32 -> 0 | C27: ='Resultats PMV'!D32 -> 0 | D27: ='Resultats PMV'!E32 -> 0 | E27: =VLOOKUP($B27,'Resultats PPD'!$A$9:$D$53,4,FALSE) ->  | F27: =VLOOKUP($B27,'Resultats PPD'!$A$9:$E$53,5,FALSE) ->  | H27: =VLOOKUP($B27,'Synth & graphe PMV'!$B$19:$M$104,12,FALSE) -> 
B28: ='Resultats PMV'!A33 -> 0 | C28: ='Resultats PMV'!D33 -> 0 | D28: ='Resultats PMV'!E33 -> 0 | E28: =VLOOKUP($B28,'Resultats PPD'!$A$9:$D$53,4,FALSE) ->  | F28: =VLOOKUP($B28,'Resultats PPD'!$A$9:$E$53,5,FALSE) ->  | H28: =VLOOKUP($B28,'Synth & graphe PMV'!$B$19:$M$104,12,FALSE) -> 
B29: ='Resultats PMV'!A34 -> 0 | C29: ='Resultats PMV'!D34 -> 0 | D29: ='Resultats PMV'!E34 -> 0 | E29: =VLOOKUP($B29,'Resultats PPD'!$A$9:$D$53,4,FALSE) ->  | F29: =VLOOKUP($B29,'Resultats PPD'!$A$9:$E$53,5,FALSE) ->  | H29: =VLOOKUP($B29,'Synth & graphe PMV'!$B$19:$M$104,12,FALSE) -> 
B30: ='Resultats PMV'!A35 -> 0 | C30: ='Resultats PMV'!D35 -> 0 | D30: ='Resultats PMV'!E35 -> 0 | E30: =VLOOKUP($B30,'Resultats PPD'!$A$9:$D$53,4,FALSE) ->  | F30: =VLOOKUP($B30,'Resultats PPD'!$A$9:$E$53,5,FALSE) ->  | H30: =VLOOKUP($B30,'Synth & graphe PMV'!$B$19:$M$104,12,FALSE) -> 
B31: ='Resultats PMV'!A36 -> 0 | C31: ='Resultats PMV'!D36 -> 0 | D31: ='Resultats PMV'!E36 -> 0 | E31: =VLOOKUP($B31,'Resultats PPD'!$A$9:$D$53,4,FALSE) ->  | F31: =VLOOKUP($B31,'Resultats PPD'!$A$9:$E$53,5,FALSE) ->  | H31: =VLOOKUP($B31,'Synth & graphe PMV'!$B$19:$M$104,12,FALSE) -> 
B32: ='Resultats PMV'!A37 -> 0 | C32: ='Resultats PMV'!D37 -> 0 | D32: ='Resultats PMV'!E37 -> 0 | E32: =VLOOKUP($B32,'Resultats PPD'!$A$9:$D$53,4,FALSE) ->  | F32: =VLOOKUP($B32,'Resultats PPD'!$A$9:$E$53,5,FALSE) ->  | H32: =VLOOKUP($B32,'Synth & graphe PMV'!$B$19:$M$104,12,FALSE) -> 
